Workbook

Sheet Легковые авто и минибасы
A1: TRUE | C1: Подсветка строки | D1: Вкл
W2: УТВЕРЖДАЮ:
U3: Вице-президент АО "Аксайавтотранс"
N4: График проведения технического обслуживания | U4: __________________ Ибраимов С.Б.
D5: подвижного состава АО "Аксайавтотранс" на II квартал 2023 года | V5: "________" ___________________ 2022г.
A7: № п/п | B7: № | C7: Наименование | D7: Гос. | E7: Год | F7: Показания одометра | I7: Показания одометра | L7: Показания одометра | O7: Показания одометра | R7: Показания одометра | U7: Показания одометра | X7: № п/п | Y7: № п/п | Z7: Гос. | AA7: Показания одометра | AD7: Показания одометра | AG7: Показания одометра | AJ7: Показания одометра | AM7: Показания одометра | AP7: Показания одометра | AS7: № п/п | AT7: № п/п | AU7: Гос. | AV7: Показания одометра | AY7: Показания одометра | BB7: Показания одометра | BE7: Показания одометра | BH7: Показания одометра | BK7: Показания одометра | BN7: № п/п
C8: и краткая | D8: номер | E8: выпуска | F8: ТО-2 | G8: ТО-2 | H8: Дата | I8: 1ТО-1 | J8: 1ТО-1 | K8: Дата | L8: 2ТО-1 | M8: 2ТО-1 | N8: Дата | O8: ТО-2 | P8: ТО-2 | Q8: Дата | R8: 1ТО-1 | S8: 1ТО-1 | T8: Дата | U8: 2ТО-1 | V8: 2ТО-1 | W8: Дата | Z8: номер | AA8: ТО-2 | AB8: ТО-2 | AC8: Дата | AD8: 1ТО-1 | AE8: 1ТО-1 | AF8: Дата | AG8: 2ТО-1 | AH8: 2ТО-1 | AI8: Дата | AJ8: ТО-2 | AK8: ТО-2 | AL8: Дата | AM8: 1ТО-1 | AN8: 1ТО-1 | AO8: Дата | AP8: 2ТО-1 | AQ8: 2ТО-1 | AR8: Дата | AU8: номер | AV8: ТО-2 | AW8: ТО-2 | AX8: Дата | AY8: 1ТО-1 | AZ8: ТО-1 | BA8: Дата | BB8: 2ТО-1 | BC8: 2ТО-1 | BD8: Дата | BE8: ТО-2 | BF8: ТО-2 | BG8: Дата | BH8: 1ТО-1 | BI8: 1ТО-1 | BJ8: Дата | BK8: 2ТО-1 | BL8: 2ТО-1 | BM8: Дата | BO8: ТО-2 | BP8: ТО-1
C9: характеристика | F9: по плану | G9: по факту | H9: провед. | I9: по плану | J9: по факту | K9: провед. | L9: по плану | M9: по факту | N9: провед. | O9: по плану | P9: по факту | Q9: провед. | R9: по плану | S9: по факту | T9: провед. | U9: по плану | V9: по факту | W9: провед. | AA9: по плану | AB9: по факту | AC9: провед. | AD9: по плану | AE9: по факту | AF9: провед. | AG9: по плану | AH9: по факту | AI9: провед. | AJ9: по плану | AK9: по факту | AL9: провед. | AM9: по плану | AN9: по факту | AO9: провед. | AP9: по плану | AQ9: по факту | AR9: провед. | AV9: по плану | AW9: по факту | AX9: провед. | AY9: по плану | AZ9: по факту | BA9: провед. | BB9: по плану | BC9: по факту | BD9: провед. | BE9: по плану | BF9: по факту | BG9: провед. | BH9: по плану | BI9: по факту | BJ9: провед. | BK9: по плану | BL9: по факту | BM9: провед.
A10: Дизельные легковые автомобили иностранного производства - период проведения ТО-1 4 000км
A11: 1 | B11: 1 | C11: Тойота НiLux | D11: L 864 AY | E11: 2006 | F11: 904000 | I11: =F11+4000 -> 908000 | L11: =I11+4000 -> 912000 | O11: =L11+4000 -> 916000 | R11: =O11+4000 -> 920000 | U11: =R11+4000 -> 924000 | X11: 1 | Y11: 1 | Z11: L 864 AY | AA11: =U11+4000 -> 928000 | AD11: =AA11+4000 -> 932000 | AG11: =AD11+4000 -> 936000 | AJ11: =AG11+4000 -> 940000 | AM11: =AJ11+4000 -> 944000 | AP11: =AM11+4000 -> 948000 | AS11: 1 | AT11: 1 | AU11: L 864 AY | AV11: =AP11+4000 -> 952000 | AY11: =AV11+4000 -> 956000 | BB11: =AY11+4000 -> 960000 | BE11: =BB11+4000 -> 964000 | BH11: =BE11+4000 -> 968000 | BK11: =BH11+4000 -> 972000 | BN11: 1
A12: =OFFSET(A12,-1,0,1,1)+1 -> 2 | B12: =OFFSET(B12,-1,0,1,1)+1 -> 2 | C12: Тойота НiLux | D12: 475 АН 07 | E12: 2006 | F12: 934000 | G12: 933642 | H12: 2022-12-22 | I12: =F12+4000 -> 938000 | L12: =I12+4000 -> 942000 | O12: =L12+4000 -> 946000 | R12: =O12+4000 -> 950000 | U12: =R12+4000 -> 954000 | X12: =OFFSET(X12,-1,0,1,1)+1 -> 2 | Y12: =OFFSET(Y12,-1,0,1,1)+1 -> 2 | Z12: 475 АН 07 | AA12: =U12+4000 -> 958000 | AD12: 962000 | AG12: 966000 | AJ12: 970000 | AM12: 974000 | AP12: 978000 | AS12: =OFFSET(AS12,-1,0,1,1)+1 -> 2 | AT12: =OFFSET(AT12,-1,0,1,1)+1 -> 2 | AU12: 475 АН 07 | AV12: =AP12+4000 -> 982000 | AY12: 986000 | BB12: 990000 | BE12: 994000 | BH12: 998000 | BK12: 1002000 | BN12: =OFFSET(BN12,-1,0,1,1)+1 -> 2 | BO12: =G12-F12 -> -358 | BP12: =J12-I12 -> -938000
A13: =OFFSET(A13,-1,0,1,1)+1 -> 3 | B13: 3 | C13: Тойота НiLux | D13: L 866 AY | E13: 2006 | F13: 216000 | G13: 217015 | H13: 2022-12-09 | I13: =F13+4000 -> 220000 | J13: 219970 | K13: 2023-01-03 | L13: =I13+4000 -> 224000 | M13: 223950 | N13: 2023-02-15 | O13: 228000 | R13: 232000 | U13: 236000 | X13: =OFFSET(X13,-1,0,1,1)+1 -> 3 | Y13: 3 | Z13: L 866 AY | AA13: 240000 | AD13: 244000 | AG13: 248000 | AJ13: 252000 | AM13: 256000 | AP13: 260000 | AS13: =OFFSET(AS13,-1,0,1,1)+1 -> 3 | AT13: 3 | AU13: L 866 AY | AV13: 264000 | AY13: 268000 | BB13: 272000 | BE13: 276000 | BH13: 280000 | BK13: 284000 | BN13: =OFFSET(BN13,-1,0,1,1)+1 -> 3 | BO13: =G13-F13 -> 1015 | BP13: =J13-I13 -> -30
A14: 4 | B14: 4 | C14: Тойота НiLux | D14: L 868 AY | E14: 2006 | F14: 347000 | G14: 347740 | H14: 2022-09-22 | I14: =F14+4000 -> 351000 | J14: 351000 | K14: 2023-03-11 | L14: =I14+4000 -> 355000 | O14: =L14+4000 -> 359000 | R14: =O14+4000 -> 363000 | U14: 367000 | X14: 4 | Y14: 4 | Z14: L 868 AY | AA14: 371000 | AD14: 375000 | AG14: 379000 | AJ14: 383000 | AM14: 387000 | AP14: 391000 | AS14: 4 | AT14: 4 | AU14: L 868 AY | AV14: 395000 | AY14: 399000 | BB14: 403000 | BE14: 407000 | BH14: 411000 | BK14: 415000 | BN14: 4 | BO14: 740 | BP14: 0
A15: 5 | B15: 5 | C15: Тойота НiLux | D15: L 869 AY | E15: 2006 | F15: 944000 | G15: 946851 | H15: 2022-12-01 | I15: 948000 | J15: 936848 | K15: 2022-06-29 | L15: 952000 | M15: 942571 | N15: 2022-09-22 | O15: 956000 | R15: 960000 | U15: 964000 | X15: 5 | Y15: 5 | Z15: L 869 AY | AA15: 968000 | AD15: 972000 | AG15: 976000 | AJ15: 980000 | AM15: 984000 | AP15: 988000 | AS15: 5 | AT15: 5 | AU15: L 869 AY | AV15: 992000 | AY15: 996000 | BB15: 1000000 | BE15: 1004000 | BH15: 1008000 | BK15: 1012000 | BN15: 5 | BO15: 2851 | BP15: -11152
A16: =OFFSET(A16,-1,0,1,1)+1 -> 6 | B16: 6 | C16: Тойота НiLux | D16: L 872 AY | E16: 2006 | F16: 2000 | G16: 2516 | H16: 2022-03-06 | I16: =F16+4000 -> 6000 | J16: 7000 | K16: 2022-03-29 | L16: =I16+4000 -> 10000 | M16: 10150 | N16: 2022-05-13 | O16: =L16+4000 -> 14000 | P16: н/р | Q16: 2023-01-26 | R16: =O16+4000 -> 18000 | U16: 22000 | X16: =OFFSET(X16,-1,0,1,1)+1 -> 6 | Y16: =OFFSET(Y16,-1,0,1,1)+1 -> 6 | Z16: L 872 AY | AA16: 26000 | AD16: 30000 | AG16: 34000 | AJ16: 38000 | AM16: 42000 | AP16: 46000 | AS16: =OFFSET(AS16,-1,0,1,1)+1 -> 6 | AT16: =OFFSET(AT16,-1,0,1,1)+1 -> 6 | AU16: L 872 AY | AV16: 50000 | AY16: 54000 | BB16: 58000 | BE16: 62000 | BH16: 66000 | BK16: 70000 | BN16: =OFFSET(BN16,-1,0,1,1)+1 -> 6 | BO16: 516 | BP16: 1000
A17: Микроавтобусы период проведения ТО-1 4 000км
A18: 7 | B18: 1 | C18: Toyota HiAce | D18: 164 АН 07 | E18: 2015 | F18: 264000 | G18: 264000 | H18: 2023-02-15 | I18: =F18+4000 -> 268000 | L18: =I18+4000 -> 272000 | O18: =L18+4000 -> 276000 | R18: =O18+4000 -> 280000 | U18: =R18+4000 -> 284000 | X18: 7 | Y18: 7 | Z18: 164 АН 07 | AA18: =U18+4000 -> 288000 | AD18: =AA18+4000 -> 292000 | AG18: =AD18+4000 -> 296000 | AJ18: =AG18+4000 -> 300000 | AM18: =AJ18+4000 -> 304000 | AP18: =AM18+4000 -> 308000 | AS18: 7 | AT18: 7 | AU18: 164 АН 07 | AV18: =AP18+4000 -> 312000 | AY18: =AV18+4000 -> 316000 | BB18: =AY18+4000 -> 320000 | BE18: =BB18+4000 -> 324000 | BH18: =BE18+4000 -> 328000 | BK18: =BH18+4000 -> 332000 | BN18: 7 | BO18: 0 | BP18: -268000
A19: =OFFSET(A19,-1,0,1,1)+1 -> 8 | B19: =OFFSET(B19,-1,0,1,1)+1 -> 2 | C19: Toyota HiAce | D19: 165 АН 07 | E19: 2015 | F19: 392000 | G19: 392056 | H19: 2022-11-15 | I19: =F19+4000 -> 396000 | J19: 396000 | K19: 2022-12-06 | L19: =I19+4000 -> 400000 | O19: 404000 | R19: 408000 | U19: 412000 | X19: =OFFSET(X19,-1,0,1,1)+1 -> 8 | Y19: =OFFSET(Y19,-1,0,1,1)+1 -> 8 | Z19: 165 АН 07 | AA19: 416000 | AD19: 420000 | AG19: 424000 | AJ19: 428000 | AM19: 432000 | AP19: 436000 | AS19: =OFFSET(AS19,-1,0,1,1)+1 -> 8 | AT19: =OFFSET(AT19,-1,0,1,1)+1 -> 8 | AU19: 165 АН 07 | AV19: 440000 | AY19: 444000 | BB19: 448000 | BE19: 452000 | BH19: 456000 | BK19: 460000 | BN19: =OFFSET(BN19,-1,0,1,1)+1 -> 8 | BO19: 56 | BP19: 0
A20: =OFFSET(A20,-1,0,1,1)+1 -> 9 | B20: 3 | C20: Toyota HiAce | D20: 166 АН 07 | E20: 2015 | F20: 388000 | G20: 389000 | H20: 2023-02-12 | I20: 392000 | L20: 396000 | O20: =L20+4000 -> 400000 | R20: =O20+4000 -> 404000 | U20: =R20+4000 -> 408000 | X20: =OFFSET(X20,-1,0,1,1)+1 -> 9 | Y20: 9 | Z20: 166 АН 07 | AA20: =U20+4000 -> 412000 | AD20: 416000 | AG20: 420000 | AJ20: 424000 | AM20: 428000 | AP20: 432000 | AS20: =OFFSET(AS20,-1,0,1,1)+1 -> 9 | AT20: 9 | AU20: 166 АН 07 | AV20: 436000 | AY20: 440000 | BB20: 444000 | BE20: 448000 | BH20: 452000 | BK20: 456000 | BN20: =OFFSET(BN20,-1,0,1,1)+1 -> 9 | BO20: 1000 | BP20: -392000
A21: 10 | B21: 4 | C21: Toyota HiAce | D21: 170 АН 07 | E21: 2015 | F21: 468000 | G21: 467840 | H21: 2022-10-27 | I21: 472000 | J21: 471669 | K21: 2022-11-16 | L21: 476000 | M21: 475800 | N21: 2022-12-06 | O21: 480000 | R21: 484000 | U21: 488000 | X21: 10 | Y21: 10 | Z21: 170 АН 07 | AA21: 492000 | AD21: 496000 | AG21: 500000 | AJ21: 504000 | AM21: 508000 | AP21: 512000 | AS21: 10 | AT21: 10 | AU21: 170 АН 07 | AV21: 516000 | AY21: 520000 | BB21: 524000 | BE21: 528000 | BH21: 532000 | BK21: 536000 | BN21: 10 | BO21: -160 | BP21: -331
A22: 11 | B22: 5 | C22: Toyota HiAce | D22: 174 АН 07 | E22: 2015 | F22: 388000 | G22: 387847 | H22: 2022-10-27 | I22: =F22+4000 -> 392000 | J22: 391947 | K22: 2022-11-23 | L22: =I22+4000 -> 396000 | O22: 400000 | R22: 404000 | U22: 408000 | X22: 11 | Y22: 11 | Z22: 174 АН 07 | AA22: 412000 | AD22: 416000 | AG22: 420000 | AJ22: 424000 | AM22: 428000 | AP22: 432000 | AS22: 11 | AT22: 11 | AU22: 174 АН 07 | AV22: 436000 | AY22: 440000 | BB22: 444000 | BE22: 448000 | BH22: 452000 | BK22: 456000 | BN22: 11 | BO22: -153 | BP22: -53
A23: 12 | B23: 6 | C23: Toyota HiAce | D23: 186 АН 07 | E23: 2015 | F23: 420000 | G23: 419980 | H23: 2022-10-02 | I23: 424000 | J23: 424336 | K23: 2022-11-20 | L23: 428000 | O23: 432000 | R23: 436000 | U23: 440000 | X23: 12 | Y23: 12 | Z23: 186 АН 07 | AA23: 444000 | AD23: 448000 | AG23: 452000 | AJ23: 456000 | AM23: 460000 | AP23: 464000 | AS23: 12 | AT23: 12 | AU23: 186 АН 07 | AV23: 468000 | AY23: 472000 | BB23: 476000 | BE23: 480000 | BH23: 484000 | BK23: 488000 | BN23: 12 | BO23: -20 | BP23: 336
A24: 13 | B24: 7 | C24: Toyota HiAce | D24: 457 AH 07 | E24: 2015 | F24: 600000 | G24: 600148 | H24: 2022-10-06 | I24: =F24+4000 -> 604000 | J24: 604000 | K24: 2022-11-12 | L24: =I24+4000 -> 608000 | O24: 612000 | R24: 616000 | U24: 620000 | X24: 13 | Y24: 13 | Z24: 457 АН 07 | AA24: 624000 | AD24: 628000 | AG24: 632000 | AJ24: 636000 | AM24: 640000 | AP24: 644000 | AS24: 13 | AT24: 13 | AU24: 457 АН 07 | AV24: 648000 | AY24: 652000 | BB24: =AY24+4000 -> 656000 | BE24: 660000 | BH24: 664000 | BK24: 668000 | BN24: 13 | BO24: 148 | BP24: 0
A25: 14 | B25: 8 | C25: Toyota HiAce | D25: 465 AH 07 | E25: 2015 | F25: 480000 | G25: 480125 | H25: 2022-10-03 | I25: =F25+4000 -> 484000 | L25: =I25+4000 -> 488000 | M25: 488002 | N25: 2022-10-22 | O25: 492000 | R25: 496000 | U25: 500000 | X25: 14 | Y25: 14 | Z25: 465 АН 07 | AA25: 504000 | AD25: 508000 | AG25: 512000 | AJ25: 516000 | AM25: 520000 | AP25: 524000 | AS25: 14 | AT25: 14 | AU25: 465 АН 07 | AV25: 528000 | AY25: 532000 | BB25: =AY25+4000 -> 536000 | BE25: 540000 | BH25: =BE25+4000 -> 544000 | BK25: 548000 | BN25: 14 | BO25: 125 | BP25: -484000
A26: 15 | B26: 9 | C26: Toyota HiAce | D26: 471 AH 07 | E26: 2015 | F26: 492000 | G26: 493000 | H26: 2022-10-02 | I26: =F26+4000 -> 496000 | J26: 496000 | K26: 2022-10-11 | L26: =I26+4000 -> 500000 | M26: 499639 | N26: 2022-11-07 | O26: 504000 | R26: 508000 | U26: 512000 | X26: 15 | Y26: 15 | Z26: 471 АН 07 | AA26: 516000 | AD26: 520000 | AG26: 524000 | AJ26: 528000 | AM26: 532000 | AP26: 536000 | AS26: 15 | AT26: 15 | AU26: 471 АН 07 | AV26: 540000 | AY26: 544000 | BB26: 548000 | BE26: 552000 | BH26: =BE26+4000 -> 556000 | BK26: 560000 | BN26: 15 | BO26: 1000 | BP26: 0
A27: 16 | B27: 10 | C27: Toyota HiAce | D27: 478 AH 07 | E27: 2014 | F27: 428000 | G27: 428000 | H27: 2022-11-20 | I27: =F27+4000 -> 432000 | L27: 436000 | M27: 436000 | N27: 2022-12-06 | O27: 440000 | R27: 444000 | U27: 448000 | X27: 16 | Y27: 16 | Z27: 478 АН 07 | AA27: 452000 | AD27: 456000 | AG27: 460000 | AJ27: 464000 | AM27: 468000 | AP27: 472000 | AS27: 16 | AT27: 16 | AU27: 478 АН 07 | AV27: 476000 | AY27: 480000 | BB27: 484000 | BE27: 488000 | BH27: 492000 | BK27: 496000 | BN27: 16 | BO27: 0 | BP27: -432000
A28: 17 | B28: 11 | C28: Toyota HiAce | D28: 480 АН 07 | E28: 2015 | F28: 292000 | G28: 292600 | H28: 2022-07-19 | I28: 296000 | J28: 296241 | K28: 2022-09-22 | L28: 300000 | M28: 300101 | N28: 2022-10-11 | O28: 304000 | R28: 308000 | U28: 312000 | X28: 17 | Y28: 17 | Z28: 480 АН 07 | AA28: 316000 | AD28: 320000 | AG28: 324000 | AJ28: 328000 | AM28: 332000 | AP28: 336000 | AS28: 17 | AT28: 17 | AU28: 480 АН 07 | AV28: 340000 | AY28: 344000 | BB28: 348000 | BE28: 352000 | BH28: 356000 | BK28: 360000 | BN28: 17 | BO28: 600 | BP28: 241
A29: 18 | B29: 12 | C29: Toyota HiAce | D29: 895 AF 07 | E29: 2015 | F29: 396000 | G29: 396666 | H29: 2022-09-22 | I29: 400000 | J29: 400079 | K29: 2022-10-11 | L29: 404000 | M29: 403708 | N29: 2022-11-15 | O29: 408000 | R29: 412000 | U29: 416000 | X29: 18 | Y29: 18 | Z29: 895 AF 07 | AA29: 420000 | AD29: 424000 | AG29: 428000 | AJ29: 432000 | AM29: 436000 | AP29: 440000 | AS29: 18 | AT29: 18 | AU29: 895 AF 07 | AV29: 444000 | AY29: =AV29+4000 -> 448000 | BB29: 452000 | BE29: 456000 | BH29: 460000 | BK29: 464000 | BN29: 18 | BO29: 666 | BP29: 79
A30: 19 | B30: 13 | C30: Toyota HiAce | D30: 907 AF 07 | E30: 2014 | F30: 500000 | G30: 500010 | H30: 2022-08-06 | I30: =F30+4000 -> 504000 | J30: 503892 | K30: 2022-09-22 | L30: =I30+4000 -> 508000 | M30: 508018 | N30: 2022-10-04 | O30: =L30+4000 -> 512000 | R30: =O30+4000 -> 516000 | U30: =R30+4000 -> 520000 | X30: 19 | Y30: 19 | Z30: 907 AF 07 | AA30: =U30+4000 -> 524000 | AD30: =AA30+4000 -> 528000 | AG30: =AD30+4000 -> 532000 | AJ30: =AG30+4000 -> 536000 | AM30: =AJ30+4000 -> 540000 | AP30: =AM30+4000 -> 544000 | AS30: 19 | AT30: 19 | AU30: 907 AF 07 | AV30: 548000 | AY30: 552000 | BB30: 556000 | BE30: 560000 | BH30: =BE30+4000 -> 564000 | BK30: =BH30+4000 -> 568000 | BN30: 19 | BO30: 10 | BP30: -108
A31: 20 | B31: 14 | C31: Toyota HiAce | D31: 909 AF 07 | E31: 2014 | F31: 404000 | G31: 402319 | H31: 2023-03-29 | I31: 408000 | L31: =I31+4000 -> 412000 | O31: =L31+4000 -> 416000 | R31: 420000 | U31: 424000 | X31: 20 | Y31: 20 | Z31: 909 AF 07 | AA31: 428000 | AD31: 432000 | AG31: 436000 | AJ31: 440000 | AM31: 444000 | AP31: 448000 | AS31: 20 | AT31: 20 | AU31: 909 AF 07 | AV31: 452000 | AY31: 456000 | BB31: 460000 | BE31: 464000 | BH31: 468000 | BK31: 472000 | BN31: 20 | BO31: -1681 | BP31: -408000
A32: 21 | B32: 15 | C32: Toyota HiAce | D32: 912 AF 07 | E32: 2014 | F32: 328000 | G32: 329000 | H32: 2023-01-16 | I32: 332000 | J32: 320000 | K32: 2022-11-12 | L32: =I32+4000 -> 336000 | M32: 324000 | N32: 2022-12-06 | O32: =L32+4000 -> 340000 | R32: 344000 | U32: 348000 | X32: 21 | Y32: 21 | Z32: 912 AF 07 | AA32: 352000 | AD32: 356000 | AG32: 360000 | AJ32: 364000 | AM32: 368000 | AP32: 372000 | AS32: 21 | AT32: 21 | AU32: 912 AF 07 | AV32: =AP32+4000 -> 376000 | AY32: 380000 | BB32: =AY32+4000 -> 384000 | BE32: =BB32+4000 -> 388000 | BH32: 392000 | BK32: 396000 | BN32: 21 | BO32: 1000 | BP32: -12000
A33: 22 | B33: 16 | C33: Toyota HiAce | D33: 227 AQ 07 | E33: 2018 | F33: 184000 | G33: 184000 | H33: 2023-03-03 | I33: 188000 | J33: 187719 | K33: 2023-03-20 | L33: 192000 | O33: 196000 | R33: 200000 | U33: 204000 | X33: 22 | Y33: 22 | Z33: 227 AQ 07 | AA33: 208000 | AD33: 212000 | AG33: 216000 | AJ33: 220000 | AM33: 224000 | AP33: 228000 | AS33: 22 | AT33: 22 | AU33: 227 AQ 07 | AV33: 232000 | AY33: 236000 | BB33: 240000 | BE33: 244000 | BH33: 248000 | BK33: 252000 | BN33: 22 | BO33: 0 | BP33: -281
A34: 23 | B34: 17 | C34: Toyota HiAce | D34: 228 AQ 07 | E34: 2018 | F34: 121000 | G34: 120400 | H34: 2022-12-09 | I34: 125000 | J34: 124740 | K34: 2023-01-30 | L34: 129000 | M34: 128788 | N34: 2023-03-18 | O34: 133000 | R34: 137000 | U34: 141000 | X34: 23 | Y34: 23 | Z34: 228 AQ 07 | AA34: 145000 | AD34: 149000 | AG34: 153000 | AJ34: 157000 | AM34: 161000 | AP34: 165000 | AS34: 23 | AT34: 23 | AU34: 228 AQ 07 | AV34: 169000 | AY34: 173000 | BB34: 177000 | BE34: 181000 | BH34: 185000 | BK34: 189000 | BN34: 23 | BO34: -600 | BP34: -260
A35: 24 | B35: 18 | C35: Toyota HiAce | D35: 912 AS 07 | E35: 2020 | F35: 108000 | G35: 108000 | H35: 2023-03-11 | I35: 112000 | L35: 116000 | O35: 120000 | R35: 124000 | U35: 128000 | X35: 24 | Y35: 24 | Z35: 912 AS 07 | AA35: 132000 | AD35: 136000 | AG35: =AD35+4000 -> 140000 | AJ35: =AG35+4000 -> 144000 | AM35: =AJ35+4000 -> 148000 | AP35: =AM35+4000 -> 152000 | AS35: 24 | AT35: 24 | AU35: 912 AS 07 | AV35: 156000 | AY35: =AV35+4000 -> 160000 | BB35: =AY35+4000 -> 164000 | BE35: =BB35+4000 -> 168000 | BH35: =BE35+4000 -> 172000 | BK35: =BH35+4000 -> 176000 | BN35: 24 | BO35: 0 | BP35: -112000
A36: 25 | B36: 19 | C36: Toyota HiAce | D36: 913 AS 07 | E36: 2020 | F36: 132000 | G36: 131992 | H36: 2023-02-10 | I36: 136000 | J36: 135809 | K36: 2023-03-16 | L36: 140000 | O36: 144000 | R36: 148000 | U36: 152000 | X36: 25 | Y36: 25 | Z36: 913 AS 07 | AA36: 156000 | AD36: 160000 | AG36: 164000 | AJ36: 168000 | AM36: 172000 | AP36: 176000 | AS36: 25 | AT36: 25 | AU36: 913 AS 07 | AV36: 180000 | AY36: 184000 | BB36: 188000 | BE36: 192000 | BH36: 196000 | BK36: 200000 | BN36: 25 | BO36: -8 | BP36: -191
A37: 26 | B37: 20 | C37: Toyota HiAce | D37: 901 AT 07 | E37: 2020 | F37: 144000 | G37: 143847 | H37: 2023-02-06 | I37: 148000 | J37: 148997 | K37: 2023-02-27 | L37: 152000 | M37: 151236 | N37: 2023-03-17 | O37: 156000 | R37: 160000 | U37: 164000 | X37: 26 | Y37: 26 | Z37: 901 AT 07 | AA37: 168000 | AD37: 172000 | AG37: 176000 | AJ37: 180000 | AM37: 184000 | AP37: 188000 | AS37: 26 | AT37: 26 | AU37: 901 AT 07 | AV37: 192000 | AY37: 196000 | BB37: 200000 | BE37: 204000 | BH37: 208000 | BK37: 212000 | BN37: 26 | BO37: -153 | BP37: 997
A38: 27 | B38: 21 | C38: Toyota HiAce | D38: 902 AT 07 | E38: 2020 | F38: 96000 | G38: 95840 | H38: 2023-02-04 | I38: =F38+4000 -> 100000 | J38: 99797 | K38: 2023-03-07 | L38: =I38+4000 -> 104000 | O38: =L38+4000 -> 108000 | R38: 112000 | U38: 116000 | X38: 27 | Y38: 27 | Z38: 902 AT 07 | AA38: 120000 | AD38: 124000 | AG38: 128000 | AJ38: 132000 | AM38: 136000 | AP38: 140000 | AS38: 27 | AT38: 27 | AU38: 902 AT 07 | AV38: 144000 | AY38: 148000 | BB38: 152000 | BE38: 156000 | BH38: 160000 | BK38: 164000 | BN38: 27 | BO38: -160 | BP38: -203
A39: 28 | B39: 22 | C39: Toyota HiAce | D39: 903 AT 07 | E39: 2020 | F39: 132000 | G39: 131921 | H39: 2023-03-30 | I39: =F39+4000 -> 136000 | L39: 140000 | O39: 144000 | R39: 148000 | U39: 152000 | X39: 28 | Y39: 28 | Z39: 903 AT 07 | AA39: 156000 | AD39: 160000 | AG39: 164000 | AJ39: 168000 | AM39: 172000 | AP39: 176000 | AS39: 28 | AT39: 28 | AU39: 903 AT 07 | AV39: 180000 | AY39: 184000 | BB39: 188000 | BE39: 192000 | BH39: 196000 | BK39: 200000 | BN39: 28 | BO39: -79 | BP39: -136000
A40: 29 | B40: 23 | C40: Toyota HiAce | D40: 908 AT 07 | E40: 2020 | F40: 180000 | G40: 179715 | H40: 2023-03-11 | I40: =F40+4000 -> 184000 | L40: 188000 | O40: 192000 | R40: 196000 | U40: 200000 | X40: 29 | Y40: 29 | Z40: 908 AT 07 | AA40: 204000 | AD40: 208000 | AG40: 212000 | AJ40: 216000 | AM40: 220000 | AP40: 224000 | AS40: 29 | AT40: 29 | AU40: 908 AT 07 | AV40: 228000 | AY40: 232000 | BB40: 236000 | BE40: 240000 | BH40: 244000 | BK40: 248000 | BN40: 29 | BO40: -285 | BP40: -184000
A41: 30 | B41: 24 | C41: Toyota HiAce | D41: 208 AT 07 | E41: 2022 | F41: 48000 | G41: 47990 | H41: 2023-03-16 | I41: 52000 | J41: 51000 | K41: 2042-02-23 | L41: 56000 | O41: 60000 | R41: 64000 | U41: 68000 | X41: 30 | Y41: 30 | Z41: 208 AT 07 | AA41: 72000 | AD41: 76000 | AG41: 80000 | AJ41: 84000 | AM41: 88000 | AP41: 92000 | AS41: 30 | AT41: 30 | AU41: 208 AT 07 | AV41: 96000 | AY41: 100000 | BB41: 104000 | BE41: 108000 | BH41: 112000 | BK41: 116000 | BN41: 30 | BO41: -10 | BP41: -1000
A42: =OFFSET(A42,-1,0,1,1)+1 -> 31 | B42: 25 | C42: Toyota HiAce дизель | D42: 922 AU 07 | E42: 2022 | F42: 16000 | G42: 16000 | H42: 2023-03-03 | I42: =F42+2000 -> 18000 | J42: 18180 | K42: 2023-03-15 | L42: =I42+2000 -> 20000 | M42: 19957 | N42: 2023-03-23 | O42: =L42+2000 -> 22000 | R42: =O42+2000 -> 24000 | U42: =R42+2000 -> 26000 | X42: 31 | Y42: 31 | Z42: 922 AU 07 | AA42: =U42+2000 -> 28000 | AD42: =AA42+2000 -> 30000 | AG42: =AD42+2000 -> 32000 | AJ42: =AG42+2000 -> 34000 | AM42: =AJ42+2000 -> 36000 | AP42: =AM42+2000 -> 38000 | AS42: 31 | AT42: 31 | AU42: 922 AU 07 | AV42: =AP42+2000 -> 40000 | AY42: =AV42+2000 -> 42000 | BB42: =AY42+2000 -> 44000 | BE42: =BB42+2000 -> 46000 | BH42: =BE42+2000 -> 48000 | BK42: =BH42+2000 -> 50000 | BN42: 31 | BO42: 0 | BP42: 180
A43: 32 | B43: 26 | C43: Toyota HiAce | D43: 923 AU 07 | E43: 2022 | F43: 12000 | G43: 12000 | H43: 2023-01-30 | I43: =F43+4000 -> 16000 | J43: 15835 | K43: 2023-02-20 | L43: =I43+4000 -> 20000 | M43: 20199 | N43: 2023-03-16 | O43: =L43+4000 -> 24000 | R43: =O43+4000 -> 28000 | U43: =R43+4000 -> 32000 | X43: 32 | Y43: 32 | Z43: 923 AU 07 | AA43: =U43+4000 -> 36000 | AD43: =AA43+4000 -> 40000 | AG43: =AD43+4000 -> 44000 | AJ43: =AG43+4000 -> 48000 | AM43: =AJ43+4000 -> 52000 | AP43: =AM43+4000 -> 56000 | AS43: 32 | AT43: 32 | AU43: 923 AU 07 | AV43: =AP43+4000 -> 60000 | AY43: =AV43+4000 -> 64000 | BB43: =AY43+4000 -> 68000 | BE43: =BB43+4000 -> 72000 | BH43: =BE43+4000 -> 76000 | BK43: =BH43+4000 -> 80000 | BN43: 32 | BO43: 0 | BP43: -165
A44: 33 | B44: 27 | C44: Toyota HiAce | D44: 924 AU 07 | E44: 2022 | F44: 12000 | G44: 11647 | H44: 2023-02-24 | I44: =F44+4000 -> 16000 | J44: 15608 | K44: 2023-03-25 | L44: =I44+4000 -> 20000 | O44: =L44+4000 -> 24000 | R44: =O44+4000 -> 28000 | U44: =R44+4000 -> 32000 | X44: 33 | Y44: 33 | Z44: 924 AU 07 | AA44: =U44+4000 -> 36000 | AD44: =AA44+4000 -> 40000 | AG44: =AD44+4000 -> 44000 | AJ44: =AG44+4000 -> 48000 | AM44: =AJ44+4000 -> 52000 | AP44: =AM44+4000 -> 56000 | AS44: 33 | AT44: 33 | AU44: 924 AU 07 | AV44: =AP44+4000 -> 60000 | AY44: =AV44+4000 -> 64000 | BB44: =AY44+4000 -> 68000 | BE44: =BB44+4000 -> 72000 | BH44: =BE44+4000 -> 76000 | BK44: =BH44+4000 -> 80000 | BN44: 33 | BO44: -353 | BP44: -392
A45: 34 | B45: 28 | C45: Toyota HiAce | D45: 925 AU 07 | E45: 2022 | F45: 12000 | G45: 11634 | H45: 2023-03-10 | I45: 16000 | L45: 20000 | O45: 24000 | R45: 28000 | U45: 32000 | X45: 34 | Y45: 34 | Z45: 925 AU 07 | AA45: 36000 | AD45: 40000 | AG45: 44000 | AJ45: 48000 | AM45: 52000 | AP45: 56000 | AS45: 34 | AT45: 34 | AU45: 925 AU 07 | AV45: 60000 | AY45: 64000 | BB45: 68000 | BE45: 72000 | BH45: 76000 | BK45: 80000 | BN45: 34 | BO45: -366 | BP45: -16000
A46: 35 | B46: 29 | C46: Toyota HiAce | D46: 926 AU 07 | E46: 2022 | F46: 12000 | G46: 11549 | H46: 2023-02-24 | I46: 16000 | J46: 16000 | K46: 2023-03-28 | L46: 20000 | O46: 24000 | R46: 28000 | U46: 32000 | X46: 35 | Y46: 35 | Z46: 926 AU 07 | AA46: 36000 | AD46: 40000 | AG46: 44000 | AJ46: 48000 | AM46: 52000 | AP46: 56000 | AS46: 35 | AT46: 35 | AU46: 926 AU 07 | AV46: 60000 | AY46: 64000 | BB46: 68000 | BE46: 72000 | BH46: 76000 | BK46: 80000 | BN46: 35 | BO46: -451 | BP46: 0
A47: =OFFSET(A47,-1,0,1,1)+1 -> 36 | B47: =OFFSET(B47,-1,0,1,1)+1 -> 30 | C47: Toyota HiAce дизель | D47: 927 AU 07 | E47: 2022 | F47: 16000 | G47: 16000 | H47: 2023-03-11 | I47: =F47+2000 -> 18000 | J47: 17351 | K47: 18.03,.23 | L47: =I47+2000 -> 20000 | M47: 19839 | N47: 2023-04-02 | O47: =L47+2000 -> 22000 | R47: =O47+2000 -> 24000 | U47: =R47+2000 -> 26000 | X47: 36 | Y47: 36 | Z47: 927 AU 07 | AA47: =U47+2000 -> 28000 | AD47: =AA47+2000 -> 30000 | AG47: =AD47+2000 -> 32000 | AJ47: =AG47+2000 -> 34000 | AM47: =AJ47+2000 -> 36000 | AP47: =AM47+2000 -> 38000 | AS47: 36 | AT47: 36 | AU47: 927 AU 07 | AV47: =AP47+2000 -> 40000 | AY47: =AV47+2000 -> 42000 | BB47: =AY47+2000 -> 44000 | BE47: =BB47+2000 -> 46000 | BH47: =BE47+2000 -> 48000 | BK47: =BH47+2000 -> 50000 | BN47: 36 | BO47: =G47-F47 -> 0 | BP47: =J47-I47 -> -649
A48: 37 | B48: 31 | C48: Toyota HiAce | D48: 928 AU 07 | E48: 2022 | F48: 24000 | G48: 24069 | H48: 15.03,23 | I48: 28000 | J48: 27926 | K48: 2023-03-31 | L48: 32000 | O48: 36000 | R48: 40000 | U48: 44000 | X48: 37 | Y48: 37 | Z48: 928 AU 07 | AA48: 48000 | AD48: 52000 | AG48: 56000 | AJ48: 60000 | AM48: 64000 | AP48: 68000 | AS48: 37 | AT48: 37 | AU48: 928 AU 07 | AV48: 72000 | AY48: 76000 | BB48: 80000 | BE48: 84000 | BH48: 88000 | BK48: 92000 | BN48: 37 | BO48: 69 | BP48: -74
A49: 38 | B49: 32 | C49: Toyota HiAce | D49: 956 AU 07 | E49: 2022 | F49: 0 | I49: 4000 | J49: 3773 | K49: 2023-02-07 | L49: 8000 | M49: 7609 | N49: 2023-03-20 | O49: 12000 | R49: 16000 | U49: 20000 | X49: 38 | Y49: 38 | Z49: 956 AU 07 | AA49: 24000 | AD49: 28000 | AG49: 32000 | AJ49: 36000 | AM49: 40000 | AP49: 44000 | AS49: 38 | AT49: 38 | AU49: 956 AU 07 | AV49: 48000 | AY49: 52000 | BB49: 56000 | BE49: 60000 | BH49: 64000 | BK49: 68000 | BN49: 38 | BO49: =G49-F49 -> 0 | BP49: =J49-I49 -> -227
A50: 39 | B50: 33 | C50: Toyota HiAce | D50: 964 AU 07 | E50: 2022 | F50: 24000 | G50: 23922 | H50: 30,03,23 | I50: 28000 | J50: 16340 | K50: 2023-02-27 | L50: 32000 | M50: 20111 | N50: 2023-03-16 | O50: 36000 | R50: 40000 | U50: 44000 | X50: 39 | Y50: 39 | Z50: 964 AU 07 | AA50: 48000 | AD50: 52000 | AG50: 56000 | AJ50: 60000 | AM50: 64000 | AP50: 68000 | AS50: 39 | AT50: 39 | AU50: 964 AU 07 | AV50: 72000 | AY50: 76000 | BB50: 80000 | BE50: 84000 | BH50: 88000 | BK50: 92000 | BN50: 39 | BO50: -78 | BP50: -11660
A51: 40 | B51: 34 | C51: Toyota HiAce | D51: 982 AU 07 | E51: 2022 | F51: 0 | I51: =F51+4000 -> 4000 | J51: 3700 | K51: 2023-01-26 | L51: 8000 | M51: 7960 | N51: 03,03,23 | O51: 12000 | R51: 16000 | U51: 20000 | X51: 40 | Y51: 40 | Z51: 982 AU 07 | AA51: 24000 | AD51: 28000 | AG51: 32000 | AJ51: 36000 | AM51: 40000 | AP51: 44000 | AS51: 40 | AT51: 40 | AU51: 982 AU 07 | AV51: 48000 | AY51: 52000 | BB51: 56000 | BE51: 60000 | BH51: 64000 | BK51: 68000 | BN51: 40 | BO51: 0 | BP51: -300
A52: 41 | B52: 35 | C52: Toyota HiAce | D52: 984 AU 07 | E52: 2022 | F52: 0 | I52: 4000 | J52: 3841 | K52: 03,02,23 | L52: 8000 | M52: 7915 | N52: 15,03,23 | O52: 12000 | R52: 16000 | U52: 20000 | X52: 41 | Y52: 41 | Z52: 984 AU 07 | AA52: 24000 | AD52: 28000 | AG52: 32000 | AJ52: 36000 | AM52: 40000 | AP52: 44000 | AS52: 41 | AT52: 41 | AU52: 984 AU 07 | AV52: 48000 | AY52: 52000 | BB52: 56000 | BE52: 60000 | BH52: 64000 | BK52: 68000 | BN52: 41 | BO52: 0 | BP52: -159
A53: 42 | B53: 36 | C53: Toyota HiAce | D53: 990 AU 07 | E53: 2022 | F53: 0 | I53: =F53+4000 -> 4000 | L53: =I53+4000 -> 8000 | O53: =L53+4000 -> 12000 | R53: =O53+4000 -> 16000 | U53: =R53+4000 -> 20000 | X53: 42 | Y53: 42 | Z53: 990 AU 07 | AA53: =U53+4000 -> 24000 | AD53: =AA53+4000 -> 28000 | AG53: =AD53+4000 -> 32000 | AJ53: =AG53+4000 -> 36000 | AM53: =AJ53+4000 -> 40000 | AP53: =AM53+4000 -> 44000 | AS53: 42 | AT53: 42 | AU53: 990 AU 07 | AV53: =AP53+4000 -> 48000 | AY53: =AV53+4000 -> 52000 | BB53: =AY53+4000 -> 56000 | BE53: =BB53+4000 -> 60000 | BH53: =BE53+4000 -> 64000 | BK53: =BH53+4000 -> 68000 | BN53: 42 | BO53: 0
A54: 43 | B54: 37 | C54: Toyota HiAce | D54: 017 AV 07 | E54: 2022 | F54: 0 | I54: 4000 | L54: 8000 | O54: 12000 | R54: 16000 | U54: 20000 | X54: 43 | Y54: 43 | Z54: 017 AV 07 | AA54: 24000 | AD54: 28000 | AG54: 32000 | AJ54: 36000 | AM54: 40000 | AP54: 44000 | AS54: 43 | AT54: 43 | AU54: 017 AV 07 | AV54: 48000 | AY54: 52000 | BB54: 56000 | BE54: 60000 | BH54: 64000 | BK54: 68000 | BN54: 43 | BO54: 0
A55: 44 | B55: 1 | C55: УАЗ-220695-04 | D55: 324 АТ 07 | E55: 2022 | F55: 36000 | G55: 35800 | H55: 30,01,23 | I55: =F55+4000 -> 40000 | J55: 39898 | K55: 03,03,23 | L55: =I55+4000 -> 44000 | M55: 43643 | N55: 02,04,23 | O55: 48000 | R55: 52000 | U55: 56000 | X55: 44 | Y55: 44 | Z55: 324 АТ 07 | AA55: 60000 | AD55: 64000 | AG55: 68000 | AJ55: 72000 | AM55: 76000 | AP55: 80000 | AS55: 44 | AT55: 44 | AU55: 324 АТ 07 | AV55: 84000 | AY55: 88000 | BB55: 92000 | BE55: 96000 | BH55: 100000 | BK55: =BH55+4000 -> 104000 | BN55: 44 | BO55: -200 | BP55: -102
A56: 45 | B56: =OFFSET(B56,-1,0,1,1)+1 -> 2 | C56: УАЗ-220695-04 | D56: 354 АТ 07 | E56: 2022 | F56: 45000 | G56: 44737 | H56: 07,03,23 | I56: =F56+4000 -> 49000 | L56: 53000 | O56: 57000 | R56: 61000 | U56: 65000 | X56: 45 | Y56: 45 | Z56: 354 АТ 07 | AA56: =U56+4000 -> 69000 | AD56: 73000 | AG56: 77000 | AJ56: 81000 | AM56: 85000 | AP56: 89000 | AS56: 45 | AT56: 45 | AU56: 354 АТ 07 | AV56: 93000 | AY56: 97000 | BB56: 101000 | BE56: 105000 | BH56: 109000 | BK56: 113000 | BN56: 45 | BO56: -263 | BP56: -49000
A57: 46 | B57: =OFFSET(B57,-1,0,1,1)+1 -> 3 | C57: УАЗ-220695-04 | D57: 360 АТ 07 | E57: 2022 | F57: 60000 | G57: 59805 | H57: 11,03,23 | I57: 64000 | L57: 68000 | O57: 72000 | R57: 76000 | U57: 80000 | X57: 46 | Y57: 46 | Z57: 360 АТ 07 | AA57: =U57+4000 -> 84000 | AD57: =AA57+4000 -> 88000 | AG57: 92000 | AJ57: 96000 | AM57: 100000 | AP57: 104000 | AS57: 46 | AT57: 46 | AU57: 360 АТ 07 | AV57: 108000 | AY57: 112000 | BB57: 116000 | BE57: 120000 | BH57: 124000 | BK57: 128000 | BN57: 46 | BO57: -195 | BP57: -64000
A58: =OFFSET(A58,-1,0,1,1)+1 -> 47 | B58: 4 | C58: УАЗ-220695-04 | D58: 361 АТ 07 | E58: 2022 | F58: 36000 | G58: 35633 | H58: 15,01,23 | I58: 40000 | J58: 40000 | K58: 15,02,23 | L58: 44000 | M58: 43855 | N58: 24,03,23 | O58: 48000 | R58: 52000 | U58: 56000 | X58: 47 | Y58: 47 | Z58: 361 АТ 07 | AA58: 60000 | AD58: =AA58+4000 -> 64000 | AG58: 68000 | AJ58: 72000 | AM58: 76000 | AP58: 80000 | AS58: 47 | AT58: 47 | AU58: 361 АТ 07 | AV58: =AP58+4000 -> 84000 | AY58: 88000 | BB58: 92000 | BE58: 96000 | BH58: 100000 | BK58: 104000 | BN58: 47 | BO58: -367 | BP58: 0
A59: 48 | B59: 5 | C59: УАЗ-220695-04 | D59: 362 АТ 07 | E59: 2022 | F59: 36000 | G59: 35600 | H59: 18,01,23 | I59: 40000 | J59: 39825 | K59: 20,02,23 | L59: 44000 | M59: 43786 | N59: 31,03,23 | O59: 48000 | R59: 52000 | U59: 56000 | X59: 48 | Y59: 48 | Z59: 362 АТ 07 | AA59: 60000 | AD59: 64000 | AG59: 68000 | AJ59: 72000 | AM59: 76000 | AP59: 80000 | AS59: 48 | AT59: 48 | AU59: 362 АТ 07 | AV59: =AP59+4000 -> 84000 | AY59: =AV59+4000 -> 88000 | BB59: 92000 | BE59: 96000 | BH59: 100000 | BK59: 104000 | BN59: 48 | BO59: -400 | BP59: -175

Sheet Автобусы
A1: TRUE | B1: Подсветка строки | C1: Вкл
B2: Наименование | C2: Гос. | D2: Год | E2: Показания одометра | H2: Показания одометра | K2: Показания одометра | N2: Показания одометра | Q2: Показания одометра | T2: Показания одометра | Y2: Гос. | Z2: Показания одометра | AC2: Показания одометра | AF2: Показания одометра | AI2: Показания одометра | AL2: Показания одометра | AO2: Показания одометра | AR2: Показания одометра | AU2: Показания одометра | AX2: Показания одометра | BC2: Гос. | BD2: Показания одометра | BG2: Показания одометра | BJ2: Показания одометра | BM2: Показания одометра | BP2: Показания одометра | BS2: Показания одометра | BV2: Показания одометра | BY2: Показания одометра | CB2: Показания одометра
A3: № | B3: и краткая | C3: номер | D3: выпуска | E3: ТО-2 | F3: ТО-2 | G3: Дата | H3: 1ТО-1 | I3: 1ТО-1 | J3: Дата | K3: 2ТО-1 | L3: 2ТО-1 | M3: Дата | N3: ТО-2 | O3: ТО-2 | P3: Дата | Q3: 1ТО-1 | R3: 1ТО-1 | S3: Дата | T3: 2ТО-1 | U3: 2ТО-1 | V3: Дата | W3: № | X3: № | Y3: номер | Z3: ТО-2 | AA3: ТО-2 | AB3: Дата | AC3: ТО-1 | AD3: ТО-1 | AE3: Дата | AF3: 2ТО-1 | AG3: 2ТО-1 | AH3: Дата | AI3: ТО-2 | AJ3: ТО-2 | AK3: Дата | AL3: ТО-1 | AM3: ТО-1 | AN3: Дата | AO3: 2ТО-1 | AP3: 2ТО-1 | AQ3: Дата | AR3: ТО-2 | AS3: ТО-2 | AT3: Дата | AU3: ТО-1 | AV3: ТО-1 | AW3: Дата | AX3: 2ТО-1 | AY3: 2ТО-1 | AZ3: Дата | BA3: № | BB3: № | BC3: номер | BD3: ТО-2 | BE3: ТО-2 | BF3: Дата | BG3: ТО-1 | BH3: ТО-1 | BI3: Дата | BJ3: 2ТО-1 | BK3: 2ТО-1 | BL3: Дата | BM3: ТО-2 | BN3: ТО-2 | BO3: Дата | BP3: ТО-1 | BQ3: ТО-1 | BR3: Дата | BS3: 2ТО-1 | BT3: 2ТО-1 | BU3: Дата | BV3: ТО-2 | BW3: ТО-2 | BX3: Дата | BY3: ТО-1 | BZ3: ТО-1 | CA3: Дата | CB3: 2ТО-1 | CC3: 2ТО-1 | CD3: Дата | CE3: № | CF3: ТО-2 | CG3: ТО-1
A4: п/п | B4: характеристика | E4: по плану | F4: по факту | G4: провед. | H4: по плану | I4: по факту | J4: провед. | K4: по плану | L4: по факту | M4: провед. | N4: по плану | O4: по факту | P4: провед. | Q4: по плану | R4: по факту | S4: провед. | T4: по плану | U4: по факту | V4: провед. | W4: п/п | X4: п/п | Z4: по плану | AA4: по факту | AB4: провед. | AC4: по плану | AD4: по факту | AE4: провед. | AF4: по плану | AG4: по факту | AH4: провед. | AI4: по плану | AJ4: по факту | AK4: провед. | AL4: по плану | AM4: по факту | AN4: провед. | AO4: по плану | AP4: по факту | AQ4: провед. | AR4: по плану | AS4: по факту | AT4: провед. | AU4: по плану | AV4: по факту | AW4: провед. | AX4: по плану | AY4: по факту | AZ4: провед. | BA4: п/п | BB4: п/п | BD4: по плану | BE4: по факту | BF4: провед. | BG4: по плану | BH4: по факту | BI4: провед. | BJ4: по плану | BK4: по факту | BL4: провед. | BM4: по плану | BN4: по факту | BO4: провед. | BP4: по плану | BQ4: по факту | BR4: провед. | BS4: по плану | BT4: по факту | BU4: провед. | BV4: по плану | BW4: по факту | BX4: провед. | BY4: по плану | BZ4: по факту | CA4: провед. | CB4: по плану | CC4: по факту | CD4: провед. | CE4: п/п
B5: Автобусы иностранного производства
A7: Легковые автомобили иностранного производства период проведения ТО-1 4000 км.
A8: 1 | B8: Toyota Land Cruiser | C8: 100 OO 07 | D8: 2019 | E8: 172000 | F8: 173000 | G8: 2022-11-14 | H8: =E8+4000 -> 176000 | K8: =H8+4000 -> 180000 | N8: =K8+4000 -> 184000 | Q8: =N8+4000 -> 188000 | T8: =Q8+4000 -> 192000 | W8: 1 | X8: 1 | Y8: 100 OO 07 | Z8: =T8+4000 -> 196000 | AC8: =Z8+4000 -> 200000 | AF8: =AC8+4000 -> 204000 | AI8: =AF8+4000 -> 208000 | AL8: =AI8+4000 -> 212000 | AO8: =AL8+4000 -> 216000 | AR8: =AO8+4000 -> 220000 | AU8: =AR8+4000 -> 224000 | AX8: =AU8+4000 -> 228000 | BA8: 1 | BB8: 1 | BC8: 100 OO 07 | BD8: =AX8+4000 -> 232000 | BG8: =BD8+4000 -> 236000 | BJ8: =BG8+4000 -> 240000 | BM8: =BJ8+4000 -> 244000 | BP8: =BM8+4000 -> 248000 | BS8: =BP8+4000 -> 252000 | BV8: =BS8+4000 -> 256000 | BY8: =BV8+4000 -> 260000 | CB8: =BY8+4000 -> 264000 | CE8: 1 | CF8: =F8-E8 -> 1000
A9: 2 | B9: Toyota Land Cruiser | C9: L 999 AU | D9: 2005 | E9: 749000 | F9: 749000 | G9: 2022-11-04 | H9: =E9+4000 -> 753000 | I9: 752617 | J9: 2022-11-24 | K9: =H9+4000 -> 757000 | L9: 756810 | M9: 2022-12-29 | N9: =K9+4000 -> 761000 | Q9: =N9+4000 -> 765000 | T9: =Q9+4000 -> 769000 | W9: 2 | X9: 2 | Y9: L 999 AU | Z9: =T9+4000 -> 773000 | AC9: =Z9+4000 -> 777000 | AF9: =AC9+4000 -> 781000 | AI9: =AF9+4000 -> 785000 | AL9: =AI9+4000 -> 789000 | AO9: =AL9+4000 -> 793000 | AR9: =AO9+4000 -> 797000 | AU9: =AR9+4000 -> 801000 | AX9: =AU9+4000 -> 805000 | BA9: 2 | BB9: 2 | BC9: L 999 AU | BD9: =AX9+4000 -> 809000 | BG9: =BD9+4000 -> 813000 | BJ9: =BG9+4000 -> 817000 | BM9: =BJ9+4000 -> 821000 | BP9: =BM9+4000 -> 825000 | BS9: =BP9+4000 -> 829000 | BV9: =BS9+4000 -> 833000 | BY9: =BV9+4000 -> 837000 | CB9: =BY9+4000 -> 841000 | CE9: 2
A10: 3 | B10: Toyota Land Cruiser | C10: 936 AQ 07 | D10: 2010 | E10: 938000 | F10: 939000 | G10: 2022-12-22 | H10: 942000 | I10: 942185 | J10: 2022-12-29 | K10: 946000 | N10: 950000 | Q10: 954000 | T10: 958000 | W10: 3 | X10: 3 | Y10: 936 AQ 07 | Z10: 962000 | AC10: 966000 | AF10: 970000 | AI10: 974000 | AL10: 978000 | AO10: 982000 | AR10: 986000 | AU10: 990000 | AX10: 994000 | BA10: 3 | BB10: 3 | BC10: 936 AQ 07 | BD10: 998000 | BG10: 1002000 | BJ10: 1006000 | BM10: 1010000 | BP10: 1014000 | BS10: 1018000 | BV10: 1022000 | BY10: 1026000 | CB10: 1030000 | CE10: 3
A11: 4 | B11: Mercedes Benz Intоurо 0560 | C11: L 540 AT | D11: 2001 | E11: 929000 | F11: 929008 | G11: 2015-04-20 | H11: 933000 | K11: 937000 | N11: 941000 | Q11: 945000 | T11: 949000 | W11: 4 | X11: 4 | Y11: L 540 AT | Z11: 953000 | AC11: 957000 | AF11: 961000 | AI11: 965000 | AL11: 969000 | AO11: 973000 | AR11: 977000 | AU11: 981000 | AX11: 985000 | BA11: 4 | BB11: 4 | BC11: L 540 AT | BD11: 989000 | BG11: 993000 | BJ11: 997000 | BM11: 1001000 | BP11: 1005000 | BS11: 1009000 | BV11: 1013000 | BY11: 1017000 | CB11: 1021000 | CE11: 4
A12: 5 | B12: Mercedes Benz Intоurо 0560 | C12: L 541 AT | D12: 2001 | E12: 836000 | H12: 840000 | K12: 844000 | N12: 848000 | Q12: 852000 | T12: 856000 | W12: 5 | X12: 5 | Y12: L 541 AT | Z12: 860000 | AC12: 864000 | AF12: 868000 | AI12: 872000 | AL12: 876000 | AO12: 880000 | AR12: 884000 | AU12: 888000 | AX12: 892000 | BA12: 5 | BB12: 5 | BC12: L 541 AT | BD12: 896000 | BG12: 900000 | BJ12: 904000 | BM12: 908000 | BP12: 912000 | BS12: 916000 | BV12: 920000 | BY12: 924000 | CB12: 928000 | CE12: 5
A13: 6 | B13: ГолАЗ 5291 | C13: L 511 AХ | D13: 2003 | E13: 414000 | F13: 415000 | G13: 2016-10-18 | H13: 418000 | K13: 422000 | L13: 421779 | M13: 2016-11-22 | N13: 426000 | Q13: 430000 | T13: 434000 | W13: 6 | X13: 6 | Y13: L 511 AХ | Z13: 438000 | AC13: 442000 | AF13: 446000 | AI13: 450000 | AL13: 454000 | AO13: 458000 | AR13: 462000 | AU13: 466000 | AX13: 470000 | BA13: 6 | BB13: 6 | BC13: L 511 AХ | BD13: 474000 | BG13: 478000 | BJ13: 482000 | BM13: 486000 | BP13: 490000 | BS13: 494000 | BV13: 498000 | BY13: 502000 | CB13: 506000 | CE13: 6
A14: 7 | B14: Toyota Coaster | C14: L 066 BЕ | D14: 2008 | E14: 544000 | F14: 544280 | G14: 2022-10-02 | H14: =E14+4000 -> 548000 | I14: 548485 | J14: 2022-10-19 | K14: =H14+4000 -> 552000 | L14: 552027 | M14: 2022-11-04 | N14: =K14+4000 -> 556000 | Q14: 560000 | T14: 564000 | W14: 7 | X14: 7 | Y14: L 066 BЕ | Z14: =T14+4000 -> 568000 | AC14: 572000 | AF14: 576000 | AI14: 580000 | AL14: 584000 | AO14: 588000 | AR14: 592000 | AU14: 596000 | AX14: 600000 | BA14: 7 | BB14: 7 | BC14: L 066 BЕ | BD14: 604000 | BG14: 608000 | BJ14: 612000 | BM14: 616000 | BP14: 620000 | BS14: 624000 | BV14: 628000 | BY14: 632000 | CB14: 636000 | CE14: 7
A15: 8 | B15: Toyota Coaster | C15: L 068 BЕ | D15: 2008 | E15: 62000 | F15: 62231 | G15: 2023-01-03 | H15: 66000 | K15: =H15+4000 -> 70000 | N15: 74000 | Q15: 78000 | T15: 82000 | W15: 8 | X15: 8 | Y15: L 068 BЕ | Z15: 86000 | AC15: 90000 | AF15: 94000 | AI15: 98000 | AL15: 102000 | AO15: 106000 | AR15: 110000 | AU15: 114000 | AX15: 118000 | BA15: 8 | BB15: 8 | BC15: L 068 BЕ | BD15: 122000 | BG15: 126000 | BJ15: 130000 | BM15: 134000 | BP15: 138000 | BS15: 142000 | BV15: 146000 | BY15: 150000 | CB15: 154000 | CE15: 8
A16: 9 | B16: Toyota Coaster | C16: L 072 BЕ | D16: 2008 | E16: 940000 | F16: н/р | G16: 2022-12-14 | H16: 944000 | K16: 948000 | N16: 952000 | Q16: 956000 | T16: 960000 | W16: 9 | X16: 9 | Y16: L 072 BЕ | Z16: 964000 | AC16: 968000 | AF16: 972000 | AI16: 976000 | AL16: 980000 | AO16: 984000 | AR16: 988000 | AU16: 992000 | AX16: 996000 | BA16: 9 | BB16: 9 | BC16: L 072 BЕ | BD16: 1000000 | BG16: 1004000 | BJ16: 1008000 | BM16: 1012000 | BP16: 1016000 | BS16: 1020000 | BV16: 1024000 | BY16: 1028000 | CB16: 1032000 | CE16: 9
A17: 10 | B17: Toyota Coaster | C17: L 419 BM | D17: 2010 | E17: 828000 | F17: 827602 | G17: 2022-12-13 | H17: 832000 | K17: 836000 | N17: 840000 | Q17: 844000 | T17: 848000 | W17: 10 | X17: 10 | Y17: L 419 BM | Z17: 852000 | AC17: 856000 | AF17: 860000 | AI17: 864000 | AL17: 868000 | AO17: 872000 | AR17: 876000 | AU17: 880000 | AX17: 884000 | BA17: 10 | BB17: 10 | BC17: L 419 BM | BD17: 888000 | BG17: 892000 | BJ17: 896000 | BM17: 900000 | BP17: 904000 | BS17: 908000 | BV17: 912000 | BY17: 916000 | CB17: 920000 | CE17: 10
A18: 11 | B18: Toyota Coaster | C18: L 428 BM | D18: 2010 | E18: 848000 | F18: 848239 | G18: 2022-12-09 | H18: 852000 | I18: 852300 | J18: 2022-12-22 | K18: 856000 | N18: 860000 | Q18: 864000 | T18: 868000 | W18: 11 | X18: 11 | Y18: L 428 BM | Z18: 872000 | AC18: 876000 | AF18: 880000 | AI18: 884000 | AL18: 888000 | AO18: 892000 | AR18: 896000 | AU18: 900000 | AX18: 904000 | BA18: 11 | BB18: 11 | BC18: L 428 BM | BD18: 908000 | BG18: 912000 | BJ18: 916000 | BM18: 920000 | BP18: 924000 | BS18: 928000 | BV18: 932000 | BY18: 936000 | CB18: 940000 | CE18: 11
A19: 12 | B19: Toyota Coaster | C19: L 443 BM | D19: 2010 | E19: 84000 | F19: 84156 | G19: 2022-12-29 | H19: 88000 | K19: 92000 | N19: 96000 | Q19: 100000 | T19: 104000 | W19: 12 | X19: 12 | Y19: L 443 BM | Z19: 108000 | AC19: 112000 | AF19: 116000 | AI19: 120000 | AL19: 124000 | AO19: 128000 | AR19: 132000 | AU19: 136000 | AX19: 140000 | BA19: 12 | BB19: 12 | BC19: L 443 BM | BD19: 144000 | BG19: 148000 | BJ19: 152000 | BM19: 156000 | BP19: 160000 | BS19: 164000 | BV19: 168000 | BY19: 172000 | CB19: 176000 | CE19: 12
A20: 13 | B20: Toyota Coaster | C20: 506 AA 07 | D20: 2013 | E20: 456000 | F20: 456294 | G20: 2022-12-17 | H20: 460000 | K20: 464000 | N20: 468000 | Q20: 472000 | T20: 476000 | W20: 13 | X20: 13 | Y20: 506 AA 07 | Z20: 480000 | AC20: 484000 | AF20: 488000 | AI20: 492000 | AL20: 496000 | AO20: 500000 | AR20: 504000 | AU20: 508000 | AX20: 512000 | BA20: 13 | BB20: 13 | BC20: 506 AA 07 | BD20: 516000 | BG20: 520000 | BJ20: 524000 | BM20: 528000 | BP20: 532000 | BS20: 536000 | BV20: 540000 | BY20: 544000 | CB20: 548000 | CE20: 13
A21: 14 | B21: Toyota Coaster | C21: 507 AA 07 | D21: 2013 | E21: 496000 | F21: 496272 | G21: 15,03,23 | H21: 500000 | I21: 500000 | J21: 28,03,23 | K21: 504000 | N21: 508000 | Q21: 512000 | T21: 516000 | W21: 14 | X21: 14 | Y21: 507 AA 07 | Z21: 520000 | AC21: 524000 | AF21: 528000 | AI21: 532000 | AL21: 536000 | AO21: 540000 | AR21: 544000 | AU21: 548000 | AX21: 552000 | BA21: 14 | BB21: 14 | BC21: 507 AA 07 | BD21: 556000 | BG21: 560000 | BJ21: 564000 | BM21: 568000 | BP21: 572000 | BS21: 576000 | BV21: 580000 | BY21: 584000 | CB21: 588000 | CE21: 14
A22: 15 | B22: Toyota Coaster | C22: 512 AA 07 | D22: 2013 | E22: 528000 | F22: 528292 | G22: 2022-11-28 | H22: 532000 | I22: 531889 | J22: 2022-12-09 | K22: 536000 | L22: 536281 | M22: 2022-12-26 | N22: 540000 | Q22: 544000 | T22: 548000 | W22: 15 | X22: 15 | Y22: 512 AA 07 | Z22: 552000 | AC22: 556000 | AF22: 560000 | AI22: 564000 | AL22: 568000 | AO22: 572000 | AR22: 576000 | AU22: 580000 | AX22: 584000 | BA22: 15 | BB22: 15 | BC22: 512 AA 07 | BD22: 588000 | BG22: 592000 | BJ22: 596000 | BM22: 600000 | BP22: 604000 | BS22: 608000 | BV22: 612000 | BY22: 616000 | CB22: 620000 | CE22: 15
A23: 16 | B23: Toyota Coaster | C23: 513 AA 07 | D23: 2013 | E23: 223000 | F23: 222945 | G23: 2022-10-27 | H23: 227000 | I23: 227113 | J23: 2022-11-20 | K23: 231000 | L23: 230723 | M23: 2022-12-09 | N23: 235000 | Q23: 239000 | T23: 243000 | W23: 16 | X23: 16 | Y23: 513 AA 07 | Z23: 247000 | AC23: 251000 | AF23: 255000 | AI23: 259000 | AL23: 263000 | AO23: 267000 | AR23: 271000 | AU23: 275000 | AX23: 279000 | BA23: 16 | BB23: 16 | BC23: 513 AA 07 | BD23: 283000 | BG23: 287000 | BJ23: 291000 | BM23: 295000 | BP23: 299000 | BS23: 303000 | BV23: 307000 | BY23: 311000 | CB23: 315000 | CE23: 16
A24: 17 | B24: Toyota Coaster | C24: 514 AA 07 | D24: 2013 | E24: 436000 | F24: 436148 | G24: 03,03,23 | H24: 440000 | K24: 444000 | L24: 443000 | M24: 24,03,23 | N24: 448000 | Q24: 452000 | T24: 456000 | W24: 17 | X24: 17 | Y24: 514 AA 07 | Z24: 460000 | AC24: 464000 | AF24: 468000 | AI24: 472000 | AL24: 476000 | AO24: 480000 | AR24: 484000 | AU24: 488000 | AX24: 492000 | BA24: 17 | BB24: 17 | BC24: 514 AA 07 | BD24: 496000 | BG24: 500000 | BJ24: 504000 | BM24: 508000 | BP24: 512000 | BS24: 516000 | BV24: 520000 | BY24: 524000 | CB24: 528000 | CE24: 17
A25: 18 | B25: Toyota Coaster | C25: 518 AA 07 | D25: 2013 | E25: 408000 | F25: 409000 | G25: 03,03,23 | H25: 412000 | I25: 411925 | J25: 11,03,23 | K25: 416000 | L25: 416034 | M25: 23,03,23 | N25: 420000 | Q25: 424000 | T25: 428000 | W25: 18 | X25: 18 | Y25: 518 AA 07 | Z25: 432000 | AC25: 436000 | AF25: 440000 | AI25: 444000 | AL25: 448000 | AO25: 452000 | AR25: 456000 | AU25: 460000 | AX25: 464000 | BA25: 18 | BB25: 18 | BC25: 518 AA 07 | BD25: 468000 | BG25: 472000 | BJ25: 476000 | BM25: 480000 | BP25: 484000 | BS25: 488000 | BV25: 492000 | BY25: 496000 | CB25: 500000 | CE25: 18
A26: 19 | B26: Toyota Coaster | C26: L 532 BM | D26: 2010 | E26: 844000 | F26: 845000 | G26: 2022-12-22 | H26: 848000 | I26: 848310 | J26: 2022-12-29 | K26: 852000 | N26: 856000 | Q26: 860000 | T26: 864000 | W26: 19 | X26: 19 | Y26: L532 BM | Z26: 868000 | AC26: 872000 | AF26: 876000 | AI26: 880000 | AL26: 884000 | AO26: 888000 | AR26: 892000 | AU26: 896000 | AX26: 900000 | BA26: 19 | BB26: 19 | BC26: L532 BM | BD26: 904000 | BG26: 908000 | BJ26: 912000 | BM26: 916000 | BP26: 920000 | BS26: 924000 | BV26: 928000 | BY26: 932000 | CB26: 936000 | CE26: 19
A27: 20 | B27: Toyota Coaster | C27: L 581 AR | D27: 2004 | E27: 368000 | F27: 368464 | G27: 2019-09-19 | H27: 372000 | I27: 372494 | J27: 2019-10-05 | K27: =H27+4000 -> 376000 | N27: 380000 | Q27: 384000 | T27: 388000 | W27: 20 | X27: 20 | Y27: L 581 AR | Z27: 392000 | AC27: 396000 | AF27: 400000 | AI27: 404000 | AL27: 408000 | AO27: 412000 | AR27: 416000 | AU27: 420000 | AX27: 424000 | BA27: 20 | BB27: 20 | BC27: L 581 AR | BD27: 428000 | BG27: 432000 | BJ27: 436000 | BM27: 440000 | BP27: 444000 | BS27: 448000 | BV27: 452000 | BY27: 456000 | CB27: 460000 | CE27: 20
A28: 21 | B28: Toyota Coaster | C28: L 582 AR | D28: 2004 | E28: 476000 | F28: 476680 | G28: 2019-02-14 | H28: 480000 | I28: 479914 | J28: 2020-09-15 | K28: =H28+4000 -> 484000 | N28: 488000 | Q28: 492000 | T28: 496000 | W28: 21 | X28: 21 | Y28: L 582 AR | Z28: 500000 | AC28: 504000 | AF28: 508000 | AI28: 512000 | AL28: 516000 | AO28: 520000 | AR28: 524000 | AU28: 528000 | AX28: 532000 | BA28: 21 | BB28: 21 | BC28: L 582 AR | BD28: 536000 | BG28: 540000 | BJ28: 544000 | BM28: 548000 | BP28: 552000 | BS28: 556000 | BV28: 560000 | BY28: 564000 | CB28: 568000 | CE28: 21
A29: 22 | B29: Toyota Coaster | C29: L 587 AR | D29: 2004 | E29: 472000 | F29: 47237 | G29: 2019-01-27 | H29: 476000 | I29: 476000 | J29: 2019-09-19 | K29: 480000 | N29: 484000 | Q29: 488000 | T29: 492000 | W29: 22 | X29: 22 | Y29: L 587 AR | Z29: 496000 | AC29: 500000 | AF29: 504000 | AI29: 508000 | AL29: 512000 | AO29: 516000 | AR29: 520000 | AU29: 524000 | AX29: 528000 | BA29: 22 | BB29: 22 | BC29: L 587 AR | BD29: 532000 | BG29: 536000 | BJ29: 540000 | BM29: 544000 | BP29: 548000 | BS29: 552000 | BV29: 556000 | BY29: 560000 | CB29: 564000 | CE29: 22
A30: 23 | B30: Toyota Coaster | C30: 231 AT 07 | D30: 2010 | E30: 916000 | F30: 916253 | G30: 2022-12-25 | H30: 920000 | K30: 924000 | N30: 928000 | Q30: 932000 | T30: 936000 | W30: 23 | X30: 23 | Y30: 231 AT 07 | Z30: 940000 | AC30: 944000 | AF30: 948000 | AI30: 952000 | AL30: 956000 | AO30: 960000 | AR30: 964000 | AU30: 968000 | AX30: 972000 | BA30: 23 | BB30: 23 | BC30: 231 AT 07 | BD30: 976000 | BG30: 980000 | BJ30: =BG30+4000 -> 984000 | BM30: 988000 | BP30: 992000 | BS30: 996000 | BV30: 1000000 | BY30: 1004000 | CB30: 1008000 | CE30: 23
A31: 24 | B31: Toyota Coaster | C31: 456 АК 07 | D31: 2015 | E31: 544000 | F31: 543600 | G31: 2022-12-22 | H31: 548000 | K31: 552000 | N31: 556000 | Q31: 560000 | T31: 564000 | W31: 24 | X31: 24 | Y31: 456 АК 07 | Z31: 568000 | AC31: 572000 | AF31: 576000 | AI31: 580000 | AL31: 584000 | AO31: 588000 | AR31: 592000 | AU31: 596000 | AX31: 600000 | BA31: 24 | BB31: 24 | BC31: 456 АК 07 | BD31: 604000 | BG31: 608000 | BJ31: 612000 | BM31: 616000 | BP31: 620000 | BS31: 624000 | BV31: 628000 | BY31: 632000 | CB31: 636000 | CE31: 24
A32: 25 | B32: Toyota Coaster | C32: 457 АК 07 | D32: 2015 | E32: 392000 | F32: 391916 | G32: 2022-08-13 | H32: 396000 | I32: 395670 | J32: 2022-10-31 | K32: 400000 | N32: 404000 | Q32: 408000 | T32: 412000 | W32: 25 | X32: 25 | Y32: 457 АК 07 | Z32: 416000 | AC32: 420000 | AF32: 424000 | AI32: 428000 | AL32: 432000 | AO32: 436000 | AR32: 440000 | AU32: 444000 | AX32: 448000 | BA32: 25 | BB32: 25 | BC32: 457 АК 07 | BD32: 452000 | BG32: 456000 | BJ32: 460000 | BM32: 464000 | BP32: 468000 | BS32: 472000 | BV32: 476000 | BY32: 480000 | CB32: 484000 | CE32: 25
A33: 26 | B33: Toyota Coaster | C33: 471 АК 07 | D33: 2015 | E33: 420000 | F33: 420100 | G33: 2022-11-20 | H33: 424000 | I33: 424450 | J33: 2022-12-13 | K33: 428000 | L33: 416000 | M33: 2022-10-27 | N33: 432000 | Q33: 436000 | T33: 440000 | W33: 26 | X33: 26 | Y33: 471 АК 07 | Z33: 444000 | AC33: 448000 | AF33: 452000 | AI33: 456000 | AL33: 460000 | AO33: 464000 | AR33: 468000 | AU33: 472000 | AX33: 476000 | BA33: 26 | BB33: 26 | BC33: 471 АК 07 | BD33: 480000 | BG33: 484000 | BJ33: 488000 | BM33: 492000 | BP33: 496000 | BS33: 500000 | BV33: 504000 | BY33: 508000 | CB33: 512000 | CE33: 26
A34: 27 | B34: Toyota Coaster | C34: 477 АК 07 | D34: 2015 | E34: 336000 | F34: 336000 | G34: 2019-04-23 | H34: 340000 | I34: 339919 | J34: 2022-01-26 | K34: 344000 | N34: 348000 | Q34: 352000 | T34: 356000 | W34: 27 | X34: 27 | Y34: 477 АК 07 | Z34: 360000 | AC34: 364000 | AF34: 368000 | AI34: 372000 | AL34: 376000 | AO34: 380000 | AR34: 384000 | AU34: 388000 | AX34: 392000 | BA34: 27 | BB34: 27 | BC34: 477 АК 07 | BD34: 396000 | BG34: 400000 | BJ34: 404000 | BM34: 408000 | BP34: 412000 | BS34: 416000 | BV34: 420000 | BY34: 424000 | CB34: 428000 | CE34: 27
A35: 28 | B35: Toyota Coaster | C35: 495 АК 07 | D35: 2015 | E35: 484000 | F35: 484000 | G35: 2022-12-22 | H35: 488000 | K35: 492000 | N35: 496000 | Q35: 500000 | T35: 504000 | W35: 28 | X35: 28 | Y35: 495 АК 07 | Z35: 508000 | AC35: 512000 | AF35: 516000 | AI35: 520000 | AL35: 524000 | AO35: 528000 | AR35: 532000 | AU35: 536000 | AX35: 540000 | BA35: 28 | BB35: 28 | BC35: 495 АК 07 | BD35: 544000 | BG35: 548000 | BJ35: 552000 | BM35: 556000 | BP35: 560000 | BS35: 564000 | BV35: 568000 | BY35: 572000 | CB35: 576000 | CE35: 28
A36: 29 | B36: Toyota Coaster | C36: 957 АН 07 | D36: 2015 | E36: 532000 | F36: 531912 | G36: 30,03,23 | H36: 536000 | K36: 540000 | N36: 544000 | Q36: 548000 | T36: 552000 | W36: 29 | X36: 29 | Y36: 957 АН 07 | Z36: 556000 | AC36: 560000 | AF36: 564000 | AI36: 568000 | AL36: 572000 | AO36: 576000 | AR36: 580000 | AU36: 584000 | AX36: 588000 | BA36: 29 | BB36: 29 | BC36: 957 АН 07 | BD36: 592000 | BG36: 596000 | BJ36: 600000 | BM36: 604000 | BP36: 608000 | BS36: 612000 | BV36: 616000 | BY36: 620000 | CB36: 624000 | CE36: 29
A37: 30 | B37: Toyota Coaster | C37: 225 AQ 07 | D37: 2018 | E37: 120000 | F37: 119810 | G37: 16,03,23 | H37: 124000 | K37: 128000 | N37: 132000 | Q37: 136000 | T37: 140000 | W37: 30 | X37: 30 | Y37: 225 AQ 07 | Z37: 144000 | AC37: 148000 | AF37: 152000 | AI37: 156000 | AL37: 160000 | AO37: 164000 | AR37: 168000 | AU37: 172000 | AX37: 176000 | BA37: 30 | BB37: 30 | BC37: 225 AQ 07 | BD37: 180000 | BG37: 184000 | BJ37: 188000 | BM37: 192000 | BP37: 196000 | BS37: 200000 | BV37: 204000 | BY37: 208000 | CB37: 212000 | CE37: 30
A38: 31 | B38: Toyota Coaster | C38: 241 AQ 07 | D38: 2018 | E38: 300000 | F38: 300420 | G38: 2023-01-03 | H38: 304000 | K38: =H38+4000 -> 308000 | N38: 312000 | Q38: 316000 | T38: 320000 | W38: 31 | X38: 31 | Y38: 241 AQ 07 | Z38: 324000 | AC38: 328000 | AF38: 332000 | AI38: 336000 | AL38: 340000 | AO38: 344000 | AR38: 348000 | AU38: 352000 | AX38: 356000 | BA38: 31 | BB38: 31 | BC38: 241 AQ 07 | BD38: 360000 | BG38: 364000 | BJ38: 368000 | BM38: 372000 | BP38: 376000 | BS38: 380000 | BV38: 384000 | BY38: 388000 | CB38: 392000 | CE38: 31
A39: 32 | B39: Toyota Coaster | C39: 248 AQ 07 | D39: 2018 | E39: 290000 | F39: 290000 | G39: 2022-12-22 | H39: =E39+4000 -> 294000 | K39: =H39+4000 -> 298000 | N39: =K39+4000 -> 302000 | Q39: =N39+4000 -> 306000 | T39: =Q39+4000 -> 310000 | W39: 32 | X39: 32 | Y39: 248 AQ 07 | Z39: =T39+4000 -> 314000 | AC39: =Z39+4000 -> 318000 | AF39: =AC39+4000 -> 322000 | AI39: =AF39+4000 -> 326000 | AL39: =AI39+4000 -> 330000 | AO39: =AL39+4000 -> 334000 | AR39: =AO39+4000 -> 338000 | AU39: =AR39+4000 -> 342000 | AX39: =AU39+4000 -> 346000 | BA39: 32 | BB39: 32 | BC39: 248 AQ 07 | BD39: =AX39+4000 -> 350000 | BG39: =BD39+4000 -> 354000 | BJ39: =BG39+4000 -> 358000 | BM39: =BJ39+4000 -> 362000 | BP39: =BM39+4000 -> 366000 | BS39: =BP39+4000 -> 370000 | BV39: =BS39+4000 -> 374000 | BY39: =BV39+4000 -> 378000 | CB39: =BY39+4000 -> 382000 | CE39: 32
A40: 33 | B40: Toyota Coaster | C40: 251 AQ 07 | D40: 2018 | E40: 120000 | F40: 120059 | G40: 2022-10-22 | H40: =E40+4000 -> 124000 | I40: 124045 | J40: 2022-11-16 | K40: =H40+4000 -> 128000 | L40: 128275 | M40: 2022-12-13 | N40: 132000 | Q40: 136000 | T40: 140000 | W40: 33 | X40: 33 | Y40: 251 AQ 07 | Z40: 144000 | AC40: 148000 | AF40: 152000 | AI40: 156000 | AL40: 160000 | AO40: 164000 | AR40: 168000 | AU40: 172000 | AX40: 176000 | BA40: 33 | BB40: 33 | BC40: 251 AQ 07 | BD40: 180000 | BG40: 184000 | BJ40: 188000 | BM40: 192000 | BP40: 196000 | BS40: 200000 | BV40: 204000 | BY40: 208000 | CB40: 212000 | CE40: 33
A41: 34 | B41: Toyota Coaster | C41: 258 AQ 07 | D41: 2018 | E41: 252000 | F41: 251700 | G41: 2022-11-04 | H41: 256000 | I41: 255890 | J41: 2022-12-01 | K41: 260000 | L41: 259921 | M41: 2022-12-26 | N41: 264000 | Q41: 268000 | T41: 272000 | W41: 34 | X41: 34 | Y41: 258 AQ 07 | Z41: 276000 | AC41: 280000 | AF41: 284000 | AI41: 288000 | AL41: 292000 | AO41: 296000 | AR41: 300000 | AU41: 304000 | AX41: 308000 | BA41: 34 | BB41: 34 | BC41: 258 AQ 07 | BD41: 312000 | BG41: 316000 | BJ41: 320000 | BM41: 324000 | BP41: 328000 | BS41: 332000 | BV41: 336000 | BY41: 340000 | CB41: 344000 | CE41: 34
A42: 35 | B42: Toyota Coaster | C42: 271 AQ 07 | D42: 2018 | E42: 204000 | F42: 204085 | G42: 2022-10-27 | H42: 208000 | I42: 207800 | J42: 2022-11-20 | K42: 212000 | L42: 211988 | M42: 2022-12-18 | N42: 216000 | Q42: 220000 | T42: 224000 | W42: 35 | X42: 35 | Y42: 271 AQ 07 | Z42: 228000 | AC42: 232000 | AF42: 236000 | AI42: 240000 | AL42: 244000 | AO42: 248000 | AR42: 252000 | AU42: =AR42+4000 -> 256000 | AX42: =AU42+4000 -> 260000 | BA42: 35 | BB42: 35 | BC42: 271 AQ 07 | BD42: 264000 | BG42: 268000 | BJ42: 272000 | BM42: 276000 | BP42: 280000 | BS42: 284000 | BV42: 288000 | BY42: 292000 | CB42: 296000 | CE42: 35
A43: 36 | B43: Toyota Coaster | C43: 278 AQ 07 | D43: 2018 | E43: 120000 | F43: 120000 | G43: 2022-10-11 | H43: 124000 | I43: 123534 | J43: 2022-11-24 | K43: 128000 | N43: 132000 | Q43: 136000 | T43: 140000 | W43: 36 | X43: 36 | Y43: 278 AQ 07 | Z43: 144000 | AC43: 148000 | AF43: 152000 | AI43: 156000 | AL43: 160000 | AO43: 164000 | AR43: 168000 | AU43: =AR43+4000 -> 172000 | AX43: =AU43+4000 -> 176000 | BA43: 36 | BB43: 36 | BC43: 278 AQ 07 | BD43: 180000 | BG43: 184000 | BJ43: 188000 | BM43: 192000 | BP43: 196000 | BS43: 200000 | BV43: 204000 | BY43: 208000 | CB43: 212000 | CE43: 36
A44: 37 | B44: Toyota Coaster | C44: 926 AS 07 | D44: 2020 | E44: 144000 | F44: 143900 | G44: 2022-10-29 | H44: 148000 | I44: 147750 | J44: 2022-11-20 | K44: 152000 | L44: 151794 | M44: 2022-12-13 | N44: 156000 | Q44: 160000 | T44: 164000 | W44: 37 | X44: 37 | Y44: 926 AS 07 | Z44: 168000 | AC44: 172000 | AF44: 176000 | AI44: 180000 | AL44: 184000 | AO44: 188000 | AR44: 192000 | AU44: =AR44+4000 -> 196000 | AX44: =AU44+4000 -> 200000 | BA44: 37 | BB44: 37 | BC44: 926 AS 07 | BD44: 204000 | BG44: 208000 | BJ44: 212000 | BM44: 216000 | BP44: =BM44+4000 -> 220000 | BS44: =BP44+4000 -> 224000 | BV44: =BS44+4000 -> 228000 | BY44: =BV44+4000 -> 232000 | CB44: =BY44+4000 -> 236000 | CE44: 37
A45: 38 | B45: Toyota Coaster | C45: 936 AS 07 | D45: 2020 | E45: 180000 | F45: 179457 | G45: 20,03,23 | H45: 184000 | K45: 188000 | N45: 192000 | Q45: 196000 | T45: 200000 | W45: 38 | X45: 38 | Y45: 936 AS 07 | Z45: 204000 | AC45: 208000 | AF45: 212000 | AI45: 216000 | AL45: 220000 | AO45: 224000 | AR45: 228000 | AU45: 232000 | AX45: 236000 | BA45: 38 | BB45: 38 | BC45: 936 AS 07 | BD45: 240000 | BG45: 244000 | BJ45: 248000 | BM45: 252000 | BP45: 256000 | BS45: 260000 | BV45: 264000 | BY45: 268000 | CB45: 272000 | CE45: 38
A46: 39 | B46: Toyota Coaster | C46: 955 АТ 07 | D46: 2020 | E46: 96000 | F46: 95751 | G46: 2022-11-04 | H46: 100000 | I46: 99689 | J46: 2022-12-13 | K46: 104000 | N46: 108000 | Q46: 112000 | T46: 116000 | W46: 39 | X46: 39 | Y46: 955 АТ 07 | Z46: 120000 | AC46: 124000 | AF46: 128000 | AI46: 132000 | AL46: 136000 | AO46: 140000 | AR46: 144000 | AU46: 148000 | AX46: 152000 | BA46: 39 | BB46: 39 | BC46: 955 АТ 07 | BD46: =AX46+4000 -> 156000 | BG46: =BD46+4000 -> 160000 | BJ46: =BG46+4000 -> 164000 | BM46: =BJ46+4000 -> 168000 | BP46: 172000 | BS46: 176000 | BV46: 180000 | BY46: 184000 | CB46: 188000 | CE46: 39
A47: 40 | B47: Toyota Coaster | C47: 961 AU 07 | D47: 2022 | E47: 0 | H47: 4000 | K47: 8000 | N47: 12000 | Q47: 16000 | T47: 20000 | W47: 40 | X47: 40 | Y47: 961 AU 07 | Z47: 24000 | AC47: 28000 | AF47: 32000 | AI47: 36000 | AL47: 40000 | AO47: 44000 | AR47: 48000 | AU47: 52000 | AX47: 56000 | BA47: 40 | BB47: 40 | BC47: 961 AU 07 | BD47: 60000 | BG47: 64000 | BJ47: 68000 | BM47: 72000 | BP47: 76000 | BS47: 80000 | BV47: 84000 | BY47: 88000 | CB47: 92000 | CE47: 40
A48: 41 | B48: Toyota Coaster | C48: 963 AU 07 | D48: 2022 | E48: 0 | H48: =E48+4000 -> 4000 | K48: =H48+4000 -> 8000 | N48: =K48+4000 -> 12000 | Q48: =N48+4000 -> 16000 | T48: =Q48+4000 -> 20000 | W48: 41 | X48: 41 | Y48: 963 AU 07 | Z48: =T48+4000 -> 24000 | AC48: =Z48+4000 -> 28000 | AF48: =AC48+4000 -> 32000 | AI48: =AF48+4000 -> 36000 | AL48: =AI48+4000 -> 40000 | AO48: =AL48+4000 -> 44000 | AR48: =AO48+4000 -> 48000 | AU48: =AR48+4000 -> 52000 | AX48: 56000 | BA48: 41 | BB48: 41 | BC48: 963 AU 07 | BD48: =AX48+4000 -> 60000 | BG48: =BD48+4000 -> 64000 | BJ48: =BG48+4000 -> 68000 | BM48: =BJ48+4000 -> 72000 | BP48: =BM48+4000 -> 76000 | BS48: =BP48+4000 -> 80000 | BV48: =BS48+4000 -> 84000 | BY48: =BV48+4000 -> 88000 | CB48: =BY48+4000 -> 92000 | CE48: 41
A49: 42 | B49: Toyota Coaster | C49: 965 AU 07 | D49: 2022 | E49: 0 | H49: 4000 | K49: 8000 | N49: 12000 | Q49: 16000 | T49: 20000 | W49: 42 | X49: 42 | Y49: 965 AU 07 | Z49: 24000 | AC49: 28000 | AF49: 32000 | AI49: 36000 | AL49: 40000 | AO49: 44000 | AR49: 48000 | AU49: 52000 | AX49: 56000 | BA49: 42 | BB49: 42 | BC49: 965 AU 07 | BD49: 60000 | BG49: 64000 | BJ49: 68000 | BM49: 72000 | BP49: 76000 | BS49: 80000 | BV49: 84000 | BY49: 88000 | CB49: 92000 | CE49: 42
A50: 43 | B50: Toyota Coaster | C50: 966 AU 07 | D50: 2022 | E50: 0 | H50: 4000 | K50: 8000 | N50: 12000 | Q50: 16000 | T50: 20000 | W50: 43 | X50: 43 | Y50: 966 AU 07 | Z50: 24000 | AC50: 28000 | AF50: 32000 | AI50: 36000 | AL50: 40000 | AO50: 44000 | AR50: 48000 | AU50: 52000 | AX50: 56000 | BA50: 43 | BB50: 43 | BC50: 966 AU 07 | BD50: 60000 | BG50: 64000 | BJ50: 68000 | BM50: 72000 | BP50: 76000 | BS50: 80000 | BV50: 84000 | BY50: 88000 | CB50: 92000 | CE50: 43
A51: 44 | B51: Toyota Coaster | C51: 967 AU 07 | D51: 2022 | E51: 0 | H51: 4000 | K51: 8000 | N51: 12000 | Q51: 16000 | T51: 20000 | W51: 44 | X51: 44 | Y51: 967 AU 07 | Z51: 24000 | AC51: 28000 | AF51: 32000 | AI51: 36000 | AL51: 40000 | AO51: 44000 | AR51: 48000 | AU51: 52000 | AX51: 56000 | BA51: 44 | BB51: 44 | BC51: 967 AU 07 | BD51: 60000 | BG51: 64000 | BJ51: 68000 | BM51: 72000 | BP51: 76000 | BS51: 80000 | BV51: 84000 | BY51: 88000 | CB51: 92000 | CE51: 44
A52: 45 | B52: Toyota Coaster | C52: 968 AU 07 | D52: 2022 | E52: 0 | H52: 4000 | K52: 8000 | N52: 12000 | Q52: 16000 | T52: 20000 | W52: 45 | X52: 45 | Y52: 968 AU 07 | Z52: 24000 | AC52: 28000 | AF52: 32000 | AI52: 36000 | AL52: 40000 | AO52: 44000 | AR52: 48000 | AU52: 52000 | AX52: 56000 | BA52: 45 | BB52: 45 | BC52: 968 AU 07 | BD52: 60000 | BG52: 64000 | BJ52: 68000 | BM52: 72000 | BP52: 76000 | BS52: 80000 | BV52: 84000 | BY52: 88000 | CB52: 92000 | CE52: 45
A53: 46 | B53: Toyota Coaster | C53: 970 AU 07 | D53: 2022 | E53: 0 | H53: 4000 | K53: 8000 | N53: 12000 | Q53: 16000 | T53: 20000 | W53: 46 | X53: 46 | Y53: 970 AU 07 | Z53: 24000 | AC53: 28000 | AF53: 32000 | AI53: 36000 | AL53: 40000 | AO53: 44000 | AR53: 48000 | AU53: 52000 | AX53: 56000 | BA53: 46 | BB53: 46 | BC53: 970 AU 07 | BD53: 60000 | BG53: 64000 | BJ53: 68000 | BM53: 72000 | BP53: 76000 | BS53: 80000 | BV53: 84000 | BY53: 88000 | CB53: 92000 | CE53: 46
A54: 47 | B54: Toyota Coaster | C54: 971 AU 07 | D54: 2022 | E54: 0 | H54: 4000 | K54: 8000 | N54: 12000 | Q54: 16000 | T54: 20000 | W54: 47 | X54: 47 | Y54: 971 AU 07 | Z54: 24000 | AC54: 28000 | AF54: 32000 | AI54: 36000 | AL54: 40000 | AO54: 44000 | AR54: 48000 | AU54: 52000 | AX54: 56000 | BA54: 47 | BB54: 47 | BC54: 971 AU 07 | BD54: 60000 | BG54: 64000 | BJ54: 68000 | BM54: 72000 | BP54: 76000 | BS54: 80000 | BV54: 84000 | BY54: 88000 | CB54: 92000 | CE54: 47
A55: 48 | B55: Toyota Coaster | C55: 972 AU 07 | D55: 2022 | E55: 0 | H55: 4000 | K55: 8000 | N55: 12000 | Q55: 16000 | T55: 20000 | W55: 48 | X55: 48 | Y55: 972 AU 07 | Z55: 24000 | AC55: 28000 | AF55: 32000 | AI55: 36000 | AL55: 40000 | AO55: 44000 | AR55: 48000 | AU55: 52000 | AX55: 56000 | BA55: 48 | BB55: 48 | BC55: 972 AU 07 | BD55: 60000 | BG55: 64000 | BJ55: 68000 | BM55: 72000 | BP55: 76000 | BS55: 80000 | BV55: 84000 | BY55: 88000 | CB55: 92000 | CE55: 48
A56: 49 | B56: Toyota Coaster | C56: 973 AU 07 | D56: 2022 | E56: 24000 | F56: 24198 | G56: 28,03,23 | H56: 28000 | K56: 32000 | N56: 36000 | Q56: 40000 | T56: 44000 | W56: 49 | X56: 49 | Y56: 973 AU 07 | Z56: 48000 | AC56: 52000 | AF56: 56000 | AI56: 60000 | AL56: 64000 | AO56: 68000 | AR56: 72000 | AU56: 76000 | AX56: 80000 | BA56: 49 | BB56: 49 | BC56: 973 AU 07 | BD56: 84000 | BG56: 88000 | BJ56: 92000 | BM56: 96000 | BP56: 100000 | BS56: 104000 | BV56: 108000 | BY56: 112000 | CB56: 116000 | CE56: 49
A57: 50 | B57: Toyota Coaster | C57: 974 AU 07 | D57: 2022 | E57: 0 | H57: 4000 | K57: 8000 | N57: 12000 | Q57: 16000 | T57: 20000 | W57: 50 | X57: 50 | Y57: 974 AU 07 | Z57: 24000 | AC57: 28000 | AF57: 32000 | AI57: 36000 | AL57: 40000 | AO57: 44000 | AR57: 48000 | AU57: 52000 | AX57: 56000 | BA57: 50 | BB57: 50 | BC57: 974 AU 07 | BD57: 60000 | BG57: 64000 | BJ57: 68000 | BM57: 72000 | BP57: 76000 | BS57: 80000 | BV57: 84000 | BY57: 88000 | CB57: 92000 | CE57: 50
A58: 51 | B58: Toyota Coaster | C58: 980 AU 07 | D58: 2022 | E58: 0 | H58: 4000 | K58: 8000 | N58: 12000 | Q58: 16000 | T58: 20000 | W58: 51 | X58: 51 | Y58: 980 AU 07 | Z58: 24000 | AC58: 28000 | AF58: 32000 | AI58: 36000 | AL58: 40000 | AO58: 44000 | AR58: 48000 | AU58: 52000 | AX58: 56000 | BA58: 51 | BB58: 51 | BC58: 980 AU 07 | BD58: 60000 | BG58: 64000 | BJ58: 68000 | BM58: 72000 | BP58: 76000 | BS58: 80000 | BV58: 84000 | BY58: 88000 | CB58: 92000 | CE58: 51
A59: 52 | B59: IVECO Daily 45C15V 11+1 | C59: 219 AQ 07 | D59: 2018 | E59: 70000 | F59: 70050 | G59: 2022-02-04 | H59: 74000 | I59: 73856 | J59: 2022-09-28 | K59: 78000 | N59: 82000 | Q59: 86000 | T59: 90000 | W59: 52 | X59: 52 | Y59: 219 AQ 07 | Z59: 94000 | AC59: 98000 | AF59: 102000 | AI59: 106000 | AL59: 110000 | AO59: 114000 | AR59: 118000 | AU59: =AR59+4000 -> 122000 | AX59: =AU59+4000 -> 126000 | BA59: 52 | BB59: 52 | BC59: 219 AQ 07 | BD59: 130000 | BG59: 134000 | BJ59: 138000 | BM59: 142000 | BP59: 146000 | BS59: 150000 | BV59: 154000 | BY59: 158000 | CB59: 162000 | CE59: 52
A60: 53 | B60: Hyundai Universe | C60: 169 AH 07 | D60: 2014 | E60: 341000 | F60: 340964 | G60: 2022-10-07 | H60: =E60+7000 -> 348000 | K60: =H60+7000 -> 355000 | N60: =K60+7000 -> 362000 | Q60: =N60+7000 -> 369000 | T60: =Q60+7000 -> 376000 | W60: 53 | X60: 53 | Y60: 169 АН 07 | Z60: =T60+7000 -> 383000 | AC60: =Z60+7000 -> 390000 | AF60: =AC60+7000 -> 397000 | AI60: =AF60+7000 -> 404000 | AL60: =AI60+7000 -> 411000 | AO60: =AL60+7000 -> 418000 | AR60: =AO60+7000 -> 425000 | AU60: =AR60+7000 -> 432000 | AX60: =AU60+7000 -> 439000 | BA60: 53 | BB60: 53 | BC60: 169 AH 07 | BD60: =AX60+7000 -> 446000 | BG60: =BD60+7000 -> 453000 | BJ60: =BG60+7000 -> 460000 | BM60: =BJ60+7000 -> 467000 | BP60: =BM60+7000 -> 474000 | BS60: =BP60+7000 -> 481000 | BV60: =BS60+7000 -> 488000 | BY60: =BV60+7000 -> 495000 | CB60: =BY60+7000 -> 502000 | CE60: 53
A61: 54 | B61: Hyundai Universe | C61: 453 АН 07 | D61: 2015 | E61: 252000 | F61: 251882 | G61: 2022-12-22 | H61: =E61+7000 -> 259000 | K61: 266000 | N61: 273000 | Q61: 280000 | T61: 287000 | W61: 54 | X61: 54 | Y61: 453 АН 07 | Z61: =T61+7000 -> 294000 | AC61: 301000 | AF61: 308000 | AI61: 315000 | AL61: 322000 | AO61: 329000 | AR61: 336000 | AU61: 343000 | AX61: 350000 | BA61: 54 | BB61: 54 | BC61: 453 АН 07 | BD61: 357000 | BG61: 364000 | BJ61: 371000 | BM61: 378000 | BP61: 385000 | BS61: 392000 | BV61: 399000 | BY61: 406000 | CB61: 413000 | CE61: 54
A62: 55 | B62: Hyundai Universe | C62: 463 АК 07 | D62: 2015 | E62: 238000 | F62: 238000 | G62: 2019-06-25 | H62: 245000 | I62: 245016 | J62: 2021-01-13 | K62: 252000 | N62: 259000 | Q62: 266000 | T62: 273000 | W62: 55 | X62: 55 | Y62: 463 АК 07 | Z62: 280000 | AC62: 287000 | AF62: 294000 | AI62: 301000 | AL62: 308000 | AO62: 315000 | AR62: 322000 | AU62: 329000 | AX62: 336000 | BA62: 55 | BB62: 55 | BC62: 463 АК 07 | BD62: 343000 | BG62: 350000 | BJ62: 357000 | BM62: 364000 | BP62: 371000 | BS62: 378000 | BV62: 385000 | BY62: 392000 | CB62: 399000 | CE62: 55
A63: 56 | B63: Hyundai Universe | C63: 467 АК 07 | D63: 2015 | E63: 274000 | F63: 273744 | G63: 2022-12-22 | H63: =E63+7000 -> 281000 | K63: =H63+7000 -> 288000 | N63: =K63+7000 -> 295000 | Q63: =N63+7000 -> 302000 | T63: =Q63+7000 -> 309000 | W63: 56 | X63: 56 | Y63: 467 АК 07 | Z63: =T63+7000 -> 316000 | AC63: =Z63+7000 -> 323000 | AF63: =AC63+7000 -> 330000 | AI63: =AF63+7000 -> 337000 | AL63: =AI63+7000 -> 344000 | AO63: =AL63+7000 -> 351000 | AR63: =AO63+7000 -> 358000 | AU63: =AR63+7000 -> 365000 | AX63: =AU63+7000 -> 372000 | BA63: 56 | BB63: 56 | BC63: 467 АК 07 | BD63: =AX63+7000 -> 379000 | BG63: =BD63+7000 -> 386000 | BJ63: =BG63+7000 -> 393000 | BM63: =BJ63+7000 -> 400000 | BP63: =BM63+7000 -> 407000 | BS63: =BP63+7000 -> 414000 | BV63: =BS63+7000 -> 421000 | BY63: =BV63+7000 -> 428000 | CB63: =BY63+7000 -> 435000 | CE63: 56
A64: 57 | B64: Hyundai Universe | C64: 476 АК 07 | D64: 2015 | E64: 301000 | F64: 300968 | G64: 2022-12-13 | H64: =E64+7000 -> 308000 | K64: =H64+7000 -> 315000 | N64: =K64+7000 -> 322000 | Q64: =N64+7000 -> 329000 | T64: =Q64+7000 -> 336000 | W64: 57 | X64: 57 | Y64: 476 АК 07 | Z64: =T64+7000 -> 343000 | AC64: =Z64+7000 -> 350000 | AF64: =AC64+7000 -> 357000 | AI64: =AF64+7000 -> 364000 | AL64: =AI64+7000 -> 371000 | AO64: =AL64+7000 -> 378000 | AR64: =AO64+7000 -> 385000 | AU64: =AR64+7000 -> 392000 | AX64: =AU64+7000 -> 399000 | BA64: 57 | BB64: 57 | BC64: 476 АК 07 | BD64: =AX64+7000 -> 406000 | BG64: =BD64+7000 -> 413000 | BJ64: =BG64+7000 -> 420000 | BM64: =BJ64+7000 -> 427000 | BP64: =BM64+7000 -> 434000 | BS64: =BP64+7000 -> 441000 | BV64: =BS64+7000 -> 448000 | BY64: =BV64+7000 -> 455000 | CB64: =BY64+7000 -> 462000 | CE64: 57
A65: 58 | B65: Hyundai Universe | C65: 935 AQ 07 | D65: 2019 | E65: 231000 | F65: 230687 | G65: 07,02,23 | H65: =E65+7000 -> 238000 | I65: 238156 | J65: 20,03,23 | K65: =H65+7000 -> 245000 | N65: =K65+7000 -> 252000 | Q65: =N65+7000 -> 259000 | T65: =Q65+7000 -> 266000 | W65: 58 | X65: 58 | Y65: 935 AQ 07 | Z65: =T65+7000 -> 273000 | AC65: =Z65+7000 -> 280000 | AF65: =AC65+7000 -> 287000 | AI65: =AF65+7000 -> 294000 | AL65: =AI65+7000 -> 301000 | AO65: =AL65+7000 -> 308000 | AR65: =AO65+7000 -> 315000 | AU65: =AR65+7000 -> 322000 | AX65: =AU65+7000 -> 329000 | BA65: 58 | BB65: 58 | BC65: 935 AQ 07 | BD65: =AX65+7000 -> 336000 | BG65: =BD65+7000 -> 343000 | BJ65: =BG65+7000 -> 350000 | BM65: =BJ65+7000 -> 357000 | BP65: =BM65+7000 -> 364000 | BS65: =BP65+7000 -> 371000 | BV65: =BS65+7000 -> 378000 | BY65: =BV65+7000 -> 385000 | CB65: =BY65+7000 -> 392000 | CE65: 58
A66: 59 | B66: Hyundai Universe | C66: 931 AU 07 | D66: 2022 | E66: 21000 | F66: 21097 | G66: 16,03,23 | H66: =E66+7000 -> 28000 | K66: =H66+7000 -> 35000 | N66: =K66+7000 -> 42000 | Q66: =N66+7000 -> 49000 | T66: =Q66+7000 -> 56000 | W66: 59 | X66: 59 | Y66: 931 AU 07 | Z66: =T66+7000 -> 63000 | AC66: =Z66+7000 -> 70000 | AF66: =AC66+7000 -> 77000 | AI66: =AF66+7000 -> 84000 | AL66: =AI66+7000 -> 91000 | AO66: =AL66+7000 -> 98000 | AR66: =AO66+7000 -> 105000 | AU66: =AR66+7000 -> 112000 | AX66: =AU66+7000 -> 119000 | BA66: 59 | BB66: 59 | BC66: 931 AU 07 | BD66: =AX66+7000 -> 126000 | BG66: =BD66+7000 -> 133000 | BJ66: =BG66+7000 -> 140000 | BM66: 147000 | BP66: 154000 | BS66: 161000 | BV66: 168000 | BY66: 175000 | CB66: 182000 | CE66: 59
A67: 60 | B67: Hyundai Universe | C67: 933 AU 07 | D67: 2022 | E67: 14000 | F67: 14144 | G67: 11,03,23 | H67: =E67+7000 -> 21000 | K67: =H67+7000 -> 28000 | N67: =K67+7000 -> 35000 | Q67: =N67+7000 -> 42000 | T67: =Q67+7000 -> 49000 | W67: 60 | X67: 60 | Y67: 933 AU 07 | Z67: =T67+7000 -> 56000 | AC67: =Z67+7000 -> 63000 | AF67: =AC67+7000 -> 70000 | AI67: =AF67+7000 -> 77000 | AL67: =AI67+7000 -> 84000 | AO67: =AL67+7000 -> 91000 | AR67: =AO67+7000 -> 98000 | AU67: =AR67+7000 -> 105000 | AX67: =AU67+7000 -> 112000 | BA67: 60 | BB67: 60 | BC67: 933 AU 07 | BD67: =AX67+7000 -> 119000 | BG67: =BD67+7000 -> 126000 | BJ67: =BG67+7000 -> 133000 | BM67: =BJ67+7000 -> 140000 | BP67: =BM67+7000 -> 147000 | BS67: =BP67+7000 -> 154000 | BV67: =BS67+7000 -> 161000 | BY67: =BV67+7000 -> 168000 | CB67: =BY67+7000 -> 175000 | CE67: 60
A68: 61 | B68: Hyundai Universe | C68: 935 AU 07 | D68: 2022 | E68: 14000 | F68: 13748 | G68: 24,02,23 | H68: 21000 | K68: 28000 | N68: 35000 | Q68: 42000 | T68: 49000 | W68: 61 | X68: 61 | Y68: 935 AU 07 | Z68: 56000 | AC68: 63000 | AF68: 70000 | AI68: 77000 | AL68: 84000 | AO68: 91000 | AR68: 98000 | AU68: 105000 | AX68: 112000 | BA68: 61 | BB68: 61 | BC68: 935 AU 07 | BD68: 119000 | BG68: 126000 | BJ68: 133000 | BM68: 140000 | BP68: 147000 | BS68: 154000 | BV68: 161000 | BY68: 168000 | CB68: 175000 | CE68: 61
A69: 62 | B69: Hyundai Universe | C69: 945 AQ 07 | D69: 2019 | E69: 189000 | F69: 188837 | G69: 2022-10-30 | H69: =E69+7000 -> 196000 | I69: 196071 | J69: 2022-12-22 | K69: =H69+7000 -> 203000 | N69: =K69+7000 -> 210000 | Q69: =N69+7000 -> 217000 | T69: =Q69+7000 -> 224000 | W69: 62 | X69: 62 | Y69: 945 AQ 07 | Z69: =T69+7000 -> 231000 | AC69: =Z69+7000 -> 238000 | AF69: =AC69+7000 -> 245000 | AI69: =AF69+7000 -> 252000 | AL69: =AI69+7000 -> 259000 | AO69: =AL69+7000 -> 266000 | AR69: =AO69+7000 -> 273000 | AU69: =AR69+7000 -> 280000 | AX69: =AU69+7000 -> 287000 | BA69: 62 | BB69: 62 | BC69: 945 AQ 07 | BD69: 294000 | BG69: =BD69+7000 -> 301000 | BJ69: =BG69+7000 -> 308000 | BM69: =BJ69+7000 -> 315000 | BP69: =BM69+7000 -> 322000 | BS69: =BP69+7000 -> 329000 | BV69: =BS69+7000 -> 336000 | BY69: =BV69+7000 -> 343000 | CB69: =BY69+7000 -> 350000 | CE69: 62
A70: 63 | B70: Hyundai Universe | C70: 934 AS 07 | D70: 2018 | E70: 147000 | F70: 146587 | G70: 2022-11-24 | H70: =E70+7000 -> 154000 | K70: =H70+7000 -> 161000 | N70: =K70+7000 -> 168000 | Q70: 175000 | T70: =Q70+7000 -> 182000 | W70: 63 | X70: 63 | Y70: 934 AS 07 | Z70: 189000 | AC70: 196000 | AF70: 203000 | AI70: 210000 | AL70: 217000 | AO70: 224000 | AR70: 231000 | AU70: 238000 | AX70: 245000 | BA70: 63 | BB70: 63 | BC70: 934 AS 07 | BD70: 252000 | BG70: 259000 | BJ70: =BG70+7000 -> 266000 | BM70: =BJ70+7000 -> 273000 | BP70: =BM70+7000 -> 280000 | BS70: =BP70+7000 -> 287000 | BV70: =BS70+7000 -> 294000 | BY70: =BV70+7000 -> 301000 | CB70: =BY70+7000 -> 308000 | CE70: 63
A71: 64 | B71: Hyundai Universe | C71: 944 AS 07 | D71: 2018 | E71: 168000 | F71: 167542 | G71: 2022-12-22 | H71: =E71+7000 -> 175000 | K71: =H71+7000 -> 182000 | N71: =K71+7000 -> 189000 | Q71: 196000 | T71: 203000 | W71: 64 | X71: 64 | Y71: 944 AS 07 | Z71: 210000 | AC71: 217000 | AF71: 224000 | AI71: 231000 | AL71: 238000 | AO71: 245000 | AR71: 252000 | AU71: 259000 | AX71: 266000 | BA71: 64 | BB71: 64 | BC71: 944 AS 07 | BD71: 273000 | BG71: 280000 | BJ71: 287000 | BM71: 294000 | BP71: 301000 | BS71: 308000 | BV71: 315000 | BY71: 322000 | CB71: 329000 | CE71: 64
A72: 65 | B72: Меrсеdеs Benz Tourismo | C72: L 563 BN | D72: 2012 | E72: 531000 | H72: 538000 | K72: =H72+7000 -> 545000 | N72: 552000 | Q72: 559000 | T72: 566000 | W72: 65 | X72: 65 | Y72: L 563 BN | Z72: 573000 | AC72: 580000 | AF72: 587000 | AI72: 594000 | AL72: 601000 | AO72: 608000 | AR72: 615000 | AU72: 622000 | AX72: 629000 | BA72: 65 | BB72: 65 | BC72: L 563 BN | BD72: 636000 | BG72: 643000 | BJ72: 650000 | BM72: 657000 | BP72: 664000 | BS72: 671000 | BV72: 678000 | BY72: 685000 | CB72: 692000 | CE72: 65
A73: 66 | B73: Меrсеdеs Benz Tourismo | C73: L 564 BN | D73: 2012 | E73: 546000 | F73: 545855 | G73: 2022-10-30 | H73: 553000 | K73: 560000 | N73: =K73+7000 -> 567000 | Q73: 574000 | T73: 581000 | W73: 66 | X73: 66 | Y73: L 564 BN | Z73: =T73+7000 -> 588000 | AC73: 595000 | AF73: 602000 | AI73: 609000 | AL73: 616000 | AO73: 623000 | AR73: 630000 | AU73: 637000 | AX73: 644000 | BA73: 66 | BB73: 66 | BC73: L 564 BN | BD73: 651000 | BG73: 658000 | BJ73: 665000 | BM73: 672000 | BP73: 679000 | BS73: 686000 | BV73: 693000 | BY73: 700000 | CB73: 707000 | CE73: 66
A74: 67 | B74: Меrсеdеs Benz Tourismo | C74: L 643 LL | D74: 2008 | E74: 548000 | H74: 555000 | K74: 562000 | N74: 569000 | Q74: 576000 | T74: 583000 | W74: 67 | X74: 67 | Y74: L 643 LL | Z74: 590000 | AC74: 597000 | AF74: 604000 | AI74: 611000 | AL74: 618000 | AO74: 625000 | AR74: 632000 | AU74: 639000 | AX74: 646000 | BA74: 67 | BB74: 67 | BC74: L 643 LL | BD74: 653000 | BG74: 660000 | BJ74: 667000 | BM74: 674000 | BP74: 681000 | BS74: 688000 | BV74: 695000 | BY74: 702000 | CB74: 709000 | CE74: 67
A75: 68 | B75: Меrсеdеs Benz Tourismo | C75: L 665 LL | D75: 2008 | E75: 596000 | H75: 603000 | K75: 610000 | N75: 617000 | Q75: 624000 | T75: 631000 | W75: 68 | X75: 68 | Y75: L 665 LL | Z75: 638000 | AC75: 645000 | AF75: 652000 | AI75: 659000 | AL75: 666000 | AO75: 673000 | AR75: 680000 | AU75: 687000 | AX75: 694000 | BA75: 68 | BB75: 68 | BC75: L 665 LL | BD75: 701000 | BG75: 708000 | BJ75: 715000 | BM75: 722000 | BP75: 729000 | BS75: 736000 | BV75: 743000 | BY75: 750000 | CB75: 757000 | CE75: 68
A76: 69 | B76: Меrсеdеs Benz | C76: L 901 AR | D76: 2004 | E76: 542000 | H76: 549000 | K76: =H76+4000 -> 553000 | N76: =K76+4000 -> 557000 | Q76: =N76+4000 -> 561000 | T76: =Q76+4000 -> 565000 | W76: 69 | X76: 69 | Y76: L 901 AR | Z76: =T76+4000 -> 569000 | AC76: =Z76+4000 -> 573000 | AF76: =AC76+4000 -> 577000 | AI76: =AF76+4000 -> 581000 | AL76: =AI76+4000 -> 585000 | AO76: =AL76+4000 -> 589000 | AR76: =AO76+4000 -> 593000 | AU76: =AR76+4000 -> 597000 | AX76: =AU76+4000 -> 601000 | BA76: 69 | BB76: 69 | BC76: L 901 AR | BD76: =AX76+4000 -> 605000 | BG76: =BD76+4000 -> 609000 | BJ76: =BG76+4000 -> 613000 | BM76: =BJ76+4000 -> 617000 | BP76: =BM76+4000 -> 621000 | BS76: =BP76+4000 -> 625000 | BV76: =BS76+4000 -> 629000 | BY76: =BV76+4000 -> 633000 | CB76: =BY76+4000 -> 637000 | CE76: 69
A77: 70 | B77: Меrсеdеs Benz | C77: L 902 AR | D77: 2004 | E77: 489000 | H77: 496000 | K77: =H77+4000 -> 500000 | N77: =K77+4000 -> 504000 | Q77: =N77+4000 -> 508000 | T77: =Q77+4000 -> 512000 | W77: 70 | X77: 70 | Y77: L 902 AR | Z77: 516000 | AC77: =Z77+4000 -> 520000 | AF77: =AC77+4000 -> 524000 | AI77: =AF77+4000 -> 528000 | AL77: =AI77+4000 -> 532000 | AO77: =AL77+4000 -> 536000 | AR77: =AO77+4000 -> 540000 | AU77: =AR77+4000 -> 544000 | AX77: =AU77+4000 -> 548000 | BA77: 70 | BB77: 70 | BC77: L 902 AR | BD77: =AX77+4000 -> 552000 | BG77: =BD77+4000 -> 556000 | BJ77: =BG77+4000 -> 560000 | BM77: =BJ77+4000 -> 564000 | BP77: =BM77+4000 -> 568000 | BS77: =BP77+4000 -> 572000 | BV77: =BS77+4000 -> 576000 | BY77: =BV77+4000 -> 580000 | CB77: =BY77+4000 -> 584000 | CE77: 70
A78: 71 | B78: Меrсеdеs Benz | C78: L 903 AR | D78: 2004 | E78: 107000 | H78: 114000 | K78: =H78+4000 -> 118000 | N78: =K78+4000 -> 122000 | Q78: =N78+4000 -> 126000 | T78: =Q78+4000 -> 130000 | W78: 71 | X78: 71 | Y78: L 903 AR | Z78: 134000 | AC78: =Z78+4000 -> 138000 | AF78: =AC78+4000 -> 142000 | AI78: =AF78+4000 -> 146000 | AL78: =AI78+4000 -> 150000 | AO78: =AL78+4000 -> 154000 | AR78: =AO78+4000 -> 158000 | AU78: =AR78+4000 -> 162000 | AX78: =AU78+4000 -> 166000 | BA78: 71 | BB78: 71 | BC78: L 903 AR | BD78: =AX78+4000 -> 170000 | BG78: =BD78+4000 -> 174000 | BJ78: =BG78+4000 -> 178000 | BM78: =BJ78+4000 -> 182000 | BP78: =BM78+4000 -> 186000 | BS78: =BP78+4000 -> 190000 | BV78: =BS78+4000 -> 194000 | BY78: =BV78+4000 -> 198000 | CB78: =BY78+4000 -> 202000 | CE78: 71
A79: 72 | B79: Меrсеdеs Benz Tourismo | C79: L 907 BH | D79: 2010 | E79: 534000 | H79: 541000 | K79: =H79+7000 -> 548000 | N79: =K79+7000 -> 555000 | Q79: =N79+7000 -> 562000 | T79: =Q79+7000 -> 569000 | W79: 72 | X79: 72 | Y79: L 907 BH | Z79: =T79+7000 -> 576000 | AC79: =Z79+7000 -> 583000 | AF79: =AC79+7000 -> 590000 | AI79: =AF79+7000 -> 597000 | AL79: =AI79+7000 -> 604000 | AO79: =AL79+7000 -> 611000 | AR79: =AO79+7000 -> 618000 | AU79: =AR79+7000 -> 625000 | AX79: =AU79+7000 -> 632000 | BA79: 72 | BB79: 72 | BC79: L 907 BH | BD79: =AX79+7000 -> 639000 | BG79: =BD79+7000 -> 646000 | BJ79: =BG79+7000 -> 653000 | BM79: =BJ79+7000 -> 660000 | BP79: =BM79+7000 -> 667000 | BS79: =BP79+7000 -> 674000 | BV79: =BS79+7000 -> 681000 | BY79: =BV79+7000 -> 688000 | CB79: =BY79+7000 -> 695000 | CE79: 72
A80: 73 | B80: Меrсеdеs Benz Tourismo | C80: L 941 BH | D80: 2010 | E80: 496000 | F80: 496034 | G80: 2022-10-06 | H80: 503000 | K80: =H80+7000 -> 510000 | N80: =K80+7000 -> 517000 | Q80: =N80+7000 -> 524000 | T80: =Q80+7000 -> 531000 | W80: 73 | X80: 73 | Y80: L 941 BH | Z80: =T80+7000 -> 538000 | AC80: =Z80+7000 -> 545000 | AF80: =AC80+7000 -> 552000 | AI80: =AF80+7000 -> 559000 | AL80: =AI80+7000 -> 566000 | AO80: =AL80+7000 -> 573000 | AR80: =AO80+7000 -> 580000 | AU80: =AR80+7000 -> 587000 | AX80: =AU80+7000 -> 594000 | BA80: 73 | BB80: 73 | BC80: L 941 BH | BD80: =AX80+7000 -> 601000 | BG80: =BD80+7000 -> 608000 | BJ80: =BG80+7000 -> 615000 | BM80: =BJ80+7000 -> 622000 | BP80: =BM80+7000 -> 629000 | BS80: =BP80+7000 -> 636000 | BV80: =BS80+7000 -> 643000 | BY80: =BV80+7000 -> 650000 | CB80: =BY80+7000 -> 657000 | CE80: 73
A81: Бортовые
A82: 74 | B82: Газ 33021 | C82: 639 AD 07 | D82: 2006 | E82: 48000 | F82: 48303 | G82: 2022-04-28 | H82: =E82+4000 -> 52000 | K82: =H82+4000 -> 56000 | N82: =K82+4000 -> 60000 | Q82: =N82+4000 -> 64000 | T82: =Q82+4000 -> 68000 | W82: 74 | X82: 74 | Y82: 639 AD 07 | Z82: =T82+4000 -> 72000 | AC82: =Z82+4000 -> 76000 | AF82: =AC82+4000 -> 80000 | AI82: =AF82+4000 -> 84000 | AL82: =AI82+4000 -> 88000 | AO82: =AL82+4000 -> 92000 | AR82: =AO82+4000 -> 96000 | AU82: =AR82+4000 -> 100000 | AX82: =AU82+4000 -> 104000 | BA82: 74 | BB82: 74 | BC82: 639 AD 07 | BD82: =AX82+4000 -> 108000 | BG82: =BD82+4000 -> 112000 | BJ82: =BG82+4000 -> 116000 | BM82: =BJ82+4000 -> 120000 | BP82: =BM82+4000 -> 124000 | BS82: =BP82+4000 -> 128000 | BV82: =BS82+4000 -> 132000 | BY82: =BV82+4000 -> 136000 | CB82: =BY82+4000 -> 140000 | CE82: 74
A83: 75 | B83: Mitsubishi Canter | C83: 695 AN 07 | D83: 2005 | E83: 153000 | F83: 153000 | G83: 2019-11-21 | H83: =E83+4000 -> 157000 | K83: =H83+4000 -> 161000 | N83: =K83+4000 -> 165000 | Q83: =N83+4000 -> 169000 | T83: =Q83+4000 -> 173000 | W83: 75 | X83: 75 | Y83: 695 AN 07 | Z83: =T83+4000 -> 177000 | AC83: =Z83+4000 -> 181000 | AF83: =AC83+4000 -> 185000 | AI83: =AF83+4000 -> 189000 | AL83: =AI83+4000 -> 193000 | AO83: =AL83+4000 -> 197000 | AR83: =AO83+4000 -> 201000 | AU83: =AR83+4000 -> 205000 | AX83: =AU83+4000 -> 209000 | BA83: 75 | BB83: 75 | BC83: 695 AN 07 | BD83: =AX83+4000 -> 213000 | BG83: =BD83+4000 -> 217000 | BJ83: =BG83+4000 -> 221000 | BM83: =BJ83+4000 -> 225000 | BP83: =BM83+4000 -> 229000 | BS83: =BP83+4000 -> 233000 | BV83: =BS83+4000 -> 237000 | BY83: =BV83+4000 -> 241000 | CB83: =BY83+4000 -> 245000 | CE83: 75
A84: 76 | B84: УАЗ-390945-4557 | C84: 943 AT 07 | D84: 2021 | E84: 36000 | F84: 35711 | G84: 24,02,23 | H84: 40000 | K84: =H84+4000 -> 44000 | N84: =K84+4000 -> 48000 | Q84: =N84+4000 -> 52000 | T84: =Q84+4000 -> 56000 | W84: 76 | X84: 76 | Y84: 943 AT 07 | Z84: =T84+4000 -> 60000 | AC84: =Z84+4000 -> 64000 | AF84: =AC84+4000 -> 68000 | AI84: =AF84+4000 -> 72000 | AL84: =AI84+4000 -> 76000 | AO84: =AL84+4000 -> 80000 | AR84: =AO84+4000 -> 84000 | AU84: =AR84+4000 -> 88000 | AX84: =AU84+4000 -> 92000 | BA84: 76 | BB84: 76 | BC84: 943 AT 07 | BD84: =AX84+4000 -> 96000 | BG84: =BD84+4000 -> 100000 | BJ84: =BG84+4000 -> 104000 | BM84: =BJ84+4000 -> 108000 | BP84: =BM84+4000 -> 112000 | BS84: =BP84+4000 -> 116000 | BV84: =BS84+4000 -> 120000 | BY84: =BV84+4000 -> 124000 | CB84: =BY84+4000 -> 128000 | CE84: 76
A85: 77 | B85: УАЗ-390945-4557 | C85: 972 AT 07 | D85: 2021 | E85: 36000 | F85: 35772 | G85: 27,02,23 | H85: 40000 | K85: =H85+4000 -> 44000 | N85: 48000 | Q85: 52000 | T85: 56000 | W85: 77 | X85: 77 | Y85: 972 AT 07 | Z85: =T85+4000 -> 60000 | AC85: =Z85+4000 -> 64000 | AF85: 68000 | AI85: 72000 | AL85: 76000 | AO85: 80000 | AR85: 84000 | AU85: 88000 | AX85: 92000 | BA85: 77 | BB85: 77 | BC85: 972 AT 07 | BD85: =AX85+4000 -> 96000 | BG85: =BD85+4000 -> 100000 | BJ85: 104000 | BM85: 108000 | BP85: 112000 | BS85: 116000 | BV85: 120000 | BY85: 124000 | CB85: 128000 | CE85: 77
A86: 78 | B86: УАЗ-390945-4557 | C86: 963 AT 07 | D86: 2021 | E86: 36000 | F86: 36621 | G86: 27,02,23 | H86: 40000 | K86: 44000 | N86: 48000 | Q86: 52000 | T86: 56000 | W86: 78 | X86: 78 | Y86: 963 AT 07 | Z86: 60000 | AC86: 64000 | AF86: 68000 | AI86: 72000 | AL86: 76000 | AO86: 80000 | AR86: 84000 | AU86: 88000 | AX86: 92000 | BA86: 78 | BB86: 78 | BC86: 963 AT 07 | BD86: 96000 | BG86: 100000 | BJ86: 104000 | BM86: 108000 | BP86: 112000 | BS86: 116000 | BV86: 120000 | BY86: 124000 | CB86: 128000 | CE86: 78
A87: 79 | B87: УАЗ-390945-4557 | C87: 991 AT 07 | D87: 2021 | E87: 48000 | F87: 47789 | G87: 16,02,23 | H87: 52000 | I87: 52000 | J87: 20,03,23 | K87: 56000 | N87: 60000 | Q87: 64000 | T87: 68000 | W87: 79 | X87: 79 | Y87: 991 AT 07 | Z87: 72000 | AC87: 76000 | AF87: 80000 | AI87: 84000 | AL87: 88000 | AO87: 92000 | AR87: 96000 | AU87: 100000 | AX87: 104000 | BA87: 79 | BB87: 79 | BC87: 991 AT 07 | BD87: 108000 | BG87: 112000 | BJ87: 116000 | BM87: 120000 | BP87: 124000 | BS87: 128000 | BV87: 132000 | BY87: 136000 | CB87: 140000 | CE87: 79
A88: 80 | B88: УАЗ-390945-4557 | C88: 998 AT 07 | D88: 2021 | E88: 48000 | F88: 47726 | G88: 07,03,23 | H88: 52000 | I88: 39603 | J88: 2023-01-03 | K88: 56000 | N88: 60000 | Q88: 64000 | T88: 68000 | W88: 80 | X88: 80 | Y88: 998 AT 07 | Z88: 72000 | AC88: 76000 | AF88: 80000 | AI88: 84000 | AL88: 88000 | AO88: 92000 | AR88: 96000 | AU88: 100000 | AX88: 104000 | BA88: 80 | BB88: 80 | BC88: 998 AT 07 | BD88: 108000 | BG88: 112000 | BJ88: 116000 | BM88: 120000 | BP88: 124000 | BS88: 128000 | BV88: 132000 | BY88: 136000 | CB88: 140000 | CE88: 80
A89: 81 | B89: Газ 330232 | C89: 382 АТ 07 | D89: 2022 | E89: 24000 | F89: 23880 | G89: 12,02,23 | H89: =E89+4000 -> 28000 | I89: 27697 | J89: 04,03,23 | K89: =H89+4000 -> 32000 | L89: 32000 | M89: 28,03,23 | N89: 36000 | Q89: 40000 | T89: 44000 | W89: 81 | X89: 81 | Y89: 382 АТ 07 | Z89: 48000 | AC89: 52000 | AF89: 56000 | AI89: 60000 | AL89: 64000 | AO89: 68000 | AR89: 72000 | AU89: 76000 | AX89: 80000 | BA89: 81 | BB89: 81 | BC89: 382 АТ 07 | BD89: 84000 | BG89: 88000 | BJ89: 92000 | BM89: 96000 | BP89: 100000 | BS89: 104000 | BV89: 108000 | BY89: 112000 | CB89: 116000 | CE89: 81
A90: 82 | B90: Газ 3302 | C90: 384 АТ 07 | D90: 2022 | E90: 48000 | F90: 47781 | G90: 20,03,23 | H90: 52000 | K90: 56000 | N90: 60000 | Q90: 64000 | T90: 68000 | W90: 82 | X90: 82 | Y90: 384 АТ 07 | Z90: 72000 | AC90: 76000 | AF90: 80000 | AI90: 84000 | AL90: 88000 | AO90: 92000 | AR90: 96000 | AU90: 100000 | AX90: 104000 | BA90: 82 | BB90: 82 | BC90: 384 АТ 07 | BD90: 108000 | BG90: 112000 | BJ90: 116000 | BM90: 120000 | BP90: 124000 | BS90: 128000 | BV90: 132000 | BY90: 136000 | CB90: 140000 | CE90: 82
A91: 83 | B91: Газ 330232 | C91: 392 АТ 07 | D91: 2022 | E91: 36000 | F91: 35600 | G91: 22,01,23 | H91: 40000 | I91: 40000 | J91: 24,02,23 | K91: 44000 | N91: 48000 | Q91: 52000 | T91: 56000 | W91: 83 | X91: 83 | Y91: 392 АТ 07 | Z91: 60000 | AC91: 64000 | AF91: 68000 | AI91: 72000 | AL91: 76000 | AO91: 80000 | AR91: 84000 | AU91: 88000 | AX91: 92000 | BA91: 83 | BB91: 83 | BC91: 392 АТ 07 | BD91: 96000 | BG91: 100000 | BJ91: 104000 | BM91: 108000 | BP91: 112000 | BS91: 116000 | BV91: 120000 | BY91: 124000 | CB91: 128000 | CE91: 83
A92: Самосвалы бензиновые, период проведения ТО-1 4000км
A93: 84 | B93: Газ 53 САЗ | C93: L 941 AT | D93: 1986 | E93: 75000 | F93: 74916 | G93: 06.06.18 | H93: =E93+4000 -> 79000 | I93: 79500 | J93: 2020-07-05 | K93: =H93+4000 -> 83000 | N93: =K93+4000 -> 87000 | Q93: =N93+4000 -> 91000 | T93: =Q93+4000 -> 95000 | W93: 84 | X93: 84 | Y93: L 941 AT | Z93: =T93+4000 -> 99000 | AC93: =Z93+4000 -> 103000 | AF93: =AC93+4000 -> 107000 | AI93: =AF93+4000 -> 111000 | AL93: =AI93+4000 -> 115000 | AO93: =AL93+4000 -> 119000 | AR93: =AO93+4000 -> 123000 | AU93: =AR93+4000 -> 127000 | AX93: =AU93+4000 -> 131000 | BA93: 84 | BB93: 84 | BC93: L 941 AT | BD93: =AX93+4000 -> 135000 | BG93: =BD93+4000 -> 139000 | BJ93: =BG93+4000 -> 143000 | BM93: =BJ93+4000 -> 147000 | BP93: =BM93+4000 -> 151000 | BS93: =BP93+4000 -> 155000 | BV93: =BS93+4000 -> 159000 | BY93: =BV93+4000 -> 163000 | CB93: =BY93+4000 -> 167000 | CE93: 84
A94: 85 | B94: Зил 130 водовоз | C94: L 652 AL | D94: 1985 | E94: 90000 | F94: 90782 | G94: 2017-08-09 | H94: =E94+4000 -> 94000 | K94: =H94+4000 -> 98000 | N94: =K94+4000 -> 102000 | Q94: =N94+4000 -> 106000 | T94: =Q94+4000 -> 110000 | W94: 85 | X94: 85 | Y94: L 652 AL | Z94: =T94+4000 -> 114000 | AC94: =Z94+4000 -> 118000 | AF94: =AC94+4000 -> 122000 | AI94: =AF94+4000 -> 126000 | AL94: =AI94+4000 -> 130000 | AO94: =AL94+4000 -> 134000 | AR94: =AO94+4000 -> 138000 | AU94: =AR94+4000 -> 142000 | AX94: =AU94+4000 -> 146000 | BA94: 85 | BB94: 85 | BC94: L 652 AL | BD94: =AX94+4000 -> 150000 | BG94: =BD94+4000 -> 154000 | BJ94: =BG94+4000 -> 158000 | BM94: =BJ94+4000 -> 162000 | BP94: =BM94+4000 -> 166000 | BS94: =BP94+4000 -> 170000 | BV94: =BS94+4000 -> 174000 | BY94: =BV94+4000 -> 178000 | CB94: =BY94+4000 -> 182000 | CE94: 85
A95: 86 | B95: Зил 131 водовоз | C95: L 628 AL | D95: 1986 | E95: 14000 | H95: 18000 | K95: =H95+4000 -> 22000 | N95: =K95+4000 -> 26000 | Q95: =N95+4000 -> 30000 | T95: =Q95+4000 -> 34000 | W95: 86 | X95: 86 | Y95: L 628 AL | Z95: 38000 | AC95: =Z95+4000 -> 42000 | AF95: =AC95+4000 -> 46000 | AI95: =AF95+4000 -> 50000 | AL95: =AI95+4000 -> 54000 | AO95: =AL95+4000 -> 58000 | AR95: =AO95+4000 -> 62000 | AU95: =AR95+4000 -> 66000 | AX95: =AU95+4000 -> 70000 | BA95: 86 | BB95: 86 | BC95: L 628 AL | BD95: =AX95+4000 -> 74000 | BG95: =BD95+4000 -> 78000 | BJ95: =BG95+4000 -> 82000 | BM95: =BJ95+4000 -> 86000 | BP95: =BM95+4000 -> 90000 | BS95: =BP95+4000 -> 94000 | BV95: =BS95+4000 -> 98000 | BY95: =BV95+4000 -> 102000 | CB95: =BY95+4000 -> 106000 | CE95: 86
A96: 87 | B96: Зил 4314 бензовоз | C96: L 681 AL | D96: 1991 | E96: 11000 | F96: 11000 | G96: 2019-02-01 | H96: =E96+4000 -> 15000 | I96: 15700 | J96: 2022-04-10 | K96: =H96+4000 -> 19000 | N96: =K96+4000 -> 23000 | Q96: =N96+4000 -> 27000 | T96: =Q96+4000 -> 31000 | W96: 87 | X96: 87 | Y96: L 681 AL | Z96: 35000 | AC96: =Z96+4000 -> 39000 | AF96: =AC96+4000 -> 43000 | AI96: =AF96+4000 -> 47000 | AL96: =AI96+4000 -> 51000 | AO96: =AL96+4000 -> 55000 | AR96: =AO96+4000 -> 59000 | AU96: =AR96+4000 -> 63000 | AX96: =AU96+4000 -> 67000 | BA96: 87 | BB96: 87 | BC96: L 681 AL | BD96: =AX96+4000 -> 71000 | BG96: =BD96+4000 -> 75000 | BJ96: =BG96+4000 -> 79000 | BM96: =BJ96+4000 -> 83000 | BP96: =BM96+4000 -> 87000 | BS96: =BP96+4000 -> 91000 | BV96: =BS96+4000 -> 95000 | BY96: =BV96+4000 -> 99000 | CB96: =BY96+4000 -> 103000 | CE96: 87
A97: Специальные бензиновые автомобили период проведения ТО-1 4000 км.
A98: 88 | B98: Газ 3307 АТЗ - 4,7 | C98: 197 AL 07 | D98: 1995 | E98: 68000 | F98: 68331 | G98: 2021-02-03 | H98: =E98+4000 -> 72000 | I98: 72093 | J98: 2022-04-28 | K98: =H98+4000 -> 76000 | N98: =K98+4000 -> 80000 | Q98: =N98+4000 -> 84000 | T98: =Q98+4000 -> 88000 | W98: 88 | X98: 88 | Y98: 197 AL 07 | Z98: =T98+4000 -> 92000 | AC98: =Z98+4000 -> 96000 | AF98: =AC98+4000 -> 100000 | AI98: =AF98+4000 -> 104000 | AL98: =AI98+4000 -> 108000 | AO98: =AL98+4000 -> 112000 | AR98: =AO98+4000 -> 116000 | AU98: =AR98+4000 -> 120000 | AX98: =AU98+4000 -> 124000 | BA98: 88 | BB98: 88 | BC98: 197 AL 07 | BD98: =AX98+4000 -> 128000 | BG98: =BD98+4000 -> 132000 | BJ98: =BG98+4000 -> 136000 | BM98: =BJ98+4000 -> 140000 | BP98: =BM98+4000 -> 144000 | BS98: =BP98+4000 -> 148000 | BV98: =BS98+4000 -> 152000 | BY98: =BV98+4000 -> 156000 | CB98: =BY98+4000 -> 160000 | CE98: 88
A99: 89 | B99: Зил 131 вакуумная машина | C99: L 613 AL | D99: 1970 | E99: 75000 | H99: =E99+4000 -> 79000 | K99: =H99+4000 -> 83000 | N99: =K99+4000 -> 87000 | Q99: =N99+4000 -> 91000 | T99: =Q99+4000 -> 95000 | W99: 89 | X99: 89 | Y99: L 613 AL | Z99: 99000 | AC99: =Z99+4000 -> 103000 | AF99: =AC99+4000 -> 107000 | AI99: =AF99+4000 -> 111000 | AL99: =AI99+4000 -> 115000 | AO99: =AL99+4000 -> 119000 | AR99: =AO99+4000 -> 123000 | AU99: =AR99+4000 -> 127000 | AX99: =AU99+4000 -> 131000 | BA99: 89 | BB99: 89 | BC99: L 613 AL | BD99: =AX99+4000 -> 135000 | BG99: =BD99+4000 -> 139000 | BJ99: =BG99+4000 -> 143000 | BM99: =BJ99+4000 -> 147000 | BP99: =BM99+4000 -> 151000 | BS99: =BP99+4000 -> 155000 | BV99: =BS99+4000 -> 159000 | BY99: =BV99+4000 -> 163000 | CB99: =BY99+4000 -> 167000 | CE99: 89
A100: 90 | B100: Зил 131 ШРС - ДЭ | C100: L 531 AT | D100: 1989 | E100: 30000 | H100: 34000 | K100: =H100+4000 -> 38000 | N100: =K100+4000 -> 42000 | Q100: =N100+4000 -> 46000 | T100: =Q100+4000 -> 50000 | W100: 90 | X100: 90 | Y100: L 531 AT | Z100: 54000 | AC100: =Z100+4000 -> 58000 | AF100: =AC100+4000 -> 62000 | AI100: =AF100+4000 -> 66000 | AL100: =AI100+4000 -> 70000 | AO100: =AL100+4000 -> 74000 | AR100: =AO100+4000 -> 78000 | AU100: =AR100+4000 -> 82000 | AX100: =AU100+4000 -> 86000 | BA100: 90 | BB100: 90 | BC100: L 531 AT | BD100: =AX100+4000 -> 90000 | BG100: =BD100+4000 -> 94000 | BJ100: =BG100+4000 -> 98000 | BM100: =BJ100+4000 -> 102000 | BP100: =BM100+4000 -> 106000 | BS100: =BP100+4000 -> 110000 | BV100: =BS100+4000 -> 114000 | BY100: =BV100+4000 -> 118000 | CB100: =BY100+4000 -> 122000 | CE100: 90

Sheet Кол № 3 и Кол№ 2
C1: Подсветка строки | D1: Вкл
B2: Наименование | C2: Гос. | D2: Год | E2: Показания одометра | H2: Показания одометра | K2: Показания одометра | N2: Показания одометра | Q2: Показания одометра | T2: Показания одометра | Y2: Гос. | Z2: Показания одометра | AC2: Показания одометра | AF2: Показания одометра | AI2: Показания одометра | AL2: Показания одометра | AO2: Показания одометра
A3: № | B3: и краткая | C3: номер | D3: выпуска | E3: ТО-2 | F3: ТО-2 | G3: Дата | H3: 1ТО-1 | I3: 1ТО-1 | J3: Дата | K3: 2ТО-1 | L3: 2ТО-1 | M3: Дата | N3: ТО-2 | O3: ТО-2 | P3: Дата | Q3: 1ТО-1 | R3: 1ТО-1 | S3: Дата | T3: 2ТО-1 | U3: 2ТО-1 | V3: Дата | W3: № | X3: № | Y3: номер | Z3: ТО-2 | AA3: ТО-2 | AB3: Дата | AC3: 1ТО-1 | AD3: 1ТО-1 | AE3: Дата | AF3: 2ТО-1 | AG3: 2ТО-1 | AH3: Дата | AI3: ТО-2 | AJ3: ТО-2 | AK3: Дата | AL3: 1ТО-1 | AM3: 1ТО-1 | AN3: Дата | AO3: 2ТО-1 | AP3: 2ТО-1 | AQ3: Дата | AR3: №
A4: п/п | B4: характеристика | E4: по плану | F4: по факту | G4: провед. | H4: по плану | I4: по факту | J4: провед. | K4: по плану | L4: по факту | M4: провед. | N4: по плану | O4: по факту | P4: провед. | Q4: по плану | R4: по факту | S4: провед. | T4: по плану | U4: по факту | V4: провед. | W4: п/п | X4: п/п | Z4: по плану | AA4: по факту | AB4: провед. | AC4: по плану | AD4: по факту | AE4: провед. | AF4: по плану | AG4: по факту | AH4: провед. | AI4: по плану | AJ4: по факту | AK4: провед. | AL4: по плану | AM4: по факту | AN4: провед. | AO4: по плану | AP4: по факту | AQ4: провед. | AR4: п/п
B5: Дизельные
A6: Автобусы период проведения ТО-1 4000км
A7: 1 | B7: Камаз 4310 автобус | C7: L 917 AO | D7: 2000 | E7: 62000 | H7: =E7+4000 -> 66000 | I7: 66383 | J7: 2022-10-11 | K7: =H7+4000 -> 70000 | L7: 70000 | M7: 2020-08-18 | N7: =K7+4000 -> 74000 | Q7: =N7+4000 -> 78000 | T7: =Q7+4000 -> 82000 | W7: 1 | X7: 1 | Y7: L 917 AO | Z7: =T7+4000 -> 86000 | AC7: =Z7+4000 -> 90000 | AF7: =AC7+4000 -> 94000 | AI7: =AF7+4000 -> 98000 | AL7: =AI7+4000 -> 102000 | AO7: =AL7+4000 -> 106000 | AR7: 1
A8: Самосвалы период проведения ТО-1 4000км
A9: 2 | B9: Камаз 65115 -026 КДМ пробег | C9: 459 AH 07 | D9: 2014 | E9: 120000 | H9: =E9+4000 -> 124000 | I9: 123900 | J9: 2022-04-06 | K9: =H9+4000 -> 128000 | N9: =K9+4000 -> 132000 | Q9: =N9+4000 -> 136000 | T9: =Q9+4000 -> 140000 | W9: 2 | X9: 2 | Y9: 459 AH 07 | Z9: =T9+4000 -> 144000 | AC9: =Z9+4000 -> 148000 | AF9: =AC9+4000 -> 152000 | AI9: =AF9+4000 -> 156000 | AL9: =AI9+4000 -> 160000 | AO9: =AL9+4000 -> 164000 | AR9: 2
B10: Камаз 65115 -026 КДМ м/ч | E10: 6000 | H10: =E10+250 -> 6250 | K10: =H10+250 -> 6500 | N10: =K10+250 -> 6750 | Q10: =N10+250 -> 7000 | T10: =Q10+250 -> 7250 | Z10: =T10+250 -> 7500 | AC10: =Z10+250 -> 7750 | AF10: =AC10+250 -> 8000 | AI10: =AF10+250 -> 8250 | AL10: =AI10+250 -> 8500 | AO10: =AL10+250 -> 8750
A11: 3 | B11: Камаз 65115 КДМ пробег | C11: 653 AN 07 | D11: 2016 | E11: 28000 | F11: 28050 | G11: 2022-10-03 | H11: =E11+4000 -> 32000 | K11: =H11+4000 -> 36000 | N11: =K11+4000 -> 40000 | Q11: =N11+4000 -> 44000 | T11: =Q11+4000 -> 48000 | W11: 3 | X11: 3 | Y11: 653 AN 07 | Z11: =T11+4000 -> 52000 | AC11: =Z11+4000 -> 56000 | AF11: =AC11+4000 -> 60000 | AI11: =AF11+4000 -> 64000 | AL11: =AI11+4000 -> 68000 | AO11: =AL11+4000 -> 72000 | AR11: 3
B12: Камаз 65115 КДМ м/ч | E12: 500 | H12: =E12+250 -> 750 | K12: =H12+250 -> 1000 | N12: =K12+250 -> 1250 | Q12: =N12+250 -> 1500 | T12: =Q12+250 -> 1750 | Z12: =T12+250 -> 2000 | AC12: =Z12+250 -> 2250 | AF12: =AC12+250 -> 2500 | AI12: =AF12+250 -> 2750 | AL12: =AI12+250 -> 3000 | AO12: =AL12+250 -> 3250
A13: 4 | B13: Камаз 829б КДМ пробег | C13: 896 АО 07 | D13: 2017 | E13: 62000 | F13: 62300 | G13: 2022-10-26 | H13: =E13+4000 -> 66000 | K13: =H13+4000 -> 70000 | L13: 58000 | M13: 2021-12-29 | N13: =L13+4000 -> 62000 | Q13: =N13+4000 -> 66000 | T13: =Q13+4000 -> 70000 | W13: 4 | X13: 4 | Y13: 896 АО 07 | Z13: =T13+4000 -> 74000 | AC13: =Z13+4000 -> 78000 | AF13: =AC13+4000 -> 82000 | AI13: =AF13+4000 -> 86000 | AL13: =AI13+4000 -> 90000 | AO13: =AL13+4000 -> 94000 | AR13: 4
B14: Камаз 829б КДМ м/ч | E14: 7000 | F14: 7000 | G14: 2021-06-21 | H14: =E14+250 -> 7250 | K14: =H14+250 -> 7500 | N14: =K14+250 -> 7750 | Q14: =N14+250 -> 8000 | T14: =Q14+250 -> 8250 | Z14: =T14+250 -> 8500 | AC14: =Z14+250 -> 8750 | AF14: =AC14+250 -> 9000 | AI14: =AF14+250 -> 9250 | AL14: =AI14+250 -> 9500 | AO14: =AL14+250 -> 9750
A15: 5 | B15: Камаз 65115 -026 КДМ пробег | C15: 237 AQ07 | D15: 2018 | E15: 36000 | F15: 36120 | G15: 2021-08-02 | H15: =E15+4000 -> 40000 | K15: =H15+4000 -> 44000 | N15: =K15+4000 -> 48000 | Q15: =N15+4000 -> 52000 | T15: =Q15+4000 -> 56000 | W15: 5 | X15: 5 | Y15: 237 AQ07 | Z15: =T15+4000 -> 60000 | AC15: =Z15+4000 -> 64000 | AF15: =AC15+4000 -> 68000 | AI15: =AF15+4000 -> 72000 | AL15: =AI15+4000 -> 76000 | AO15: =AL15+4000 -> 80000 | AR15: 5
B16: Камаз 65115 -026 КДМ м/ч | E16: 4750 | F16: 4780 | G16: 2022-02-10 | H16: =E16+250 -> 5000 | K16: =H16+250 -> 5250 | N16: =K16+250 -> 5500 | Q16: =N16+250 -> 5750 | T16: =Q16+250 -> 6000 | Z16: =T16+250 -> 6250 | AC16: =Z16+250 -> 6500 | AF16: =AC16+250 -> 6750 | AI16: =AF16+250 -> 7000 | AL16: =AI16+250 -> 7250 | AO16: =AL16+250 -> 7500
A17: 6 | B17: Камаз 65153081-50 КДМ пробег | C17: 937AS07 | D17: 2019 | E17: 32000 | F17: 31915 | G17: 2022-10-19 | H17: =E17+4000 -> 36000 | K17: =H17+4000 -> 40000 | N17: =K17+4000 -> 44000 | Q17: =N17+4000 -> 48000 | T17: =Q17+4000 -> 52000 | W17: 6 | X17: 6 | Y17: 937AS07 | Z17: =T17+4000 -> 56000 | AC17: =Z17+4000 -> 60000 | AF17: =AC17+4000 -> 64000 | AI17: =AF17+4000 -> 68000 | AL17: =AI17+4000 -> 72000 | AO17: =AL17+4000 -> 76000 | AR17: 6
B18: Камаз 65153081-50 КДМ м/ч | E18: 500 | F18: 3689 | H18: =E18+250 -> 750 | K18: =H18+250 -> 1000 | N18: =K18+250 -> 1250 | Q18: =N18+250 -> 1500 | T18: =Q18+250 -> 1750 | Z18: =T18+250 -> 2000 | AC18: =Z18+250 -> 2250 | AF18: =AC18+250 -> 2500 | AI18: =AF18+250 -> 2750 | AL18: =AI18+250 -> 3000 | AO18: =AL18+250 -> 3250
A19: 7 | B19: Камаз 65115-6058-50 KO829c1 пробег | C19: 941 АТ 07 | D19: 2022 | H19: =E19+4000 -> 4000 | K19: =H19+4000 -> 8000 | N19: =K19+4000 -> 12000 | Q19: =N19+4000 -> 16000 | T19: =Q19+4000 -> 20000 | W19: 7 | X19: 7 | Y19: 941 АТ 07 | Z19: =T19+4000 -> 24000 | AC19: =Z19+4000 -> 28000 | AF19: =AC19+4000 -> 32000 | AI19: =AF19+4000 -> 36000 | AL19: =AI19+4000 -> 40000 | AO19: =AL19+4000 -> 44000 | AR19: 7
B20: Камаз 65115-6058-50 KO829c1 м/ч | H20: =E20+250 -> 250 | K20: =H20+250 -> 500 | N20: =K20+250 -> 750 | Q20: =N20+250 -> 1000 | T20: =Q20+250 -> 1250 | Z20: =T20+250 -> 1500 | AC20: =Z20+250 -> 1750 | AF20: =AC20+250 -> 2000 | AI20: =AF20+250 -> 2250 | AL20: =AI20+250 -> 2500 | AO20: =AL20+250 -> 2750
A21: 8 | B21: Камаз 55102 | C21: L 055 AE | D21: 1995 | E21: 2400 | F21: 2466 | G21: 2021-06-17 | H21: =E21+4000 -> 6400 | K21: =H21+4000 -> 10400 | N21: =K21+4000 -> 14400 | Q21: =N21+4000 -> 18400 | T21: =Q21+4000 -> 22400 | W21: 8 | X21: 8 | Y21: L 055 AE | Z21: =T21+4000 -> 26400 | AC21: =Z21+4000 -> 30400 | AF21: =AC21+4000 -> 34400 | AI21: =AF21+4000 -> 38400 | AL21: =AI21+4000 -> 42400 | AO21: =AL21+4000 -> 46400 | AR21: 8
A22: Седельные тягачи период проведения ТО-1 4000км
A23: 9 | B23: Камаз 541150 | C23: L 109 AT | D23: 2000 | E23: 70000 | H23: =E23+4000 -> 74000 | K23: =H23+4000 -> 78000 | N23: =K23+4000 -> 82000 | Q23: =N23+4000 -> 86000 | T23: =Q23+4000 -> 90000 | W23: 9 | X23: 9 | Y23: L 109 AT | Z23: =T23+4000 -> 94000 | AC23: =Z23+4000 -> 98000 | AF23: =AC23+4000 -> 102000 | AI23: =AF23+4000 -> 106000 | AL23: =AI23+4000 -> 110000 | AO23: =AL23+4000 -> 114000 | AR23: 9
A24: 10 | B24: Камаз 541150 | C24: L 110 AT | D24: 2000 | E24: 355000 | H24: 359000 | K24: 363000 | N24: 367000 | Q24: 371000 | T24: 375000 | W24: 10 | X24: 10 | Y24: L 110AT | Z24: 379000 | AC24: 383000 | AF24: 387000 | AI24: 391000 | AL24: 395000 | AO24: 399000 | AR24: 10
A25: 11 | B25: Камаз 65116-019 | C25: L 187 BN | D25: 2011 | E25: 84000 | F25: 85000 | G25: 2022-02-09 | H25: 88000 | I25: 88500 | J25: 2022-09-29 | K25: 92000 | N25: 96000 | Q25: 100000 | T25: =Q25+4000 -> 104000 | W25: 11 | X25: 11 | Y25: L 187 BN | Z25: 108000 | AC25: 112000 | AF25: 116000 | AI25: 120000 | AL25: 124000 | AO25: 128000 | AR25: 11
A26: 12 | B26: Камаз 65116-019 | C26: L 196 BN | D26: 2011 | E26: 180000 | F26: 180000 | G26: 2021-10-15 | H26: 184000 | K26: 188000 | N26: 192000 | Q26: 196000 | T26: =Q26+4000 -> 200000 | W26: 12 | X26: 12 | Y26: L 196 BN | Z26: 204000 | AC26: 208000 | AF26: 212000 | AI26: 216000 | AL26: 220000 | AO26: 224000 | AR26: 12
A27: 13 | B27: Камаз 65116-019 | C27: 958 AF 07 | D27: 2014 | E27: 116000 | F27: 115912 | G27: 2022-05-28 | H27: 120000 | K27: 124000 | N27: 128000 | Q27: 132000 | T27: =Q27+4000 -> 136000 | W27: 13 | X27: 13 | Y27: 958 AF 07 | Z27: 140000 | AC27: 144000 | AF27: 148000 | AI27: 152000 | AL27: 156000 | AO27: 160000 | AR27: 13
A28: 14 | B28: Камаз 65116-019 | C28: 996 AF 07 | D28: 2014 | E28: 127000 | F28: 128000 | G28: 2022-02-09 | H28: 131000 | K28: 135000 | N28: 139000 | Q28: 143000 | T28: =Q28+4000 -> 147000 | W28: 14 | X28: 14 | Y28: 996 AF 07 | Z28: =T28+4000 -> 151000 | AC28: =Z28+4000 -> 155000 | AF28: 159000 | AI28: 163000 | AL28: 167000 | AO28: 171000 | AR28: 14
A29: Специальные период проведения ТО-1 4000км
A30: 15 | B30: Урал 4320 ДЭ-226 | C30: L 077 AO | D30: 1990 | E30: 1000 | H30: =E30+4000 -> 5000 | K30: =H30+4000 -> 9000 | N30: =K30+4000 -> 13000 | Q30: =N30+4000 -> 17000 | T30: =Q30+4000 -> 21000 | W30: 15 | X30: 15 | Y30: L 077 AO | Z30: =T30+4000 -> 25000 | AC30: =Z30+4000 -> 29000 | AF30: =AC30+4000 -> 33000 | AI30: =AF30+4000 -> 37000 | AL30: =AI30+4000 -> 41000 | AO30: =AL30+4000 -> 45000 | AR30: 15
A31: 16 | B31: Урал 4320 ЦА-320 пробег | C31: 910 AT 07 | D31: 2021 | H31: 4000 | I31: 4102 | J31: 2021-06-17 | K31: =H31+4000 -> 8000 | N31: 12000 | Q31: =N31+4000 -> 16000 | T31: 20000 | W31: 16 | X31: 16 | Y31: 910 AТ 07 | Z31: 24000 | AC31: 28000 | AF31: 32000 | AI31: 36000 | AL31: 40000 | AO31: 44000 | AR31: 16
B32: Урал 4320 ЦА-320 моточас | E32: 2250 | F32: 2235 | G32: 2022-07-20 | H32: =E32+250 -> 2500 | K32: =H32+250 -> 2750 | N32: =K32+250 -> 3000 | Q32: =N32+250 -> 3250 | T32: =Q32+250 -> 3500 | Z32: =T32+250 -> 3750 | AC32: =Z32+250 -> 4000 | AF32: =AC32+250 -> 4250 | AI32: =AF32+250 -> 4500 | AL32: =AI32+250 -> 4750 | AO32: =AL32+250 -> 5000
A33: 17 | B33: Краз-65053 УНБ-450х700 пробег | C33: L 984 BF | D33: 2011 | E33: 89000 | F33: 89000 | G33: 2019-05-13 | H33: =E33+4000 -> 93000 | K33: =H33+4000 -> 97000 | N33: =K33+4000 -> 101000 | Q33: =N33+4000 -> 105000 | T33: =Q33+4000 -> 109000 | W33: 17 | X33: 17 | Y33: L 984 BF | Z33: =T33+4000 -> 113000 | AC33: =Z33+4000 -> 117000 | AF33: =AC33+4000 -> 121000 | AI33: =AF33+4000 -> 125000 | AL33: =AI33+4000 -> 129000 | AO33: =AL33+4000 -> 133000 | AR33: 17
B34: Краз-65053 УНБ-450х700 м/ч | E34: 8250 | F34: 8300 | G34: 2019-10-17 | H34: =E34+250 -> 8500 | K34: =H34+250 -> 8750 | N34: =K34+250 -> 9000 | Q34: =N34+250 -> 9250 | T34: =Q34+250 -> 9500 | Z34: =T34+250 -> 9750 | AC34: =Z34+250 -> 10000 | AF34: =AC34+250 -> 10250 | AI34: =AF34+250 -> 10500 | AL34: =AI34+250 -> 10750 | AO34: =AL34+250 -> 11000
A35: 18 | B35: Урал 4320 ППУА пробег | C35: L 507 BM | D35: 2011 | E35: 56000 | F35: 56000 | G35: 2018-05-30 | H35: =E35+4000 -> 60000 | K35: =H35+4000 -> 64000 | N35: =K35+4000 -> 68000 | Q35: =N35+4000 -> 72000 | T35: =Q35+4000 -> 76000 | W35: 18 | X35: 18 | Y35: L 507 BM | Z35: =U35+4000 -> 4000 | AC35: =Z35+4000 -> 8000 | AF35: =AC35+4000 -> 12000 | AI35: =AF35+4000 -> 16000 | AL35: =AI35+4000 -> 20000 | AO35: =AL35+4000 -> 24000 | AR35: 18
B36: Урал 4320 ППУА м/ч | E36: 8000 | F36: 8080 | G36: 2014-11-27 | H36: =E36+250 -> 8250 | I36: 8164 | J36: 2016-07-11 | K36: =H36+250 -> 8500 | L36: 8469 | M36: 2018-02-13 | N36: =K36+250 -> 8750 | Q36: =N36+250 -> 9000 | T36: =Q36+250 -> 9250 | Z36: =T36+250 -> 9500 | AC36: =Z36+250 -> 9750 | AF36: =AC36+250 -> 10000 | AI36: =AF36+250 -> 10250 | AL36: =AI36+250 -> 10500 | AO36: =AL36+250 -> 10750
A37: 19 | B37: Урал 4320 ППУА пробег | C37: L 517 BM | D37: 2011 | E37: 34000 | F37: 34000 | G37: 2017-11-21 | H37: =E37+4000 -> 38000 | K37: =H37+4000 -> 42000 | N37: =K37+4000 -> 46000 | Q37: =N37+4000 -> 50000 | T37: =Q37+4000 -> 54000 | W37: 19 | X37: 19 | Y37: L 517 BM | Z37: =T37+4000 -> 58000 | AC37: =Z37+4000 -> 62000 | AF37: =AC37+4000 -> 66000 | AI37: =AF37+4000 -> 70000 | AL37: =AI37+4000 -> 74000 | AO37: =AL37+4000 -> 78000 | AR37: 19
B38: Урал 4320 ППУА м/ч | E38: 9700 | F38: 9700 | G38: 2018-01-30 | H38: =E38+250 -> 9950 | K38: =H38+250 -> 10200 | L38: 10138 | M38: 2018-09-07 | N38: =K38+250 -> 10450 | Q38: =N38+250 -> 10700 | T38: =Q38+250 -> 10950 | Z38: =T38+250 -> 11200 | AC38: =Z38+250 -> 11450 | AF38: =AC38+250 -> 11700 | AI38: =AF38+250 -> 11950 | AL38: =AI38+250 -> 12200 | AO38: =AL38+250 -> 12450
A39: 20 | B39: Урал 4320 ППУА пробег | C39: L 579 BL | D39: 2011 | E39: 33000 | H39: =E39+4000 -> 37000 | K39: 41000 | N39: 45000 | Q39: 49000 | T39: 53000 | W39: 20 | X39: 20 | Y39: L 579 BL | Z39: =T39+4000 -> 57000 | AC39: =Z39+4000 -> 61000 | AF39: =AC39+4000 -> 65000 | AI39: =AF39+4000 -> 69000 | AL39: =AI39+4000 -> 73000 | AO39: =AL39+4000 -> 77000 | AR39: 20
B40: Урал 4320 ППУА м/ч | E40: 7500 | F40: 7480 | G40: 2019-09-11 | H40: =E40+250 -> 7750 | K40: =H40+250 -> 8000 | N40: =K40+250 -> 8250 | Q40: =N40+250 -> 8500 | T40: =Q40+250 -> 8750 | Z40: =T40+250 -> 9000 | AC40: =Z40+250 -> 9250 | AF40: =AC40+250 -> 9500 | AI40: =AF40+250 -> 9750 | AL40: =AI40+250 -> 10000 | AO40: =AL40+250 -> 10250
A41: 21 | B41: Урал 4320 ППУА пробег | C41: 603 AD 07 | D41: 2013 | E41: 42000 | F41: 39503 | G41: 2016-03-29 | H41: =E41+4000 -> 46000 | I41: 40040 | J41: 2016-07-26 | K41: =H41+4000 -> 50000 | N41: =K41+4000 -> 54000 | Q41: =N41+4000 -> 58000 | T41: =Q41+4000 -> 62000 | W41: 21 | X41: 21 | Y41: 603 AD 07 | Z41: =T41+4000 -> 66000 | AC41: =Z41+4000 -> 70000 | AF41: =AC41+4000 -> 74000 | AI41: =AF41+4000 -> 78000 | AL41: =AI41+4000 -> 82000 | AO41: =AL41+4000 -> 86000 | AR41: 21
B42: Урал 4320 ППУА м/ч | E42: 6470 | F42: 6470 | G42: 2022-04-13 | H42: =E42+250 -> 6720 | K42: =H42+250 -> 6970 | N42: =K42+250 -> 7220 | Q42: =N42+250 -> 7470 | T42: =Q42+250 -> 7720 | Z42: =T42+250 -> 7970 | AC42: =Z42+250 -> 8220 | AF42: =AC42+250 -> 8470 | AI42: =AF42+250 -> 8720 | AL42: =AI42+250 -> 8970 | AO42: =AL42+250 -> 9220
A43: 22 | B43: Урал 4320 ППУА пробег | C43: 620 AD 07 | D43: 2013 | E43: 34500 | F43: 30892 | G43: 2021-10-21 | H43: =E43+4000 -> 38500 | K43: =H43+4000 -> 42500 | N43: =K43+4000 -> 46500 | Q43: =N43+4000 -> 50500 | T43: =Q43+4000 -> 54500 | W43: 22 | X43: 22 | Y43: 620 AD 07 | Z43: =T43+4000 -> 58500 | AC43: =Z43+4000 -> 62500 | AF43: =AC43+4000 -> 66500 | AI43: =AF43+4000 -> 70500 | AL43: =AI43+4000 -> 74500 | AO43: =AL43+4000 -> 78500 | AR43: 22
B44: Урал 4320 ППУА м/ч | E44: 4750 | F44: 4785 | G44: 2020-12-09 | H44: =E44+250 -> 5000 | K44: =H44+250 -> 5250 | N44: =K44+250 -> 5500 | Q44: =N44+250 -> 5750 | T44: =Q44+250 -> 6000 | Z44: =T44+250 -> 6250 | AC44: =Z44+250 -> 6500 | AF44: =AC44+250 -> 6750 | AI44: =AF44+250 -> 7000 | AL44: =AI44+250 -> 7250 | AO44: =AL44+250 -> 7500
A45: 23 | B45: Камаз 43118-3027-50 ПАРМ пробег | C45: 961 АТ 07 | D45: 2022 | H45: 4000 | K45: =H45+4000 -> 8000 | N45: =K45+4000 -> 12000 | Q45: =N45+4000 -> 16000 | T45: =Q45+4000 -> 20000 | W45: 23 | X45: 23 | Y45: 961 АТ 07 | Z45: =T45+4000 -> 24000 | AC45: =Z45+4000 -> 28000 | AF45: =AC45+4000 -> 32000 | AI45: =AF45+4000 -> 36000 | AL45: =AI45+4000 -> 40000 | AO45: =AL45+4000 -> 44000 | AR45: 23
B46: Камаз 43118-3027-50 ПАРМ м/ч | H46: =E46+250 -> 250 | K46: =H46+250 -> 500 | N46: =K46+250 -> 750 | Q46: =N46+250 -> 1000 | T46: =Q46+250 -> 1250 | Z46: =T46+250 -> 1500 | AC46: =Z46+250 -> 1750 | AF46: =AC46+250 -> 2000 | AI46: =AF46+250 -> 2250 | AL46: =AI46+250 -> 2500 | AO46: =AL46+250 -> 2750
A47: 24 | B47: Камаз 43118-3027-50 ПАРМ пробег | C47: 967 АТ 07 | D47: 2022 | H47: 4000 | I47: 4081 | J47: 2022-06-26 | K47: =H47+4000 -> 8000 | L47: 8080 | M47: 2022-11-28 | N47: =K47+4000 -> 12000 | Q47: =N47+4000 -> 16000 | T47: =Q47+4000 -> 20000 | W47: 24 | X47: 24 | Y47: 967 АТ 07 | Z47: =T47+4000 -> 24000 | AC47: =Z47+4000 -> 28000 | AF47: =AC47+4000 -> 32000 | AI47: =AF47+4000 -> 36000 | AL47: =AI47+4000 -> 40000 | AO47: =AL47+4000 -> 44000 | AR47: 24
B48: Камаз 43118-3027-50 ПАРМ м/ч | H48: =E48+250 -> 250 | K48: =H48+250 -> 500 | N48: =K48+250 -> 750 | Q48: =N48+250 -> 1000 | T48: =Q48+250 -> 1250 | Z48: =T48+250 -> 1500 | AC48: =Z48+250 -> 1750 | AF48: =AC48+250 -> 2000 | AI48: =AF48+250 -> 2250 | AL48: =AI48+250 -> 2500 | AO48: =AL48+250 -> 2750
A49: 25 | B49: Камаз 45143-6012-50 Сельхозник пробег | C49: 946 АТ 07 | D49: 2022 | E49: 24000 | F49: 24000 | G49: 2022-11-12 | H49: =E49+4000 -> 28000 | I49: 28535 | J49: 2022-12-18 | K49: =H49+4000 -> 32000 | N49: =K49+4000 -> 36000 | Q49: =N49+4000 -> 40000 | T49: =Q49+4000 -> 44000 | W49: 25 | X49: 25 | Y49: 946 АТ 07 | Z49: =T49+4000 -> 48000 | AC49: =Z49+4000 -> 52000 | AF49: =AC49+4000 -> 56000 | AI49: =AF49+4000 -> 60000 | AL49: =AI49+4000 -> 64000 | AO49: =AL49+4000 -> 68000 | AR49: 25
B50: Камаз 45143-6012-50 Сельхозник м/ч | H50: =E50+250 -> 250 | K50: =H50+250 -> 500 | N50: =K50+250 -> 750 | Q50: =N50+250 -> 1000 | T50: =Q50+250 -> 1250 | Z50: =T50+250 -> 1500 | AC50: =Z50+250 -> 1750 | AF50: =AC50+250 -> 2000 | AI50: =AF50+250 -> 2250 | AL50: =AI50+250 -> 2500 | AO50: =AL50+250 -> 2750
A51: 26 | B51: Камаз 45143-6012-50 Сельхозник пробег | C51: 964 АТ 07 | D51: 2022 | E51: 24000 | F51: 24376 | G51: 2022-11-04 | H51: 28000 | I51: 28808 | J51: 2022-12-01 | K51: =H51+4000 -> 32000 | N51: =K51+4000 -> 36000 | Q51: =N51+4000 -> 40000 | T51: =Q51+4000 -> 44000 | W51: 26 | X51: 26 | Y51: 964 АТ 07 | Z51: =T51+4000 -> 48000 | AC51: =Z51+4000 -> 52000 | AF51: =AC51+4000 -> 56000 | AI51: =AF51+4000 -> 60000 | AL51: =AI51+4000 -> 64000 | AO51: =AL51+4000 -> 68000 | AR51: 26
B52: Камаз 45143-6012-50 Сельхозник м/ч | H52: =E52+250 -> 250 | K52: =H52+250 -> 500 | N52: =K52+250 -> 750 | Q52: =N52+250 -> 1000 | T52: =Q52+250 -> 1250 | Z52: =T52+250 -> 1500 | AC52: =Z52+250 -> 1750 | AF52: =AC52+250 -> 2000 | AI52: =AF52+250 -> 2250 | AL52: =AI52+250 -> 2500 | AO52: =AL52+250 -> 2750
B53: Техническое обслуживание прицепного состава проводится вместе с тягачами. | Y53: Техническое обслуживание прицепного состава проводится вместе с тягачами.
B54: Наименование | C54: Гос. | D54: Год | E54: Показания одометра | H54: Показания одометра | K54: Показания одометра | N54: Показания одометра | Q54: Показания одометра | T54: Показания одометра | Y54: Гос. | Z54: Показания одометра | AC54: Показания одометра | AF54: Показания одометра | AI54: Показания одометра | AL54: Показания одометра | AO54: Показания одометра
A55: № | B55: и краткая | C55: номер | D55: выпуска | E55: ТО-2 | F55: ТО-2 | G55: Дата | H55: 1ТО-1 | I55: 1ТО-1 | J55: Дата | K55: 2ТО-1 | L55: 2ТО-1 | M55: Дата | N55: ТО-2 | O55: ТО-2 | P55: Дата | Q55: 1ТО-1 | R55: 1ТО-1 | S55: Дата | T55: 2ТО-1 | U55: 2ТО-1 | V55: Дата | W55: № | X55: № | Y55: номер | Z55: ТО-2 | AA55: ТО-2 | AB55: Дата | AC55: 1ТО-1 | AD55: 1ТО-1 | AE55: Дата | AF55: 2ТО-1 | AG55: 2ТО-1 | AH55: Дата | AI55: ТО-2 | AJ55: ТО-2 | AK55: Дата | AL55: 1ТО-1 | AM55: 1ТО-1 | AN55: Дата | AO55: 2ТО-1 | AP55: 2ТО-1 | AQ55: Дата | AR55: №
A56: п/п | B56: характеристика | E56: по плану | F56: по факту | G56: провед. | H56: по плану | I56: по факту | J56: провед. | K56: по плану | L56: по факту | M56: провед. | N56: по плану | O56: по факту | P56: провед. | Q56: по плану | R56: по факту | S56: провед. | T56: по плану | U56: по факту | V56: провед. | W56: п/п | X56: п/п | Z56: по плану | AA56: по факту | AB56: провед. | AC56: по плану | AD56: по факту | AE56: провед. | AF56: по плану | AG56: по факту | AH56: провед. | AI56: по плану | AJ56: по факту | AK56: провед. | AL56: по плану | AM56: по факту | AN56: провед. | AO56: по плану | AP56: по факту | AQ56: провед. | AR56: п/п
A57: 27 | B57: Камаз 43118-3027-50 Вахтовка пробег | C57: 905 YD 07 | D57: 2022 | E57: 12000 | F57: 13500 | G57: 2022-11-06 | H57: 16000 | I57: 16000 | J57: 2022-12-06 | K57: =H57+4000 -> 20000 | N57: =K57+4000 -> 24000 | Q57: =N57+4000 -> 28000 | T57: =Q57+4000 -> 32000 | W57: 27 | X57: 27 | Y57: 905 YD 07 | Z57: =T57+4000 -> 36000 | AC57: =Z57+4000 -> 40000 | AF57: =AC57+4000 -> 44000 | AI57: =AF57+4000 -> 48000 | AL57: =AI57+4000 -> 52000 | AO57: =AL57+4000 -> 56000 | AR57: 27
B58: Камаз 43118-3027-50 Вахтовка м/ч | E58: 1750 | F58: 1750 | G58: 2022-12-21 | H58: =E58+250 -> 2000 | K58: =H58+250 -> 2250 | N58: =K58+250 -> 2500 | Q58: =N58+250 -> 2750 | T58: =Q58+250 -> 3000 | Z58: =T58+250 -> 3250 | AC58: =Z58+250 -> 3500 | AF58: =AC58+250 -> 3750 | AI58: =AF58+250 -> 4000 | AL58: =AI58+250 -> 4250 | AO58: =AL58+250 -> 4500
A59: 28 | B59: Урал 4320 ППУА пробег | C59: 643 AD 07 | D59: 2013 | E59: 43399 | F59: 43303 | G59: 2022-04-14 | H59: =E59+4000 -> 47399 | K59: =H59+4000 -> 51399 | N59: =K59+4000 -> 55399 | Q59: =N59+4000 -> 59399 | T59: =Q59+4000 -> 63399 | W59: 28 | X59: 28 | Y59: 643 AD 07 | Z59: =T59+4000 -> 67399 | AC59: =Z59+4000 -> 71399 | AF59: =AC59+4000 -> 75399 | AI59: =AF59+4000 -> 79399 | AL59: =AI59+4000 -> 83399 | AO59: =AL59+4000 -> 87399 | AR59: 28
B60: Урал 4320 ППУА мото час | E60: 6725 | F60: 6700 | G60: 2020-02-25 | H60: =E60+250 -> 6975 | K60: =H60+250 -> 7225 | N60: =K60+250 -> 7475 | Q60: =N60+250 -> 7725 | T60: =Q60+250 -> 7975 | Z60: =T60+250 -> 8225 | AC60: =Z60+250 -> 8475 | AF60: =AC60+250 -> 8725 | AI60: =AF60+250 -> 8975 | AL60: =AI60+250 -> 9225 | AO60: =AL60+250 -> 9475
A61: 29 | B61: Урал 4320 ППУА пробег | C61: 646 AD 07 | D61: 2013 | E61: 34000 | H61: =E61+4000 -> 38000 | I61: 39134 | J61: 2021-02-25 | K61: =H61+4000 -> 42000 | L61: 30000 | M61: 2018-06-19 | N61: =K61+4000 -> 46000 | Q61: =N61+4000 -> 50000 | T61: =Q61+4000 -> 54000 | W61: 29 | X61: 29 | Y61: 646 AD 07 | Z61: =T61+4000 -> 58000 | AC61: =Z61+4000 -> 62000 | AF61: =AC61+4000 -> 66000 | AI61: =AF61+4000 -> 70000 | AL61: =AI61+4000 -> 74000 | AO61: =AL61+4000 -> 78000 | AR61: 29
B62: Урал 4320 ППУА мото час | E62: 4000 | F62: 39082 | G62: 2021-02-25 | H62: =E62+250 -> 4250 | I62: 4200 | J62: 2021-10-12 | K62: =H62+250 -> 4500 | N62: =K62+250 -> 4750 | Q62: =N62+250 -> 5000 | T62: =Q62+250 -> 5250 | Z62: =T62+250 -> 5500 | AC62: =Z62+250 -> 5750 | AF62: =AC62+250 -> 6000 | AI62: =AF62+250 -> 6250 | AL62: =AI62+250 -> 6500 | AO62: =AL62+250 -> 6750
A63: 30 | B63: Урал 4320 ППУА пробег | C63: 103 YA07 | D63: 2019 | H63: =E63+4000 -> 4000 | K63: =H63+4000 -> 8000 | N63: =K63+4000 -> 12000 | Q63: =N63+4000 -> 16000 | T63: =Q63+4000 -> 20000 | W63: 30 | X63: 30 | Y63: 103 YA07 | Z63: =T63+4000 -> 24000 | AC63: =Z63+4000 -> 28000 | AF63: =AC63+4000 -> 32000 | AI63: =AF63+4000 -> 36000 | AL63: =AI63+4000 -> 40000 | AO63: =AL63+4000 -> 44000 | AR63: 30
B64: Урал 4320 ППУА мото час | E64: 3000 | F64: 3003 | G64: 2022-07-19 | H64: =E64+250 -> 3250 | K64: =H64+250 -> 3500 | N64: =K64+250 -> 3750 | Q64: =N64+250 -> 4000 | T64: =Q64+250 -> 4250 | Z64: =T64+250 -> 4500 | AC64: =Z64+250 -> 4750 | AF64: =AC64+250 -> 5000 | AI64: =AF64+250 -> 5250 | AL64: =AI64+250 -> 5500 | AO64: =AL64+250 -> 5750
A65: 31 | B65: Урал 4320 ППУА пробег | C65: 108 YA07 | D65: 2019 | H65: =E65+4000 -> 4000 | K65: =H65+4000 -> 8000 | N65: =K65+4000 -> 12000 | Q65: =N65+4000 -> 16000 | T65: =Q65+4000 -> 20000 | W65: 31 | X65: 31 | Y65: 108 YA07 | Z65: =T65+4000 -> 24000 | AC65: =Z65+4000 -> 28000 | AF65: =AC65+4000 -> 32000 | AI65: =AF65+4000 -> 36000 | AL65: =AI65+4000 -> 40000 | AO65: =AL65+4000 -> 44000 | AR65: 31
B66: Урал 4320 ППУА мото час | E66: 3000 | F66: 3025 | G66: 2022-07-20 | H66: =E66+250 -> 3250 | K66: =H66+250 -> 3500 | N66: =K66+250 -> 3750 | Q66: =N66+250 -> 4000 | T66: =Q66+250 -> 4250 | Z66: =T66+250 -> 4500 | AC66: =Z66+250 -> 4750 | AF66: =AC66+250 -> 5000 | AI66: =AF66+250 -> 5250 | AL66: =AI66+250 -> 5500 | AO66: =AL66+250 -> 5750
A67: 32 | B67: Урал 4320 ППУА пробег | C67: 132 YA07 | D67: 2019 | E67: 12000 | F67: 12320 | G67: 2021-05-17 | H67: =E67+4000 -> 16000 | I67: 15800 | J67: 2022-03-02 | K67: =H67+4000 -> 20000 | N67: =K67+4000 -> 24000 | Q67: =N67+4000 -> 28000 | T67: =Q67+4000 -> 32000 | W67: 32 | X67: 32 | Y67: 132 YA07 | Z67: =T67+4000 -> 36000 | AC67: =Z67+4000 -> 40000 | AF67: =AC67+4000 -> 44000 | AI67: =AF67+4000 -> 48000 | AL67: =AI67+4000 -> 52000 | AO67: =AL67+4000 -> 56000 | AR67: 32
B68: Урал 4320 ППУА мото час | E68: 3750 | F68: 3750 | G68: 2021-12-28 | H68: =E68+250 -> 4000 | K68: 3500 | N68: =K68+250 -> 3750 | Q68: =N68+250 -> 4000 | T68: =Q68+250 -> 4250 | Z68: =T68+250 -> 4500 | AC68: =Z68+250 -> 4750 | AF68: =AC68+250 -> 5000 | AI68: =AF68+250 -> 5250 | AL68: =AI68+250 -> 5500 | AO68: =AL68+250 -> 5750
A69: 33 | B69: Урал 4320 ППУА пробег | C69: 133 YA07 | D69: 2019 | E69: 12000 | F69: 12400 | G69: 2020-11-03 | H69: =E69+4000 -> 16000 | K69: =H69+4000 -> 20000 | N69: =K69+4000 -> 24000 | Q69: =N69+4000 -> 28000 | T69: =Q69+4000 -> 32000 | W69: 33 | X69: 33 | Y69: 133 YA07 | Z69: =T69+4000 -> 36000 | AC69: =Z69+4000 -> 40000 | AF69: =AC69+4000 -> 44000 | AI69: =AF69+4000 -> 48000 | AL69: =AI69+4000 -> 52000 | AO69: =AL69+4000 -> 56000 | AR69: 33
B70: Урал 4320 ППУА мото час | E70: 750 | F70: 750 | G70: 2021-06-29 | H70: =E70+250 -> 1000 | I70: 970 | J70: 2021-09-09 | K70: =H70+250 -> 1250 | L70: 1259 | M70: 2022-02-08 | N70: =K70+250 -> 1500 | Q70: =N70+250 -> 1750 | T70: =Q70+250 -> 2000 | Z70: =T70+250 -> 2250 | AC70: =Z70+250 -> 2500 | AF70: =AC70+250 -> 2750 | AI70: =AF70+250 -> 3000 | AL70: =AI70+250 -> 3250 | AO70: =AL70+250 -> 3500
A71: 34 | B71: Урал 4320 кислотник пробег | C71: L283 BF | D71: 2010 | E71: 22000 | F71: 22287 | H71: =E71+4000 -> 26000 | K71: =H71+4000 -> 30000 | N71: =K71+4000 -> 34000 | Q71: =N71+4000 -> 38000 | T71: =Q71+4000 -> 42000 | W71: 34 | X71: 34 | Y71: L283 BF | Z71: =T71+4000 -> 46000 | AC71: =Z71+4000 -> 50000 | AF71: =AC71+4000 -> 54000 | AI71: =AF71+4000 -> 58000 | AL71: =AI71+4000 -> 62000 | AO71: =AL71+4000 -> 66000 | AR71: 34
B72: Урал 4320 кислотник мото час | E72: 1750 | F72: 1760 | G72: 2022-03-15 | H72: =E72+250 -> 2000 | K72: =H72+250 -> 2250 | N72: =K72+250 -> 2500 | Q72: =N72+250 -> 2750 | T72: =Q72+250 -> 3000 | Z72: =T72+250 -> 3250 | AC72: =Z72+250 -> 3500 | AF72: =AC72+250 -> 3750 | AI72: =AF72+250 -> 4000 | AL72: =AI72+250 -> 4250 | AO72: =AL72+250 -> 4500
A73: 35 | B73: УРАЛ 4320 ЦА-320 пробег | C73: L 693 BL | D73: 2012 | E73: 18000 | H73: =E73+4000 -> 22000 | K73: =H73+4000 -> 26000 | N73: =K73+4000 -> 30000 | Q73: =N73+4000 -> 34000 | T73: =Q73+4000 -> 38000 | W73: 35 | X73: 35 | Y73: L 693 BL | Z73: =T73+4000 -> 42000 | AC73: =Z73+4000 -> 46000 | AF73: =AC73+4000 -> 50000 | AI73: =AF73+4000 -> 54000 | AL73: =AI73+4000 -> 58000 | AO73: =AL73+4000 -> 62000 | AR73: 35
B74: УРАЛ 4320 ЦА-320 мото час | E74: 18500 | F74: 18556 | G74: 2020-04-15 | H74: =E74+250 -> 18750 | K74: =H74+250 -> 19000 | N74: =K74+250 -> 19250 | Q74: =N74+250 -> 19500 | T74: =Q74+250 -> 19750 | Z74: =T74+250 -> 20000 | AC74: =Z74+250 -> 20250 | AF74: =AC74+250 -> 20500 | AI74: =AF74+250 -> 20750 | AL74: =AI74+250 -> 21000 | AO74: =AL74+250 -> 21250
A75: 36 | B75: Урал-4320 АЦ-32 пробег | C75: 642 AD 07 | D75: 2013 | E75: 12000 | F75: 12000 | G75: 2016-02-29 | H75: =E75+4000 -> 16000 | K75: =H75+4000 -> 20000 | L75: 19543 | M75: 2020-09-07 | N75: =K75+4000 -> 24000 | Q75: =N75+4000 -> 28000 | T75: =Q75+4000 -> 32000 | W75: 36 | X75: 36 | Y75: 642 AD 07 | Z75: =T75+4000 -> 36000 | AC75: =Z75+4000 -> 40000 | AF75: =AC75+4000 -> 44000 | AI75: =AF75+4000 -> 48000 | AL75: =AI75+4000 -> 52000 | AO75: =AL75+4000 -> 56000 | AR75: 36
B76: Урал-4320 АЦ-32 мото час | E76: 3950 | F76: 3900 | G76: 2020-04-24 | H76: =E76+250 -> 4200 | I76: 4200 | J76: 2020-05-14 | K76: =H76+250 -> 4450 | L76: 4500 | M76: 2021-04-14 | N76: =K76+250 -> 4700 | Q76: =N76+250 -> 4950 | T76: =Q76+250 -> 5200 | Z76: =T76+250 -> 5450 | AC76: =Z76+250 -> 5700 | AF76: =AC76+250 -> 5950 | AI76: =AF76+250 -> 6200 | AL76: =AI76+250 -> 6450 | AO76: =AL76+250 -> 6700
A77: 37 | B77: Урал-4320 АЦ-32 пробег | C77: 894 AF 07 | D77: 2014 | E77: 18000 | F77: 12900 | G77: 2020-02-04 | H77: =E77+4000 -> 22000 | K77: =H77+4000 -> 26000 | N77: =K77+4000 -> 30000 | Q77: =N77+4000 -> 34000 | T77: =Q77+4000 -> 38000 | W77: 37 | X77: 37 | Y77: 894 AF 07 | Z77: =T77+4000 -> 42000 | AC77: =Z77+4000 -> 46000 | AF77: =AC77+4000 -> 50000 | AI77: =AF77+4000 -> 54000 | AL77: =AI77+4000 -> 58000 | AO77: =AL77+4000 -> 62000 | AR77: 37
B78: Урал-4320 АЦ-32 мото час | E78: 12600 | F78: 12600 | G78: 2022-07-27 | H78: =E78+250 -> 12850 | K78: =H78+250 -> 13100 | N78: =K78+250 -> 13350 | Q78: =N78+250 -> 13600 | T78: =Q78+250 -> 13850 | Z78: =T78+250 -> 14100 | AC78: =Z78+250 -> 14350 | AF78: =AC78+250 -> 14600 | AI78: =AF78+250 -> 14850 | AL78: =AI78+250 -> 15100 | AO78: =AL78+250 -> 15350
A79: 38 | B79: Урал-4320 АЦ-32 пробег | C79: 924 AF 07 | D79: 2014 | E79: 40000 | F79: 40000 | G79: 2022-04-01 | H79: =E79+4000 -> 44000 | K79: =H79+4000 -> 48000 | N79: =K79+4000 -> 52000 | Q79: =N79+4000 -> 56000 | T79: =Q79+4000 -> 60000 | W79: 38 | X79: 38 | Y79: 924 AF 07 | Z79: =T79+4000 -> 64000 | AC79: =Z79+4000 -> 68000 | AF79: =AC79+4000 -> 72000 | AI79: =AF79+4000 -> 76000 | AL79: =AI79+4000 -> 80000 | AO79: =AL79+4000 -> 84000 | AR79: 38
B80: Урал-4320 АЦ-32 мото час | E80: 2500 | F80: 2500 | G80: 2019-12-20 | H80: =E80+250 -> 2750 | K80: =H80+250 -> 3000 | N80: =K80+250 -> 3250 | Q80: =N80+250 -> 3500 | T80: =Q80+250 -> 3750 | Z80: =T80+250 -> 4000 | AC80: =Z80+250 -> 4250 | AF80: =AC80+250 -> 4500 | AI80: =AF80+250 -> 4750 | AL80: =AI80+250 -> 5000 | AO80: =AL80+250 -> 5250
A81: 39 | B81: Урал-4320 АЦ-32.50 пробег | C81: 052 YN 07 | D81: 2018 | E81: 12000 | F81: 12353 | G81: 2021-10-19 | H81: =E81+4000 -> 16000 | K81: =H81+4000 -> 20000 | N81: =K81+4000 -> 24000 | Q81: =N81+4000 -> 28000 | T81: =Q81+4000 -> 32000 | W81: 39 | X81: 39 | Y81: 052 YN 07 | Z81: =T81+4000 -> 36000 | AC81: =Z81+4000 -> 40000 | AF81: =AC81+4000 -> 44000 | AI81: =AF81+4000 -> 48000 | AL81: =AI81+4000 -> 52000 | AO81: =AL81+4000 -> 56000 | AR81: 39
B82: Урал-4320 АЦ-32 50 моточас | E82: 1500 | F82: 1668 | G82: 2022-04-20 | H82: =E82+250 -> 1750 | I82: 1751 | J82: 2022-07-19 | K82: =H82+250 -> 2000 | L82: 1900 | M82: 2022-11-17 | N82: =K82+250 -> 2250 | Q82: =N82+250 -> 2500 | T82: =Q82+250 -> 2750 | Z82: =T82+250 -> 3000 | AC82: =Z82+250 -> 3250 | AF82: =AC82+250 -> 3500 | AI82: =AF82+250 -> 3750 | AL82: =AI82+250 -> 4000 | AO82: =AL82+250 -> 4250
A83: 40 | B83: Камаз 65115 - L4 | C83: 865 AE 07 | D83: 2014 | E83: 70000 | F83: 70263 | G83: 2022-01-05 | H83: =E83+4000 -> 74000 | K83: =H83+4000 -> 78000 | N83: =K83+4000 -> 82000 | Q83: =N83+4000 -> 86000 | T83: =Q83+4000 -> 90000 | W83: 40 | X83: 40 | Y83: 865 АЕ 07 | Z83: =T83+4000 -> 94000 | AC83: =Z83+4000 -> 98000 | AF83: =AC83+4000 -> 102000 | AI83: =AF83+4000 -> 106000 | AL83: =AI83+4000 -> 110000 | AO83: =AL83+4000 -> 114000 | AR83: 40
A84: 41 | B84: Камаз 65115 - L4 | C84: 965 AE 07 | D84: 2014 | E84: 70000 | F84: 70000 | G84: 2021-06-28 | H84: =E84+4000 -> 74000 | K84: =H84+4000 -> 78000 | N84: =K84+4000 -> 82000 | Q84: =N84+4000 -> 86000 | T84: =Q84+4000 -> 90000 | W84: 41 | X84: 41 | Y84: 965 АЕ 07 | Z84: =T84+4000 -> 94000 | AC84: =Z84+4000 -> 98000 | AF84: =AC84+4000 -> 102000 | AI84: =AF84+4000 -> 106000 | AL84: =AI84+4000 -> 110000 | AO84: =AL84+4000 -> 114000 | AR84: 41
A85: 42 | B85: ГАЗ 3307 | C85: 296 АВ 07 | D85: 2010 | E85: 40000 | F85: 39610 | G85: 2018-11-16 | H85: =E85+4000 -> 44000 | I85: 47000 | J85: 2021-05-28 | K85: 51000 | L85: 51000 | M85: 2022-07-19 | N85: =K85+4000 -> 55000 | Q85: =N85+4000 -> 59000 | T85: =Q85+4000 -> 63000 | W85: 42 | X85: 42 | Y85: 296 AB 07 | Z85: =T85+4000 -> 67000 | AC85: =Z85+4000 -> 71000 | AF85: =AC85+4000 -> 75000 | AI85: =AF85+4000 -> 79000 | AL85: =AI85+4000 -> 83000 | AO85: =AL85+4000 -> 87000 | AR85: 42
A86: 43 | B86: Газ 330980 АТЗ пробег | C86: 997 AQ 07 | D86: 2019 | E86: 84000 | F86: 85000 | G86: 2022-12-29 | H86: =E86+4000 -> 88000 | K86: =H86+4000 -> 92000 | N86: =K86+4000 -> 96000 | Q86: =N86+4000 -> 100000 | T86: 104000 | W86: 43 | X86: 43 | Y86: 997 AQ 07 | Z86: =T86+4000 -> 108000 | AC86: =Z86+4000 -> 112000 | AF86: =AC86+4000 -> 116000 | AI86: =AF86+4000 -> 120000 | AL86: =AI86+4000 -> 124000 | AO86: =AL86+4000 -> 128000 | AR86: 43
B87: Газ 330980 АТЗ моточас | E87: 5750 | H87: =E87+250 -> 6000 | I87: 60485 | J87: 2022-01-22 | K87: =H87+250 -> 6250 | N87: =K87+250 -> 6500 | Q87: =N87+250 -> 6750 | T87: =Q87+250 -> 7000 | Z87: =T87+250 -> 7250 | AC87: =Z87+250 -> 7500 | AF87: =AC87+250 -> 7750 | AI87: =AF87+250 -> 8000 | AL87: =AI87+250 -> 8250 | AO87: =AL87+250 -> 8500
A88: 44 | B88: Hyundai АГП пробег | C88: 130 AY 07 | D88: 2016 | E88: 4000 | F88: 3961 | G88: 2018-11-16 | H88: =E88+4000 -> 8000 | I88: 8000 | J88: 2020-08-03 | K88: =H88+4000 -> 12000 | N88: =K88+4000 -> 16000 | Q88: =N88+4000 -> 20000 | T88: =Q88+4000 -> 24000 | W88: 44 | X88: 44 | Y88: 130 AY 07 | Z88: =T88+4000 -> 28000 | AC88: =Z88+4000 -> 32000 | AF88: =AC88+4000 -> 36000 | AI88: =AF88+4000 -> 40000 | AL88: =AI88+4000 -> 44000 | AO88: =AL88+4000 -> 48000 | AR88: 44
B89: Hyundai АГП мото час | E89: 500 | F89: 550 | G89: 2019-11-21 | H89: =E89+250 -> 750 | I89: 865 | J89: 2021-09-09 | K89: =H89+250 -> 1000 | N89: =K89+250 -> 1250 | Q89: =N89+250 -> 1500 | T89: =Q89+250 -> 1750 | Z89: =T89+250 -> 2000 | AC89: =Z89+250 -> 2250 | AF89: =AC89+250 -> 2500 | AI89: =AF89+250 -> 2750 | AL89: =AI89+250 -> 3000 | AO89: =AL89+250 -> 3250
A90: 45 | B90: Камаз 6520 УНБ пробег | C90: 948 AS 07 | D90: 2019 | E90: 24000 | F90: 27000 | G90: 2022-02-16 | H90: =F90+4000 -> 31000 | K90: =H90+4000 -> 35000 | N90: =K90+4000 -> 39000 | Q90: =N90+4000 -> 43000 | T90: =Q90+4000 -> 47000 | W90: 45 | X90: 45 | Y90: 948 AS 07 | Z90: =T90+4000 -> 51000 | AC90: =Z90+4000 -> 55000 | AF90: =AC90+4000 -> 59000 | AI90: =AF90+4000 -> 63000 | AL90: =AI90+4000 -> 67000 | AO90: =AL90+4000 -> 71000 | AR90: 45
B91: Камаз 6520 УНБ мото час | E91: 2500 | F91: 2873 | G91: 2022-04-08 | H91: =E91+250 -> 2750 | K91: =H91+250 -> 3000 | N91: 2500 | Q91: =N91+250 -> 2750 | T91: =Q91+250 -> 3000 | Z91: =T91+250 -> 3250 | AC91: =Z91+250 -> 3500 | AF91: =AC91+250 -> 3750 | AI91: =AF91+250 -> 4000 | AL91: =AI91+250 -> 4250 | AO91: =AL91+250 -> 4500
A92: Краны период проведения ТО-1 4 000км
A93: 46 | B93: Камаз 6505 пробег | C93: L 637 LL | D93: 2008 | E93: 52000 | F93: 51700 | G93: 25.07.16 | H93: =E93+4000 -> 56000 | I93: 55859 | J93: 2017-06-15 | K93: =H93+4000 -> 60000 | L93: 60000 | M93: 2018-01-10 | N93: =K93+4000 -> 64000 | Q93: =N93+4000 -> 68000 | T93: =Q93+4000 -> 72000 | W93: 46 | X93: 46 | Y93: L 637 LL | Z93: =T93+4000 -> 76000 | AC93: =Z93+4000 -> 80000 | AF93: =AC93+4000 -> 84000 | AI93: =AF93+4000 -> 88000 | AL93: =AI93+4000 -> 92000 | AO93: =AL93+4000 -> 96000 | AR93: 46
B94: Камаз 6505 м/ч | E94: 1950 | F94: 1927 | G94: 2018-11-14 | H94: =E94+250 -> 2200 | K94: =H94+250 -> 2450 | N94: =K94+250 -> 2700 | Q94: =N94+250 -> 2950 | T94: =Q94+250 -> 3200 | Z94: =T94+250 -> 3450 | AC94: =Z94+250 -> 3700 | AF94: =AC94+250 -> 3950 | AI94: =AF94+250 -> 4200 | AL94: =AI94+250 -> 4450 | AO94: =AL94+250 -> 4700
B96: Техническое обслуживание прицепного состава проводится вместе с тягачами. | Y96: Техническое обслуживание прицепного состава проводится вместе с тягачами.

Sheet Кол № 3
C1: Подсветка строки | D1: Вкл
C2: Наименование | D2: Гос. номер | E2: Год | F2: Периодичность | I2: Периодичность | L2: Периодичность | O2: Периодичность | R2: Периодичность | W2: Гос. номер | X2: Периодичность | AA2: Периодичность | AD2: Периодичность | AG2: Периодичность | AJ2: Периодичность | AM2: Периодичность | AP2: Периодичность
A3: № | B3: № | C3: и краткая | E3: вып. | F3: ТО-2 | G3: ТО-2 | H3: Дата | I3: 1ТО-1 | J3: 1ТО-1 | K3: Дата | L3: 2ТО-1 | M3: 2ТО-1 | N3: Дата | O3: ТО-2 | P3: ТО-2 | Q3: Дата | R3: 1ТО-1 | S3: 1ТО-1 | T3: Дата | U3: № | V3: № | X3: 2ТО-1 | Z3: Дата | AA3: ТО-2 | AB3: ТО-2 | AC3: Дата | AD3: 1ТО-1 | AE3: 1ТО-1 | AF3: Дата | AG3: 2ТО-1 | AH3: 2ТО-1 | AI3: Дата | AJ3: ТО-2 | AK3: ТО-2 | AL3: Дата | AM3: 1ТО-1 | AN3: 1ТО-1 | AO3: Дата | AP3: 2ТО-1 | AQ3: 2ТО-1 | AR3: Дата | AS3: №
A4: п/п | B4: п/т | C4: характеристика | F4: по плану | G4: по факту | H4: провед. | I4: по плану | J4: по факту | K4: провед. | L4: по плану | M4: по факту | N4: провед. | O4: по плану | P4: по факту | Q4: провед. | R4: по плану | S4: по факту | T4: провед. | U4: п/п | V4: п/п | X4: по плану | Y4: по факту | Z4: провед. | AA4: по плану | AB4: по факту | AC4: провед. | AD4: по плану | AE4: по факту | AF4: провед. | AG4: по плану | AH4: по факту | AI4: провед. | AJ4: по плану | AK4: по факту | AL4: провед. | AM4: по плану | AN4: по факту | AO4: провед. | AP4: по плану | AQ4: по факту | AR4: провед. | AS4: п/п
A5: Погрузчики период проведения ТО-1 125 мото/час
A6: 1 | B6: 1 | C6: М 4040 1695 | D6: ACD 154 L | E6: 1990 | F6: 1250 | G6: 1250 | H6: 2020-11-17 | I6: =F6+125 -> 1375 | L6: =I6+125 -> 1500 | O6: =L6+125 -> 1625 | R6: =O6+125 -> 1750 | U6: 1 | V6: 1 | W6: ACD154 L | X6: =R6+125 -> 1875 | AA6: =X6+125 -> 2000 | AD6: =AA6+125 -> 2125 | AG6: =AD6+125 -> 2250 | AJ6: =AG6+125 -> 2375 | AM6: =AJ6+125 -> 2500 | AP6: =AM6+125 -> 2625 | AS6: 1
A7: 2 | B7: 2 | C7: Амкодор 211 | D7: ADD 871 L | E7: 2013 | F7: 4125 | G7: 4256 | H7: 2022-12-07 | I7: =F7+125 -> 4250 | L7: =I7+125 -> 4375 | O7: =L7+125 -> 4500 | R7: =O7+125 -> 4625 | U7: 2 | V7: 2 | W7: ADD 871 L | X7: =R7+125 -> 4750 | AA7: 4875 | AD7: =AA7+125 -> 5000 | AG7: 5125 | AJ7: =AG7+125 -> 5250 | AM7: =AJ7+125 -> 5375 | AP7: =AM7+125 -> 5500 | AS7: 2
A8: 3 | B8: 3 | C8: Амкодор 211 | D8: ADD 872 L | E8: 2015 | F8: 6875 | G8: 6880 | H8: 2022-12-13 | I8: 7000 | L8: =I8+125 -> 7125 | O8: =L8+125 -> 7250 | R8: 7375 | U8: 3 | V8: 3 | W8: ADD 872 L | X8: =R8+125 -> 7500 | AA8: 7625 | AD8: 7750 | AG8: 7875 | AJ8: =AG8+125 -> 8000 | AM8: =AJ8+125 -> 8125 | AP8: =AM8+125 -> 8250 | AS8: 3
A9: 4 | B9: 4 | C9: Амкодор 342B | D9: ADD 876 L | E9: 2015 | F9: 1775 | G9: 1771 | H9: 2022-01-12 | I9: 1900 | J9: 1910 | K9: 2022-06-10 | L9: 2025 | M9: 2030 | N9: 2022-07-08 | O9: 2150 | P9: 2125 | Q9: 2022-09-27 | R9: 2275 | U9: 4 | V9: 4 | W9: ADD 876 L | X9: 2400 | AA9: 2525 | AD9: 2650 | AG9: 2775 | AJ9: 2900 | AM9: 3025 | AP9: 3150 | AS9: 4
A10: 5 | B10: 5 | C10: Телескоп. погрузчик Faresin | D10: ALD L 517 | E10: 2016 | F10: 12670 | G10: 12666 | H10: 2022-12-01 | I10: 12795 | L10: 12920 | O10: 13045 | R10: 13170 | U10: 5 | V10: 5 | W10: ALD L 517 | X10: 13295 | AA10: 13420 | AD10: 13545 | AG10: 13670 | AJ10: 13795 | AM10: =AJ10+125 -> 13920 | AP10: =AM10+125 -> 14045 | AS10: 5
A11: 6 | B11: 6 | C11: Телескоп. погрузчик Faresin | D11: 695 LADD | E11: 2019 | F11: 7250 | G11: 7300 | H11: 2022-12-29 | I11: 7375 | L11: =I11+125 -> 7500 | O11: 7625 | R11: 7750 | U11: 6 | V11: 6 | W11: 695 LADD | X11: 7875 | AA11: 8000 | AD11: 8125 | AG11: 8250 | AJ11: =AG11+125 -> 8375 | AM11: =AJ11+125 -> 8500 | AP11: 8625 | AS11: 6
A12: 7 | B12: 7 | C12: Погрузчик XCMG LW300FN | D12: AFD 032 L | E12: 2017 | F12: 3750 | G12: 3800 | H12: 2022-02-28 | I12: 3875 | L12: =I12+125 -> 4000 | M12: 4092 | N12: 2022-06-03 | O12: 4125 | R12: 4250 | U12: 7 | V12: 7 | W12: AFD 032 L | X12: =R12+125 -> 4375 | AA12: =X12+125 -> 4500 | AD12: 4625 | AG12: =AD12+125 -> 4750 | AJ12: 4875 | AM12: 5000 | AP12: 5125 | AS12: 7
A13: 8 | B13: 8 | C13: Погрузчик ХCMG LW300FN | D13: L676 ATD | E13: 2018 | F13: 3000 | G13: 3000 | H13: 2022-07-11 | I13: =F13+125 -> 3125 | L13: 3250 | O13: 3375 | R13: 3500 | U13: 8 | V13: 8 | W13: L676 ATD | X13: =R13+125 -> 3625 | AA13: 3750 | AD13: 3875 | AG13: =AD13+125 -> 4000 | AJ13: =AG13+125 -> 4125 | AM13: =AJ13+125 -> 4250 | AP13: =AM13+125 -> 4375 | AS13: 8
A14: 9 | B14: 9 | C14: Bobcat S630 | D14: AFD 021 L | E14: 2017 | F14: 4000 | G14: 4059 | H14: 2022-01-08 | I14: 4125 | L14: 4250 | O14: 4375 | R14: =O14+125 -> 4500 | U14: 9 | V14: 9 | W14: AFD 021 L | X14: =R14+125 -> 4625 | AA14: 4750 | AD14: =AA14+125 -> 4875 | AG14: =AD14+125 -> 5000 | AJ14: =AG14+125 -> 5125 | AM14: =AJ14+125 -> 5250 | AP14: =AM14+125 -> 5375 | AS14: 9
A15: 10 | B15: 10 | C15: Bobcat S630 | D15: AFD 022 L | E15: 2017 | F15: 3625 | G15: 3729 | H15: 2022-12-07 | I15: 3750 | L15: 3875 | O15: 4000 | R15: 4125 | U15: 10 | V15: 10 | W15: AFD 022 L | X15: 4250 | AA15: 4375 | AD15: 4500 | AG15: 4625 | AJ15: 4750 | AM15: 4875 | AP15: 5000 | AS15: 10
A16: 11 | B16: 11 | C16: МКСМ-1000 | D16: L683 ATD | E16: 2018 | F16: 2250 | G16: 2150 | H16: 2021-12-03 | I16: =F16+125 -> 2375 | J16: 2380 | K16: 2021-12-21 | L16: =I16+125 -> 2500 | O16: 2625 | R16: 2750 | U16: 11 | V16: 11 | W16: L683 ATD | X16: =R16+125 -> 2875 | AA16: =X16+125 -> 3000 | AD16: =AA16+125 -> 3125 | AG16: =AD16+125 -> 3250 | AJ16: =AG16+125 -> 3375 | AM16: =AJ16+125 -> 3500 | AP16: =AM16+125 -> 3625 | AS16: 11
A17: 12 | B17: 12 | C17: МКСМ-1000 | D17: L684 ATD | E17: 2018 | F17: 1500 | G17: 1615 | H17: 2022-12-07 | I17: =F17+125 -> 1625 | L17: =I17+125 -> 1750 | O17: =L17+125 -> 1875 | R17: 2000 | U17: 12 | V17: 12 | W17: L684 ATD | X17: =R17+125 -> 2125 | AA17: =X17+125 -> 2250 | AD17: =AA17+125 -> 2375 | AG17: =AD17+125 -> 2500 | AJ17: =AG17+125 -> 2625 | AM17: =AJ17+125 -> 2750 | AP17: =AM17+125 -> 2875 | AS17: 12
A18: Трактора колесные период проведения ТО-1 125 мото/час
A19: 13 | B19: 1 | C19: Беларус 82.1 Д-243 | D19: ALD L 528 | E19: 2016 | F19: 3375 | G19: 3985 | H19: 2022-11-22 | I19: =F19+125 -> 3500 | L19: =I19+125 -> 3625 | O19: =L19+125 -> 3750 | R19: =O19+125 -> 3875 | U19: 13 | V19: 13 | W19: ALD L 528 | X19: =R19+125 -> 4000 | AA19: =X19+125 -> 4125 | AD19: =AA19+125 -> 4250 | AG19: =AD19+125 -> 4375 | AJ19: =AG19+125 -> 4500 | AM19: =AJ19+125 -> 4625 | AP19: =AM19+125 -> 4750 | AS19: 13
A20: 14 | B20: 2 | C20: Беларус 82.1 Д-243 | D20: ALD L 529 | E20: 2016 | F20: 4875 | G20: 4996 | H20: 2022-05-04 | I20: =F20+125 -> 5000 | L20: =I20+125 -> 5125 | O20: =L20+125 -> 5250 | R20: =O20+125 -> 5375 | U20: 14 | V20: 14 | W20: ALD L 529 | X20: =R20+125 -> 5500 | AA20: =X20+125 -> 5625 | AD20: =AA20+125 -> 5750 | AG20: =AD20+125 -> 5875 | AJ20: =AG20+125 -> 6000 | AM20: =AJ20+125 -> 6125 | AP20: =AM20+125 -> 6250 | AS20: 14
A21: 15 | B21: 3 | C21: Беларус 82.1 Д-243 | D21: L549AUD | E21: 2019 | F21: 425 | G21: 425 | H21: 2022-02-02 | I21: =F21+125 -> 550 | J21: 595 | K21: 2022-02-01 | L21: =I21+125 -> 675 | O21: =L21+125 -> 800 | R21: 925 | U21: 15 | V21: 15 | W21: L549AUD | X21: =R21+125 -> 1050 | AA21: =X21+125 -> 1175 | AD21: =AA21+125 -> 1300 | AG21: =AD21+125 -> 1425 | AJ21: =AG21+125 -> 1550 | AM21: =AJ21+125 -> 1675 | AP21: =AM21+125 -> 1800 | AS21: 15
A22: 16 | B22: 4 | C22: К 701 2978 | D22: L 414 AND | E22: 1984 | F22: без м/ч | G22: без м/ч | H22: 2021-10-26 | I22: без м/ч | L22: без м/ч | O22: б/м | R22: без м/ч | U22: 16 | V22: 16 | W22: L 414 AND | X22: без м/ч | AA22: без м/ч | AD22: без м/ч | AG22: без м/ч | AJ22: без м/ч | AM22: без м/ч | AP22: без м/ч | AS22: 16
A23: 17 | B23: 5 | C23: К 701 Р 7363 | D23: L 416 AND | E23: 1987 | F23: без м/ч | G23: 5501 | H23: 2022-02-04 | U23: 17 | V23: 17 | W23: L 416 AND | X23: 875 | AS23: 17
A24: 18 | B24: 6 | C24: К 701 7378 | D24: L 027 AFD | E24: 1988 | F24: н/р | G24: н/р | H24: 2017-11-10 | O24: февраль 2017г. | U24: 18 | V24: 18 | W24: L 027 AFD | AS24: 18
A25: 19 | B25: 7 | C25: К 701А 1692 | D25: L 676 AMD | E25: 1993 | F25: ноябрь 2016г. | I25: н/р | J25: н/р | K25: 2017-10-24 | U25: 19 | V25: 19 | W25: L 676 AMD | AS25: 19
A26: 20 | B26: 8 | C26: К 700A 2746 | D26: L 417 AND | E26: 1986 | O26: октябрь 2016г. | U26: 20 | V26: 20 | W26: L 417 AND | AS26: 20
A27: 21 | B27: 9 | C27: К702М СХТ | D27: AED 718 L | E27: 2016 | F27: 6125 | G27: 6228 | H27: 2022-10-05 | I27: =F27+125 -> 6250 | L27: =I27+125 -> 6375 | O27: =L27+125 -> 6500 | R27: =O27+125 -> 6625 | U27: 21 | V27: 21 | W27: AED 718 L | X27: =R27+125 -> 6750 | AA27: =X27+125 -> 6875 | AD27: =AA27+125 -> 7000 | AG27: =AD27+125 -> 7125 | AJ27: =AG27+125 -> 7250 | AM27: =AJ27+125 -> 7375 | AP27: =AM27+125 -> 7500 | AS27: 21
A28: 22 | B28: 10 | C28: К702М СХТ | D28: AED 719 L | E28: 2016 | F28: 6470 | G28: 4480 | H28: 2022-05-26 | I28: =F28+125 -> 6595 | L28: 6720 | O28: 6845 | R28: =O28+125 -> 6970 | U28: 22 | V28: 22 | W28: AED 719 L | X28: 7095 | AA28: =X28+125 -> 7220 | AD28: =AA28+125 -> 7345 | AG28: =AD28+125 -> 7470 | AJ28: =AG28+125 -> 7595 | AM28: =AJ28+125 -> 7720 | AP28: =AM28+125 -> 7845 | AS28: 22
A29: 23 | B29: 11 | C29: К702М СХТ | D29: AED 720 L | E29: 2016 | F29: 6700 | G29: 6700 | H29: 2022-02-09 | I29: =F29+125 -> 6825 | L29: 6950 | O29: 7075 | R29: =O29+125 -> 7200 | U29: 23 | V29: 23 | W29: AED 720 L | X29: 7325 | AA29: =X29+125 -> 7450 | AD29: 7575 | AG29: 7700 | AJ29: 7825 | AM29: 7950 | AP29: 8075 | AS29: 23
A30: 24 | B30: 12 | C30: К703 | D30: L883 ATD | E30: 2019 | F30: 3000 | G30: 3020 | H30: 2022-09-26 | I30: =F30+125 -> 3125 | L30: 3250 | O30: 3375 | R30: =O30+125 -> 3500 | U30: 24 | V30: 24 | W30: L883 ATD | X30: 3625 | AA30: =X30+125 -> 3750 | AD30: 3875 | AG30: 4000 | AJ30: 4125 | AM30: 4250 | AP30: 4375 | AS30: 24
A31: 25 | B31: 13 | C31: К703 | D31: L884 ATD | E31: 2019 | F31: 2075 | G31: 2100 | H31: 2022-09-14 | I31: 1825 | L31: 1950 | O31: 2075 | R31: 2200 | U31: 25 | V31: 25 | W31: L884 ATD | X31: 2325 | AA31: 2450 | AD31: 2575 | AG31: 2700 | AJ31: 2825 | AM31: 2950 | AP31: 3075 | AS31: 25
A32: 26 | B32: 14 | C32: К702МБА-01-БКУ | D32: AFE 054 L | E32: 2022 | F32: 0 | I32: 125 | L32: 250 | O32: 375 | R32: 500 | U32: 26 | V32: 26 | W32: AFE 054 L | X32: 625 | AA32: 750 | AD32: 875 | AG32: 1000 | AJ32: 1125 | AM32: 1250 | AP32: 1375 | AS32: 26
A33: Автогрейдеры период проведения ТО-1 125 мото/час
A34: 27 | B34: 1 | C34: Автогрейдер ГС - 14,02 | D34: ADD 878 L | E34: 2015 | F34: 3000 | G34: 3000 | H34: 2021-10-12 | I34: =F34+125 -> 3125 | L34: =I34+125 -> 3250 | O34: =L34+125 -> 3375 | R34: =O34+125 -> 3500 | U34: 27 | V34: 27 | W34: ADD 878 L | X34: =R34+125 -> 3625 | AA34: =X34+125 -> 3750 | AD34: 3875 | AG34: 4000 | AJ34: 4125 | AM34: 4250 | AP34: 4375 | AS34: 27
A35: 28 | B35: 2 | C35: Автогрейдер ДЗ-98В | D35: AED 716 L | E35: 2016 | F35: 5125 | G35: 5100 | H35: 2021-10-19 | I35: =F35+125 -> 5250 | L35: 5375 | O35: =L35+125 -> 5500 | R35: 5625 | U35: 28 | V35: 28 | W35: AED 716 L | X35: 5750 | AA35: 5875 | AD35: 6000 | AG35: 6125 | AJ35: 6250 | AM35: 6375 | AP35: 6500 | AS35: 28
A36: 29 | B36: 3 | C36: Автогрейдер ГС - 14,02 | D36: ALD L 536 | E36: 2017 | F36: 5425 | G36: 5440 | H36: 2022-08-11 | I36: =F36+125 -> 5550 | L36: 5675 | O36: =L36+125 -> 5800 | R36: 5925 | U36: 29 | V36: 29 | W36: ALD L 536 | X36: 6050 | AA36: 6175 | AD36: =AA36+125 -> 6300 | AG36: =AD36+125 -> 6425 | AJ36: =AG36+125 -> 6550 | AM36: =AJ36+125 -> 6675 | AP36: =AM36+125 -> 6800 | AS36: 29
A37: 30 | B37: 4 | C37: Автогрейдер ГС - 14,02 | D37: AFD 215 L | E37: 2018 | F37: 3375 | G37: 3513 | H37: 2022-04-26 | I37: =F37+125 -> 3500 | L37: 3625 | O37: =L37+125 -> 3750 | R37: 3875 | U37: 30 | V37: 30 | W37: AFD 215 L | X37: 4000 | AA37: 4125 | AD37: 4250 | AG37: =AD37+125 -> 4375 | AJ37: =AG37+125 -> 4500 | AM37: =AJ37+125 -> 4625 | AP37: =AM37+125 -> 4750 | AS37: 30
A38: 31 | B38: 5 | C38: Автогрейдер ДЗ-98В | D38: 694 L ADD | E38: 2019 | F38: 2625 | G38: 2600 | H38: 2022-12-28 | I38: =F38+125 -> 2750 | L38: 2875 | M38: 2545 | N38: 2022-08-15 | O38: 3000 | R38: 3125 | U38: 31 | V38: 31 | W38: 694 L ADD | X38: 3250 | AA38: 3375 | AD38: 3500 | AG38: =AD38+125 -> 3625 | AJ38: =AG38+125 -> 3750 | AM38: 3875 | AP38: 4000 | AS38: 31
A39: 32 | B39: 6 | C39: Автогрейдер ДЗ-98В | D39: AFD 446 L | E39: 2019 | F39: 2300 | G39: 2400 | H39: 2022-04-05 | I39: =F39+125 -> 2425 | L39: 2550 | M39: 2560 | N39: 2022-07-20 | O39: 2675 | R39: 2800 | U39: 32 | V39: 32 | W39: AFD 446 L | X39: 2925 | AA39: 3050 | AD39: 3175 | AG39: =AD39+125 -> 3300 | AJ39: =AG39+125 -> 3425 | AM39: 3550 | AP39: 3675 | AS39: 32
C40: Техническое обслуживание прицепного состава проводится вместе с тягачами. | W40: Техническое обслуживание прицепного состава проводится вместе с тягачами.
W42: СОСТАВИЛ:
W43: Специалист тех.отдела | AB43: Бекбулатов Э.Р.

Sheet Перепробег перед ТО
A1: №№ | B1: Марка, модель т/с | C1: гос. номер | D1: дата | E1: пробег по плану | F1: пробег по факту | G1: перепробег | H1: вид ТО
A3: Марка | B3: Гос. номер | C3: Год выпуска | D3: ТО-2 по плану | E3: ТО-2 по факту | F3: Дата проведения | G3: Столбец1 | H3: Столбец2 | I3: Столбец3 | J3: Столбец4 | K3: Столбец5 | L3: Столбец6
A4: Тойота НiLux | B4: 475 АН 07 | C4: 2006 | D4: 922000 | E4: 922473 | F4: 2022-06-29 | G4: =D4+4000 -> 926000 | H4: 926222 | I4: 2022-08-01 | J4: =G4+4000 -> 930000 | K4: 929904 | L4: 2022-10-07 | M4: =E4-D4 -> 473
A5: Тойота НiLux | B5: L 868 AY | C5: 2006 | D5: 347000 | E5: 347740 | F5: 2022-09-22 | G5: =D5+4000 -> 351000 | J5: =G5+4000 -> 355000 | M5: =E5-D5 -> 740
A6: Тойота НiLux | B6: L 872 AY | C6: 2006 | D6: 2000 | E6: 2516 | F6: 2022-03-06 | G6: =D6+4000 -> 6000 | H6: 7000 | I6: 2022-03-29 | J6: =G6+4000 -> 10000 | K6: 10150 | L6: 2022-05-13 | M6: 516
A7: Toyota HiAce | B7: 471 AH 07 | C7: 2015 | D7: 492000 | E7: 493000 | F7: 2022-10-02 | G7: =D7+4000 -> 496000 | H7: 496000 | I7: 2022-10-11 | J7: =G7+4000 -> 500000 | M7: 1000
A8: Toyota HiAce | B8: 480 АН 07 | C8: 2015 | D8: 292000 | E8: 292600 | F8: 2022-07-19 | G8: =D8+4000 -> 296000 | H8: 296241 | I8: 2022-09-22 | J8: =G8+4000 -> 300000 | K8: 300101 | L8: 2022-10-11 | M8: 600
A9: Toyota HiAce | B9: 895 AF 07 | C9: 2015 | D9: 396000 | E9: 396666 | F9: 2022-09-22 | G9: 400000 | H9: 400079 | I9: 2022-10-11 | J9: 404000 | M9: 666
A10: УАЗ-220695-04 | B10: 354 АТ 07 | C10: 2022 | D10: 21000 | E10: 21500 | F10: 2022-10-02 | G10: 25000 | J10: 29000 | M10: 500
A12: №№ | B12: Марка, модель т/с | C12: гос. номер | D12: дата | E12: пробег по плану | F12: пробег по факту | G12: перепробег | H12: вид ТО
A13: 1 | B13: Toyota Hi Lux | C13: L 864 AY | D13: 2022-05-12 | E13: 880000 | F13: 880860 | G13: =F13-E13 -> 860 | H13: ТО2
A14: 2 | B14: Toyota Hi Lux | C14: 475 АН 07 | D14: 2022-06-29 | E14: 922000 | F14: 922473 | G14: =F14-E14 -> 473 | H14: ТО2
A15: 3 | B15: Toyota Hi Lux | C15: L 866 AY | D15: 2022-06-24 | E15: 200000 | F15: 200400 | G15: 400 | H15: ТО1
